Workbook

Sheet How to use
B2: Instructions on how to use the calculator
A3: Steps
A4: 1 | B4: Go to the Calculator sheet
A5: 2 | B5: Click the Click here to clear existing membership to clear the membership data
A6: 3 | B6: Change Calculation date (cell B7) to the effective date of the quote/rate review
A7: 4 | B7: For cell B10: Select "No" if no retirement contributions have been given. Only select "Yes" if employer provided retirement contributions.
A8: 5 | B8: Select the relevant additional benefits in cell B14 to B17
A9: 6 | B9: Ensure that there are no filters on the membership data
A10: 7 | B10: Copy new membership data into the Membership input section (column A to H). Note that Annual retirement contributions field (column I) is not a compulsory input and only accomodates rand amounts. Note: please note that members above NRA will be included
A11: 8 | B11: Click the Click here after member data inserted below button located in the Calculator sheet cell F7
B13: Version control
B15: Inputs | C15: Location | D15: Version
B16: Tax table | C16: Tax table sheet | D16: 2019/2020 table
B17: Benefit maximums | C17: Calculator sheet cell B8 and B9 | D17: Updated 03/09/2018

Sheet Calculator
A1: Benefit and member details page | O1: Compulsory inputs
O2: Optional inputs
A4: Scheme name | B4: ABC company
A6: Inputs
A7: Calculation date | B7: 2018-11-05
A8: Maximum monthly basic benefit (Rand) | B8: 215,000
A9: Maximum monthly waiver benefit (Rand) | B9: 55,000
A10: Did the employer provide retirement contributions? | B10: No
A12: Disability 2.0
A13: Additional benefits
A14: Cash assistance benefit | B14: Yes
A15: Critical top-up benefit | B15: Yes
A16: Daily life adaptor | B16: Yes
A17: Permanent income booster | B17: Yes
P19: Disability 2.0 | Y19: Flat benefit
P20: Net insurance benefit | U20: Additional benefits
U21: Lump sum paid to all valid disability claimants | V21: Lump sum paid if member meets specific claims criteria - up to R100 000 | W21: Paid by Momentum to cover adaptations - up to R100 000 | X21: Monthly benefit paid if claimant is terminally ill or severly disabled
A22: Membership input | AB22: Cap calculation
A23: Member name or ID | B23: Date of birth | C23: Gender | D23: Annual Risk / Insurance salary | E23: Risk salary as a % of CTC | F23: Net insurance benefit % | G23: "Flat" % basic benefit | H23: Waiver % | I23: Annual retirement contributions | J23: Age | K23: Monthly gross insurance salary | L23: Monthly proxy for deductions | M23: Monthly gross Cost To Company (CTC) salary | N23: Monthly taxable CTC salary | O23: Monthly net cost to company salary | P23: Monthly taxable insurance salary | Q23: Monthly notional tax | R23: Monthly Net insurance salary | S23: Monthly Net insurance benefit | T23: Net insurance benefit replacement ratio | U23: Cash assistance benefit | V23: Critical top-up benefit | W23: Daily life adaptor | X23: Permanent income booster | Y23: "Flat" Basic benefit (uncapped) | Z23: Waiver benefit (uncapped) | AA23: "Flat" Basic + waiver benefit (uncapped) | AB23: Monthly taxable CTC salary for cap | AC23: Monthly net cost to company salary for cap | AD23: "Flat" Basic + Waiver benefit (capped) | AE23: "Flat" benefit replacement ratio
A24: Member 21 | B24: 1955-05-12 | C24: F | D24: 75,000 | E24: 80% | F24: 85% | G24: 75% | H24: 10% | J24: =DATEDIF(B24,$B$7,"y") -> 63 | K24: =D24/12 -> 6,250 | L24: =IF($B$10="No",MIN(K24*H24,15%*K24),I24/12) -> 625 | M24: =D24/12/E24 -> 7,813 | N24: =M24-L24 -> 7,188 | O24: =(M24*12-(VLOOKUP(N24*12,'Tax table'!$A$3:$C$10,3)*(N24*12-VLOOKUP(N24*12,'Tax table'!$A$3:$C$10,1))+VLOOKUP(N24*12,'Tax table'!$A$3:$C$10,2)))/12 -> 7,704 | P24: =K24-L24 -> 5,625 | Q24: =(VLOOKUP(P24*12,'Tax table'!$A$3:$C$10,3)*(P24*12-VLOOKUP(P24*12,'Tax table'!$A$3:$C$10,1))+VLOOKUP(P24*12,'Tax table'!$A$3:$C$10,2))/12 -> 0 | R24: =K24-Q24 -> 6,250 | S24: =MIN(R24*F24,SUM($B$8,$B$9)) -> 5,313 | T24: =S24/O24 -> 69.0% | U24: =IF($B$14="Yes",S24*3,0) -> 15,938 | V24: =IF($B$15="Yes",MIN(S24*2,References!$B$7),0) -> 10,625 | W24: =IF(AND(D24<>0,$B$16="Yes"),References!$B$6,0) -> 100,000 | X24: =IF($B$17="Yes",MIN(R24,SUM($B$8:$B$9))-S24,0) -> 938 | Y24: =MIN(K24*G24,$B$8) -> 4,688 | Z24: =MIN(K24*H24,$B$9) -> 625 | AA24: =Z24+Y24 -> 5,313 | AB24: =M24-Z24 -> 7,188 | AC24: =(M24*12-(VLOOKUP(AB24*12,'Tax table'!$A$3:$C$10,3)*(AB24*12-VLOOKUP(AB24*12,'Tax table'!$A$3:$C$10,1))+VLOOKUP(AB24*12,'Tax table'!$A$3:$C$10,2)))/12 -> 7,704 | AD24: =MIN(AA24,AC24) -> 5,313 | AE24: =AD24/O24 -> 69.0%
A25: Member 20 | B25: 1956-04-07 | C25: F | D25: 75,000 | E25: 80% | F25: 85% | G25: 75% | H25: 10% | J25: 62 | K25: 6,250 | L25: 625 | M25: 7,813 | N25: 7,188 | O25: =(M25*12-(VLOOKUP(N25*12,'Tax table'!$A$3:$C$10,3)*(N25*12-VLOOKUP(N25*12,'Tax table'!$A$3:$C$10,1))+VLOOKUP(N25*12,'Tax table'!$A$3:$C$10,2)))/12 -> 7,704 | P25: 5,625 | Q25: =(VLOOKUP(P25*12,'Tax table'!$A$3:$C$10,3)*(P25*12-VLOOKUP(P25*12,'Tax table'!$A$3:$C$10,1))+VLOOKUP(P25*12,'Tax table'!$A$3:$C$10,2))/12 -> 0 | R25: 6,250 | S25: 5,313 | T25: 69.0% | U25: 15,938 | V25: =IF($B$15="Yes",MIN(S25*2,References!$B$7),0) -> 10,625 | W25: =IF(AND(D25<>0,$B$16="Yes"),References!$B$6,0) -> 100,000 | X25: 938 | Y25: 4,688 | Z25: 625 | AA25: 5,313 | AB25: 7,188 | AC25: =(M25*12-(VLOOKUP(AB25*12,'Tax table'!$A$3:$C$10,3)*(AB25*12-VLOOKUP(AB25*12,'Tax table'!$A$3:$C$10,1))+VLOOKUP(AB25*12,'Tax table'!$A$3:$C$10,2)))/12 -> 7,704 | AD25: 5,313 | AE25: 69.0%
A26: Member 19 | B26: 1960-03-28 | C26: M | D26: 75,000 | E26: 80% | F26: 85% | G26: 75% | H26: 10% | J26: 58 | K26: 6,250 | L26: 625 | M26: 7,813 | N26: 7,188 | O26: =(M26*12-(VLOOKUP(N26*12,'Tax table'!$A$3:$C$10,3)*(N26*12-VLOOKUP(N26*12,'Tax table'!$A$3:$C$10,1))+VLOOKUP(N26*12,'Tax table'!$A$3:$C$10,2)))/12 -> 7,704 | P26: 5,625 | Q26: =(VLOOKUP(P26*12,'Tax table'!$A$3:$C$10,3)*(P26*12-VLOOKUP(P26*12,'Tax table'!$A$3:$C$10,1))+VLOOKUP(P26*12,'Tax table'!$A$3:$C$10,2))/12 -> 0 | R26: 6,250 | S26: 5,313 | T26: 69.0% | U26: 15,938 | V26: =IF($B$15="Yes",MIN(S26*2,References!$B$7),0) -> 10,625 | W26: =IF(AND(D26<>0,$B$16="Yes"),References!$B$6,0) -> 100,000 | X26: 938 | Y26: 4,688 | Z26: 625 | AA26: 5,313 | AB26: 7,188 | AC26: =(M26*12-(VLOOKUP(AB26*12,'Tax table'!$A$3:$C$10,3)*(AB26*12-VLOOKUP(AB26*12,'Tax table'!$A$3:$C$10,1))+VLOOKUP(AB26*12,'Tax table'!$A$3:$C$10,2)))/12 -> 7,704 | AD26: 5,313 | AE26: 69.0%
A27: Member 18 | B27: 1972-03-21 | C27: F | D27: 75,000 | E27: 80% | F27: 85% | G27: 75% | H27: 10% | J27: 46 | K27: 6,250 | L27: 625 | M27: 7,813 | N27: 7,188 | O27: =(M27*12-(VLOOKUP(N27*12,'Tax table'!$A$3:$C$10,3)*(N27*12-VLOOKUP(N27*12,'Tax table'!$A$3:$C$10,1))+VLOOKUP(N27*12,'Tax table'!$A$3:$C$10,2)))/12 -> 7,704 | P27: 5,625 | Q27: =(VLOOKUP(P27*12,'Tax table'!$A$3:$C$10,3)*(P27*12-VLOOKUP(P27*12,'Tax table'!$A$3:$C$10,1))+VLOOKUP(P27*12,'Tax table'!$A$3:$C$10,2))/12 -> 0 | R27: 6,250 | S27: 5,313 | T27: 69.0% | U27: 15,938 | V27: =IF($B$15="Yes",MIN(S27*2,References!$B$7),0) -> 10,625 | W27: =IF(AND(D27<>0,$B$16="Yes"),References!$B$6,0) -> 100,000 | X27: 938 | Y27: 4,688 | Z27: 625 | AA27: 5,313 | AB27: 7,188 | AC27: =(M27*12-(VLOOKUP(AB27*12,'Tax table'!$A$3:$C$10,3)*(AB27*12-VLOOKUP(AB27*12,'Tax table'!$A$3:$C$10,1))+VLOOKUP(AB27*12,'Tax table'!$A$3:$C$10,2)))/12 -> 7,704 | AD27: 5,313 | AE27: 69.0%
A28: Member 17 | B28: 1962-11-14 | C28: M | D28: 75,000 | E28: 80% | F28: 85% | G28: 75% | H28: 10% | J28: 55 | K28: 6,250 | L28: 625 | M28: 7,813 | N28: 7,188 | O28: =(M28*12-(VLOOKUP(N28*12,'Tax table'!$A$3:$C$10,3)*(N28*12-VLOOKUP(N28*12,'Tax table'!$A$3:$C$10,1))+VLOOKUP(N28*12,'Tax table'!$A$3:$C$10,2)))/12 -> 7,704 | P28: 5,625 | Q28: =(VLOOKUP(P28*12,'Tax table'!$A$3:$C$10,3)*(P28*12-VLOOKUP(P28*12,'Tax table'!$A$3:$C$10,1))+VLOOKUP(P28*12,'Tax table'!$A$3:$C$10,2))/12 -> 0 | R28: 6,250 | S28: 5,313 | T28: 69.0% | U28: 15,938 | V28: =IF($B$15="Yes",MIN(S28*2,References!$B$7),0) -> 10,625 | W28: =IF(AND(D28<>0,$B$16="Yes"),References!$B$6,0) -> 100,000 | X28: 938 | Y28: 4,688 | Z28: 625 | AA28: 5,313 | AB28: 7,188 | AC28: =(M28*12-(VLOOKUP(AB28*12,'Tax table'!$A$3:$C$10,3)*(AB28*12-VLOOKUP(AB28*12,'Tax table'!$A$3:$C$10,1))+VLOOKUP(AB28*12,'Tax table'!$A$3:$C$10,2)))/12 -> 7,704 | AD28: 5,313 | AE28: 69.0%
A29: Member 2265 | B29: 1971-12-23 | C29: M | D29: 94,398 | E29: 80% | F29: 85% | G29: 75% | H29: 10% | J29: 46 | K29: 7,866 | L29: 787 | M29: 9,833 | N29: 9,046 | O29: =(M29*12-(VLOOKUP(N29*12,'Tax table'!$A$3:$C$10,3)*(N29*12-VLOOKUP(N29*12,'Tax table'!$A$3:$C$10,1))+VLOOKUP(N29*12,'Tax table'!$A$3:$C$10,2)))/12 -> 9,390 | P29: 7,080 | Q29: =(VLOOKUP(P29*12,'Tax table'!$A$3:$C$10,3)*(P29*12-VLOOKUP(P29*12,'Tax table'!$A$3:$C$10,1))+VLOOKUP(P29*12,'Tax table'!$A$3:$C$10,2))/12 -> 89 | R29: 7,777 | S29: 6,611 | T29: 70.4% | U29: 19,832 | V29: =IF($B$15="Yes",MIN(S29*2,References!$B$7),0) -> 13,221 | W29: =IF(AND(D29<>0,$B$16="Yes"),References!$B$6,0) -> 100,000 | X29: 1,167 | Y29: 5,900 | Z29: 787 | AA29: 6,686 | AB29: 9,046 | AC29: =(M29*12-(VLOOKUP(AB29*12,'Tax table'!$A$3:$C$10,3)*(AB29*12-VLOOKUP(AB29*12,'Tax table'!$A$3:$C$10,1))+VLOOKUP(AB29*12,'Tax table'!$A$3:$C$10,2)))/12 -> 9,390 | AD29: 6,686 | AE29: 71.2%
A30: Member 2264 | B30: 1978-04-04 | C30: M | D30: 94,398 | E30: 80% | F30: 85% | G30: 75% | H30: 10% | J30: 40 | K30: 7,866 | L30: 787 | M30: 9,833 | N30: 9,046 | O30: =(M30*12-(VLOOKUP(N30*12,'Tax table'!$A$3:$C$10,3)*(N30*12-VLOOKUP(N30*12,'Tax table'!$A$3:$C$10,1))+VLOOKUP(N30*12,'Tax table'!$A$3:$C$10,2)))/12 -> 9,390 | P30: 7,080 | Q30: =(VLOOKUP(P30*12,'Tax table'!$A$3:$C$10,3)*(P30*12-VLOOKUP(P30*12,'Tax table'!$A$3:$C$10,1))+VLOOKUP(P30*12,'Tax table'!$A$3:$C$10,2))/12 -> 89 | R30: 7,777 | S30: 6,611 | T30: 70.4% | U30: 19,832 | V30: =IF($B$15="Yes",MIN(S30*2,References!$B$7),0) -> 13,221 | W30: =IF(AND(D30<>0,$B$16="Yes"),References!$B$6,0) -> 100,000 | X30: 1,167 | Y30: 5,900 | Z30: 787 | AA30: 6,687 | AB30: 9,046 | AC30: =(M30*12-(VLOOKUP(AB30*12,'Tax table'!$A$3:$C$10,3)*(AB30*12-VLOOKUP(AB30*12,'Tax table'!$A$3:$C$10,1))+VLOOKUP(AB30*12,'Tax table'!$A$3:$C$10,2)))/12 -> 9,390 | AD30: 6,687 | AE30: 71.2%
A31: Member 16 | B31: 1978-02-24 | C31: F | D31: 97,212 | E31: 80% | F31: 85% | G31: 75% | H31: 10% | J31: 40 | K31: 8,101 | L31: 810 | M31: 10,126 | N31: 9,316 | O31: =(M31*12-(VLOOKUP(N31*12,'Tax table'!$A$3:$C$10,3)*(N31*12-VLOOKUP(N31*12,'Tax table'!$A$3:$C$10,1))+VLOOKUP(N31*12,'Tax table'!$A$3:$C$10,2)))/12 -> 9,634 | P31: 7,291 | Q31: =(VLOOKUP(P31*12,'Tax table'!$A$3:$C$10,3)*(P31*12-VLOOKUP(P31*12,'Tax table'!$A$3:$C$10,1))+VLOOKUP(P31*12,'Tax table'!$A$3:$C$10,2))/12 -> 127 | R31: 7,974 | S31: 6,778 | T31: 70.3% | U31: 20,333 | V31: =IF($B$15="Yes",MIN(S31*2,References!$B$7),0) -> 13,555 | W31: =IF(AND(D31<>0,$B$16="Yes"),References!$B$6,0) -> 100,000 | X31: 1,196 | Y31: 6,076 | Z31: 810 | AA31: 6,886 | AB31: 9,316 | AC31: =(M31*12-(VLOOKUP(AB31*12,'Tax table'!$A$3:$C$10,3)*(AB31*12-VLOOKUP(AB31*12,'Tax table'!$A$3:$C$10,1))+VLOOKUP(AB31*12,'Tax table'!$A$3:$C$10,2)))/12 -> 9,634 | AD31: 6,886 | AE31: 71.5%
A32: Member 15 | B32: 1961-11-21 | C32: F | D32: 98,328 | E32: 80% | F32: 85% | G32: 75% | H32: 10% | J32: 56 | K32: 8,194 | L32: 819 | M32: 10,243 | N32: 9,423 | O32: =(M32*12-(VLOOKUP(N32*12,'Tax table'!$A$3:$C$10,3)*(N32*12-VLOOKUP(N32*12,'Tax table'!$A$3:$C$10,1))+VLOOKUP(N32*12,'Tax table'!$A$3:$C$10,2)))/12 -> 9,731 | P32: 7,375 | Q32: =(VLOOKUP(P32*12,'Tax table'!$A$3:$C$10,3)*(P32*12-VLOOKUP(P32*12,'Tax table'!$A$3:$C$10,1))+VLOOKUP(P32*12,'Tax table'!$A$3:$C$10,2))/12 -> 142 | R32: 8,052 | S32: 6,844 | T32: 70.3% | U32: 20,532 | V32: =IF($B$15="Yes",MIN(S32*2,References!$B$7),0) -> 13,688 | W32: =IF(AND(D32<>0,$B$16="Yes"),References!$B$6,0) -> 100,000 | X32: 1,208 | Y32: 6,146 | Z32: 819 | AA32: 6,965 | AB32: 9,423 | AC32: =(M32*12-(VLOOKUP(AB32*12,'Tax table'!$A$3:$C$10,3)*(AB32*12-VLOOKUP(AB32*12,'Tax table'!$A$3:$C$10,1))+VLOOKUP(AB32*12,'Tax table'!$A$3:$C$10,2)))/12 -> 9,731 | AD32: 6,965 | AE32: 71.6%
A33: Member 2261 | B33: 1979-09-11 | C33: M | D33: 100,228 | E33: 80% | F33: 85% | G33: 75% | H33: 10% | J33: 39 | K33: 8,352 | L33: 835 | M33: 10,440 | N33: 9,605 | O33: =(M33*12-(VLOOKUP(N33*12,'Tax table'!$A$3:$C$10,3)*(N33*12-VLOOKUP(N33*12,'Tax table'!$A$3:$C$10,1))+VLOOKUP(N33*12,'Tax table'!$A$3:$C$10,2)))/12 -> 9,897 | P33: 7,517 | Q33: =(VLOOKUP(P33*12,'Tax table'!$A$3:$C$10,3)*(P33*12-VLOOKUP(P33*12,'Tax table'!$A$3:$C$10,1))+VLOOKUP(P33*12,'Tax table'!$A$3:$C$10,2))/12 -> 168 | R33: 8,184 | S33: 6,957 | T33: 70.3% | U33: 20,870 | V33: =IF($B$15="Yes",MIN(S33*2,References!$B$7),0) -> 13,913 | W33: =IF(AND(D33<>0,$B$16="Yes"),References!$B$6,0) -> 100,000 | X33: 1,228 | Y33: 6,264 | Z33: 835 | AA33: 7,100 | AB33: 9,605 | AC33: =(M33*12-(VLOOKUP(AB33*12,'Tax table'!$A$3:$C$10,3)*(AB33*12-VLOOKUP(AB33*12,'Tax table'!$A$3:$C$10,1))+VLOOKUP(AB33*12,'Tax table'!$A$3:$C$10,2)))/12 -> 9,897 | AD33: 7,100 | AE33: 71.7%
A34: Member 2262 | B34: 1990-08-08 | C34: M | D34: 100,228 | E34: 80% | F34: 85% | G34: 75% | H34: 10% | J34: 28 | K34: 8,352 | L34: 835 | M34: 10,440 | N34: 9,605 | O34: =(M34*12-(VLOOKUP(N34*12,'Tax table'!$A$3:$C$10,3)*(N34*12-VLOOKUP(N34*12,'Tax table'!$A$3:$C$10,1))+VLOOKUP(N34*12,'Tax table'!$A$3:$C$10,2)))/12 -> 9,897 | P34: 7,517 | Q34: =(VLOOKUP(P34*12,'Tax table'!$A$3:$C$10,3)*(P34*12-VLOOKUP(P34*12,'Tax table'!$A$3:$C$10,1))+VLOOKUP(P34*12,'Tax table'!$A$3:$C$10,2))/12 -> 168 | R34: 8,184 | S34: 6,957 | T34: 70.3% | U34: 20,870 | V34: =IF($B$15="Yes",MIN(S34*2,References!$B$7),0) -> 13,913 | W34: =IF(AND(D34<>0,$B$16="Yes"),References!$B$6,0) -> 100,000 | X34: 1,228 | Y34: 6,264 | Z34: 835 | AA34: 7,100 | AB34: 9,605 | AC34: =(M34*12-(VLOOKUP(AB34*12,'Tax table'!$A$3:$C$10,3)*(AB34*12-VLOOKUP(AB34*12,'Tax table'!$A$3:$C$10,1))+VLOOKUP(AB34*12,'Tax table'!$A$3:$C$10,2)))/12 -> 9,897 | AD34: 7,100 | AE34: 71.7%
A35: Member 2263 | B35: 1983-07-22 | C35: M | D35: 100,228 | E35: 80% | F35: 85% | G35: 75% | H35: 10% | J35: 35 | K35: 8,352 | L35: 835 | M35: 10,440 | N35: 9,605 | O35: =(M35*12-(VLOOKUP(N35*12,'Tax table'!$A$3:$C$10,3)*(N35*12-VLOOKUP(N35*12,'Tax table'!$A$3:$C$10,1))+VLOOKUP(N35*12,'Tax table'!$A$3:$C$10,2)))/12 -> 9,897 | P35: 7,517 | Q35: =(VLOOKUP(P35*12,'Tax table'!$A$3:$C$10,3)*(P35*12-VLOOKUP(P35*12,'Tax table'!$A$3:$C$10,1))+VLOOKUP(P35*12,'Tax table'!$A$3:$C$10,2))/12 -> 168 | R35: 8,184 | S35: 6,957 | T35: 70.3% | U35: 20,870 | V35: =IF($B$15="Yes",MIN(S35*2,References!$B$7),0) -> 13,913 | W35: =IF(AND(D35<>0,$B$16="Yes"),References!$B$6,0) -> 100,000 | X35: 1,228 | Y35: 6,264 | Z35: 835 | AA35: 7,100 | AB35: 9,605 | AC35: =(M35*12-(VLOOKUP(AB35*12,'Tax table'!$A$3:$C$10,3)*(AB35*12-VLOOKUP(AB35*12,'Tax table'!$A$3:$C$10,1))+VLOOKUP(AB35*12,'Tax table'!$A$3:$C$10,2)))/12 -> 9,897 | AD35: 7,100 | AE35: 71.7%
A36: Member 14 | B36: 1952-10-16 | C36: F | D36: 102,128 | E36: 80% | F36: 85% | G36: 75% | H36: 10% | J36: 66 | K36: 8,511 | L36: 851 | M36: 10,638 | N36: 9,787 | O36: =(M36*12-(VLOOKUP(N36*12,'Tax table'!$A$3:$C$10,3)*(N36*12-VLOOKUP(N36*12,'Tax table'!$A$3:$C$10,1))+VLOOKUP(N36*12,'Tax table'!$A$3:$C$10,2)))/12 -> 10,062 | P36: 7,660 | Q36: =(VLOOKUP(P36*12,'Tax table'!$A$3:$C$10,3)*(P36*12-VLOOKUP(P36*12,'Tax table'!$A$3:$C$10,1))+VLOOKUP(P36*12,'Tax table'!$A$3:$C$10,2))/12 -> 194 | R36: 8,317 | S36: 7,069 | T36: 70.3% | U36: 21,208 | V36: =IF($B$15="Yes",MIN(S36*2,References!$B$7),0) -> 14,139 | W36: =IF(AND(D36<>0,$B$16="Yes"),References!$B$6,0) -> 100,000 | X36: 1,248 | Y36: 6,383 | Z36: 851 | AA36: 7,234 | AB36: 9,787 | AC36: =(M36*12-(VLOOKUP(AB36*12,'Tax table'!$A$3:$C$10,3)*(AB36*12-VLOOKUP(AB36*12,'Tax table'!$A$3:$C$10,1))+VLOOKUP(AB36*12,'Tax table'!$A$3:$C$10,2)))/12 -> 10,062 | AD36: 7,234 | AE36: 71.9%
A37: Member 13 | B37: 1967-01-13 | C37: M | D37: 105,240 | E37: 80% | F37: 85% | G37: 75% | H37: 10% | J37: 51 | K37: 8,770 | L37: 877 | M37: 10,963 | N37: 10,086 | O37: =(M37*12-(VLOOKUP(N37*12,'Tax table'!$A$3:$C$10,3)*(N37*12-VLOOKUP(N37*12,'Tax table'!$A$3:$C$10,1))+VLOOKUP(N37*12,'Tax table'!$A$3:$C$10,2)))/12 -> 10,332 | P37: 7,893 | Q37: =(VLOOKUP(P37*12,'Tax table'!$A$3:$C$10,3)*(P37*12-VLOOKUP(P37*12,'Tax table'!$A$3:$C$10,1))+VLOOKUP(P37*12,'Tax table'!$A$3:$C$10,2))/12 -> 236 | R37: 8,534 | S37: 7,254 | T37: 70.2% | U37: 21,762 | V37: =IF($B$15="Yes",MIN(S37*2,References!$B$7),0) -> 14,508 | W37: =IF(AND(D37<>0,$B$16="Yes"),References!$B$6,0) -> 100,000 | X37: 1,280 | Y37: 6,578 | Z37: 877 | AA37: 7,455 | AB37: 10,086 | AC37: =(M37*12-(VLOOKUP(AB37*12,'Tax table'!$A$3:$C$10,3)*(AB37*12-VLOOKUP(AB37*12,'Tax table'!$A$3:$C$10,1))+VLOOKUP(AB37*12,'Tax table'!$A$3:$C$10,2)))/12 -> 10,332 | AD37: 7,455 | AE37: 72.1%
A38: Member 2260 | B38: 1965-06-14 | C38: M | D38: 106,976 | E38: 80% | F38: 85% | G38: 75% | H38: 10% | J38: 53 | K38: 8,915 | L38: 891 | M38: 11,143 | N38: 10,252 | O38: =(M38*12-(VLOOKUP(N38*12,'Tax table'!$A$3:$C$10,3)*(N38*12-VLOOKUP(N38*12,'Tax table'!$A$3:$C$10,1))+VLOOKUP(N38*12,'Tax table'!$A$3:$C$10,2)))/12 -> 10,483 | P38: 8,023 | Q38: =(VLOOKUP(P38*12,'Tax table'!$A$3:$C$10,3)*(P38*12-VLOOKUP(P38*12,'Tax table'!$A$3:$C$10,1))+VLOOKUP(P38*12,'Tax table'!$A$3:$C$10,2))/12 -> 259 | R38: 8,655 | S38: 7,357 | T38: 70.2% | U38: 22,071 | V38: =IF($B$15="Yes",MIN(S38*2,References!$B$7),0) -> 14,714 | W38: =IF(AND(D38<>0,$B$16="Yes"),References!$B$6,0) -> 100,000 | X38: 1,298 | Y38: 6,686 | Z38: 891 | AA38: 7,577 | AB38: 10,252 | AC38: =(M38*12-(VLOOKUP(AB38*12,'Tax table'!$A$3:$C$10,3)*(AB38*12-VLOOKUP(AB38*12,'Tax table'!$A$3:$C$10,1))+VLOOKUP(AB38*12,'Tax table'!$A$3:$C$10,2)))/12 -> 10,483 | AD38: 7,577 | AE38: 72.3%
A39: Member 12 | B39: 1956-07-10 | C39: M | D39: 110,127 | E39: 80% | F39: 85% | G39: 75% | H39: 10% | J39: 62 | K39: 9,177 | L39: 918 | M39: 11,472 | N39: 10,554 | O39: =(M39*12-(VLOOKUP(N39*12,'Tax table'!$A$3:$C$10,3)*(N39*12-VLOOKUP(N39*12,'Tax table'!$A$3:$C$10,1))+VLOOKUP(N39*12,'Tax table'!$A$3:$C$10,2)))/12 -> 10,757 | P39: 8,260 | Q39: =(VLOOKUP(P39*12,'Tax table'!$A$3:$C$10,3)*(P39*12-VLOOKUP(P39*12,'Tax table'!$A$3:$C$10,1))+VLOOKUP(P39*12,'Tax table'!$A$3:$C$10,2))/12 -> 302 | R39: 8,876 | S39: 7,544 | T39: 70.1% | U39: 22,633 | V39: =IF($B$15="Yes",MIN(S39*2,References!$B$7),0) -> 15,088 | W39: =IF(AND(D39<>0,$B$16="Yes"),References!$B$6,0) -> 100,000 | X39: 1,331 | Y39: 6,883 | Z39: 918 | AA39: 7,801 | AB39: 10,554 | AC39: =(M39*12-(VLOOKUP(AB39*12,'Tax table'!$A$3:$C$10,3)*(AB39*12-VLOOKUP(AB39*12,'Tax table'!$A$3:$C$10,1))+VLOOKUP(AB39*12,'Tax table'!$A$3:$C$10,2)))/12 -> 10,757 | AD39: 7,801 | AE39: 72.5%
A40: Member 2258 | B40: 1992-06-29 | C40: M | D40: 112,375 | E40: 80% | F40: 85% | G40: 75% | H40: 10% | J40: 26 | K40: 9,365 | L40: 936 | M40: 11,706 | N40: 10,769 | O40: =(M40*12-(VLOOKUP(N40*12,'Tax table'!$A$3:$C$10,3)*(N40*12-VLOOKUP(N40*12,'Tax table'!$A$3:$C$10,1))+VLOOKUP(N40*12,'Tax table'!$A$3:$C$10,2)))/12 -> 10,952 | P40: 8,428 | Q40: =(VLOOKUP(P40*12,'Tax table'!$A$3:$C$10,3)*(P40*12-VLOOKUP(P40*12,'Tax table'!$A$3:$C$10,1))+VLOOKUP(P40*12,'Tax table'!$A$3:$C$10,2))/12 -> 332 | R40: 9,033 | S40: 7,678 | T40: 70.1% | U40: 23,033 | V40: =IF($B$15="Yes",MIN(S40*2,References!$B$7),0) -> 15,355 | W40: =IF(AND(D40<>0,$B$16="Yes"),References!$B$6,0) -> 100,000 | X40: 1,355 | Y40: 7,023 | Z40: 936 | AA40: 7,960 | AB40: 10,769 | AC40: =(M40*12-(VLOOKUP(AB40*12,'Tax table'!$A$3:$C$10,3)*(AB40*12-VLOOKUP(AB40*12,'Tax table'!$A$3:$C$10,1))+VLOOKUP(AB40*12,'Tax table'!$A$3:$C$10,2)))/12 -> 10,952 | AD40: 7,960 | AE40: 72.7%
A41: Member 2259 | B41: 1982-04-01 | C41: M | D41: 112,375 | E41: 80% | F41: 85% | G41: 75% | H41: 10% | J41: 36 | K41: 9,365 | L41: 936 | M41: 11,706 | N41: 10,769 | O41: =(M41*12-(VLOOKUP(N41*12,'Tax table'!$A$3:$C$10,3)*(N41*12-VLOOKUP(N41*12,'Tax table'!$A$3:$C$10,1))+VLOOKUP(N41*12,'Tax table'!$A$3:$C$10,2)))/12 -> 10,952 | P41: 8,428 | Q41: =(VLOOKUP(P41*12,'Tax table'!$A$3:$C$10,3)*(P41*12-VLOOKUP(P41*12,'Tax table'!$A$3:$C$10,1))+VLOOKUP(P41*12,'Tax table'!$A$3:$C$10,2))/12 -> 332 | R41: 9,033 | S41: 7,678 | T41: 70.1% | U41: 23,033 | V41: =IF($B$15="Yes",MIN(S41*2,References!$B$7),0) -> 15,355 | W41: =IF(AND(D41<>0,$B$16="Yes"),References!$B$6,0) -> 100,000 | X41: 1,355 | Y41: 7,023 | Z41: 936 | AA41: 7,960 | AB41: 10,769 | AC41: =(M41*12-(VLOOKUP(AB41*12,'Tax table'!$A$3:$C$10,3)*(AB41*12-VLOOKUP(AB41*12,'Tax table'!$A$3:$C$10,1))+VLOOKUP(AB41*12,'Tax table'!$A$3:$C$10,2)))/12 -> 10,952 | AD41: 7,960 | AE41: 72.7%
A42: Member 2254 | B42: 1982-08-20 | C42: M | D42: 112,618 | E42: 80% | F42: 85% | G42: 75% | H42: 10% | J42: 36 | K42: 9,385 | L42: 938 | M42: 11,731 | N42: 10,793 | O42: =(M42*12-(VLOOKUP(N42*12,'Tax table'!$A$3:$C$10,3)*(N42*12-VLOOKUP(N42*12,'Tax table'!$A$3:$C$10,1))+VLOOKUP(N42*12,'Tax table'!$A$3:$C$10,2)))/12 -> 10,973 | P42: 8,446 | Q42: =(VLOOKUP(P42*12,'Tax table'!$A$3:$C$10,3)*(P42*12-VLOOKUP(P42*12,'Tax table'!$A$3:$C$10,1))+VLOOKUP(P42*12,'Tax table'!$A$3:$C$10,2))/12 -> 335 | R42: 9,050 | S42: 7,692 | T42: 70.1% | U42: 23,076 | V42: =IF($B$15="Yes",MIN(S42*2,References!$B$7),0) -> 15,384 | W42: =IF(AND(D42<>0,$B$16="Yes"),References!$B$6,0) -> 100,000 | X42: 1,357 | Y42: 7,039 | Z42: 938 | AA42: 7,977 | AB42: 10,793 | AC42: =(M42*12-(VLOOKUP(AB42*12,'Tax table'!$A$3:$C$10,3)*(AB42*12-VLOOKUP(AB42*12,'Tax table'!$A$3:$C$10,1))+VLOOKUP(AB42*12,'Tax table'!$A$3:$C$10,2)))/12 -> 10,973 | AD42: 7,977 | AE42: 72.7%
A43: Member 2255 | B43: 1989-10-13 | C43: M | D43: 112,618 | E43: 80% | F43: 85% | G43: 75% | H43: 10% | J43: 29 | K43: 9,385 | L43: 938 | M43: 11,731 | N43: 10,793 | O43: =(M43*12-(VLOOKUP(N43*12,'Tax table'!$A$3:$C$10,3)*(N43*12-VLOOKUP(N43*12,'Tax table'!$A$3:$C$10,1))+VLOOKUP(N43*12,'Tax table'!$A$3:$C$10,2)))/12 -> 10,973 | P43: 8,446 | Q43: =(VLOOKUP(P43*12,'Tax table'!$A$3:$C$10,3)*(P43*12-VLOOKUP(P43*12,'Tax table'!$A$3:$C$10,1))+VLOOKUP(P43*12,'Tax table'!$A$3:$C$10,2))/12 -> 335 | R43: 9,050 | S43: 7,692 | T43: 70.1% | U43: 23,076 | V43: =IF($B$15="Yes",MIN(S43*2,References!$B$7),0) -> 15,384 | W43: =IF(AND(D43<>0,$B$16="Yes"),References!$B$6,0) -> 100,000 | X43: 1,357 | Y43: 7,039 | Z43: 938 | AA43: 7,977 | AB43: 10,793 | AC43: =(M43*12-(VLOOKUP(AB43*12,'Tax table'!$A$3:$C$10,3)*(AB43*12-VLOOKUP(AB43*12,'Tax table'!$A$3:$C$10,1))+VLOOKUP(AB43*12,'Tax table'!$A$3:$C$10,2)))/12 -> 10,973 | AD43: 7,977 | AE43: 72.7%
A44: Member 2256 | B44: 1990-07-09 | C44: M | D44: 112,618 | E44: 80% | F44: 85% | G44: 75% | H44: 10% | J44: 28 | K44: 9,385 | L44: 938 | M44: 11,731 | N44: 10,793 | O44: =(M44*12-(VLOOKUP(N44*12,'Tax table'!$A$3:$C$10,3)*(N44*12-VLOOKUP(N44*12,'Tax table'!$A$3:$C$10,1))+VLOOKUP(N44*12,'Tax table'!$A$3:$C$10,2)))/12 -> 10,973 | P44: 8,446 | Q44: =(VLOOKUP(P44*12,'Tax table'!$A$3:$C$10,3)*(P44*12-VLOOKUP(P44*12,'Tax table'!$A$3:$C$10,1))+VLOOKUP(P44*12,'Tax table'!$A$3:$C$10,2))/12 -> 335 | R44: 9,050 | S44: 7,692 | T44: 70.1% | U44: 23,076 | V44: =IF($B$15="Yes",MIN(S44*2,References!$B$7),0) -> 15,384 | W44: =IF(AND(D44<>0,$B$16="Yes"),References!$B$6,0) -> 100,000 | X44: 1,357 | Y44: 7,039 | Z44: 938 | AA44: 7,977 | AB44: 10,793 | AC44: =(M44*12-(VLOOKUP(AB44*12,'Tax table'!$A$3:$C$10,3)*(AB44*12-VLOOKUP(AB44*12,'Tax table'!$A$3:$C$10,1))+VLOOKUP(AB44*12,'Tax table'!$A$3:$C$10,2)))/12 -> 10,973 | AD44: 7,977 | AE44: 72.7%
A45: Member 2257 | B45: 1993-01-05 | C45: M | D45: 112,618 | E45: 80% | F45: 85% | G45: 75% | H45: 10% | J45: 25 | K45: 9,385 | L45: 938 | M45: 11,731 | N45: 10,793 | O45: =(M45*12-(VLOOKUP(N45*12,'Tax table'!$A$3:$C$10,3)*(N45*12-VLOOKUP(N45*12,'Tax table'!$A$3:$C$10,1))+VLOOKUP(N45*12,'Tax table'!$A$3:$C$10,2)))/12 -> 10,973 | P45: 8,446 | Q45: =(VLOOKUP(P45*12,'Tax table'!$A$3:$C$10,3)*(P45*12-VLOOKUP(P45*12,'Tax table'!$A$3:$C$10,1))+VLOOKUP(P45*12,'Tax table'!$A$3:$C$10,2))/12 -> 335 | R45: 9,050 | S45: 7,692 | T45: 70.1% | U45: 23,076 | V45: =IF($B$15="Yes",MIN(S45*2,References!$B$7),0) -> 15,384 | W45: =IF(AND(D45<>0,$B$16="Yes"),References!$B$6,0) -> 100,000 | X45: 1,357 | Y45: 7,039 | Z45: 938 | AA45: 7,977 | AB45: 10,793 | AC45: =(M45*12-(VLOOKUP(AB45*12,'Tax table'!$A$3:$C$10,3)*(AB45*12-VLOOKUP(AB45*12,'Tax table'!$A$3:$C$10,1))+VLOOKUP(AB45*12,'Tax table'!$A$3:$C$10,2)))/12 -> 10,973 | AD45: 7,977 | AE45: 72.7%
A46: Member 2253 | B46: 1974-10-19 | C46: F | D46: 113,831 | E46: 80% | F46: 85% | G46: 75% | H46: 10% | J46: 44 | K46: 9,486 | L46: 949 | M46: 11,857 | N46: 10,909 | O46: =(M46*12-(VLOOKUP(N46*12,'Tax table'!$A$3:$C$10,3)*(N46*12-VLOOKUP(N46*12,'Tax table'!$A$3:$C$10,1))+VLOOKUP(N46*12,'Tax table'!$A$3:$C$10,2)))/12 -> 11,079 | P46: 8,537 | Q46: =(VLOOKUP(P46*12,'Tax table'!$A$3:$C$10,3)*(P46*12-VLOOKUP(P46*12,'Tax table'!$A$3:$C$10,1))+VLOOKUP(P46*12,'Tax table'!$A$3:$C$10,2))/12 -> 352 | R46: 9,134 | S46: 7,764 | T46: 70.1% | U46: 23,292 | V46: =IF($B$15="Yes",MIN(S46*2,References!$B$7),0) -> 15,528 | W46: =IF(AND(D46<>0,$B$16="Yes"),References!$B$6,0) -> 100,000 | X46: 1,370 | Y46: 7,114 | Z46: 949 | AA46: 8,063 | AB46: 10,909 | AC46: =(M46*12-(VLOOKUP(AB46*12,'Tax table'!$A$3:$C$10,3)*(AB46*12-VLOOKUP(AB46*12,'Tax table'!$A$3:$C$10,1))+VLOOKUP(AB46*12,'Tax table'!$A$3:$C$10,2)))/12 -> 11,079 | AD46: 8,063 | AE46: 72.8%
A47: Member 11 | B47: 1958-05-23 | C47: F | D47: 117,638 | E47: 80% | F47: 85% | G47: 75% | H47: 10% | J47: 60 | K47: 9,803 | L47: 980 | M47: 12,254 | N47: 11,274 | O47: =(M47*12-(VLOOKUP(N47*12,'Tax table'!$A$3:$C$10,3)*(N47*12-VLOOKUP(N47*12,'Tax table'!$A$3:$C$10,1))+VLOOKUP(N47*12,'Tax table'!$A$3:$C$10,2)))/12 -> 11,410 | P47: 8,823 | Q47: =(VLOOKUP(P47*12,'Tax table'!$A$3:$C$10,3)*(P47*12-VLOOKUP(P47*12,'Tax table'!$A$3:$C$10,1))+VLOOKUP(P47*12,'Tax table'!$A$3:$C$10,2))/12 -> 403 | R47: 9,400 | S47: 7,990 | T47: 70.0% | U47: 23,970 | V47: =IF($B$15="Yes",MIN(S47*2,References!$B$7),0) -> 15,980 | W47: =IF(AND(D47<>0,$B$16="Yes"),References!$B$6,0) -> 100,000 | X47: 1,410 | Y47: 7,352 | Z47: 980 | AA47: 8,333 | AB47: 11,274 | AC47: =(M47*12-(VLOOKUP(AB47*12,'Tax table'!$A$3:$C$10,3)*(AB47*12-VLOOKUP(AB47*12,'Tax table'!$A$3:$C$10,1))+VLOOKUP(AB47*12,'Tax table'!$A$3:$C$10,2)))/12 -> 11,410 | AD47: 8,333 | AE47: 73.0%
A48: Member 2246 | B48: 1976-12-16 | C48: M | D48: 119,404 | E48: 80% | F48: 85% | G48: 75% | H48: 10% | J48: 41 | K48: 9,950 | L48: 995 | M48: 12,438 | N48: 11,443 | O48: =(M48*12-(VLOOKUP(N48*12,'Tax table'!$A$3:$C$10,3)*(N48*12-VLOOKUP(N48*12,'Tax table'!$A$3:$C$10,1))+VLOOKUP(N48*12,'Tax table'!$A$3:$C$10,2)))/12 -> 11,563 | P48: 8,955 | Q48: =(VLOOKUP(P48*12,'Tax table'!$A$3:$C$10,3)*(P48*12-VLOOKUP(P48*12,'Tax table'!$A$3:$C$10,1))+VLOOKUP(P48*12,'Tax table'!$A$3:$C$10,2))/12 -> 427 | R48: 9,523 | S48: 8,095 | T48: 70.0% | U48: 24,285 | V48: =IF($B$15="Yes",MIN(S48*2,References!$B$7),0) -> 16,190 | W48: =IF(AND(D48<>0,$B$16="Yes"),References!$B$6,0) -> 100,000 | X48: 1,429 | Y48: 7,463 | Z48: 995 | AA48: 8,458 | AB48: 11,443 | AC48: =(M48*12-(VLOOKUP(AB48*12,'Tax table'!$A$3:$C$10,3)*(AB48*12-VLOOKUP(AB48*12,'Tax table'!$A$3:$C$10,1))+VLOOKUP(AB48*12,'Tax table'!$A$3:$C$10,2)))/12 -> 11,563 | AD48: 8,458 | AE48: 73.1%
A49: Member 2247 | B49: 1983-07-01 | C49: M | D49: 119,404 | E49: 80% | F49: 85% | G49: 75% | H49: 10% | J49: 35 | K49: 9,950 | L49: 995 | M49: 12,438 | N49: 11,443 | O49: =(M49*12-(VLOOKUP(N49*12,'Tax table'!$A$3:$C$10,3)*(N49*12-VLOOKUP(N49*12,'Tax table'!$A$3:$C$10,1))+VLOOKUP(N49*12,'Tax table'!$A$3:$C$10,2)))/12 -> 11,563 | P49: 8,955 | Q49: =(VLOOKUP(P49*12,'Tax table'!$A$3:$C$10,3)*(P49*12-VLOOKUP(P49*12,'Tax table'!$A$3:$C$10,1))+VLOOKUP(P49*12,'Tax table'!$A$3:$C$10,2))/12 -> 427 | R49: 9,523 | S49: 8,095 | T49: 70.0% | U49: 24,285 | V49: =IF($B$15="Yes",MIN(S49*2,References!$B$7),0) -> 16,190 | W49: =IF(AND(D49<>0,$B$16="Yes"),References!$B$6,0) -> 100,000 | X49: 1,429 | Y49: 7,463 | Z49: 995 | AA49: 8,458 | AB49: 11,443 | AC49: =(M49*12-(VLOOKUP(AB49*12,'Tax table'!$A$3:$C$10,3)*(AB49*12-VLOOKUP(AB49*12,'Tax table'!$A$3:$C$10,1))+VLOOKUP(AB49*12,'Tax table'!$A$3:$C$10,2)))/12 -> 11,563 | AD49: 8,458 | AE49: 73.1%
A50: Member 2248 | B50: 1962-11-12 | C50: M | D50: 119,404 | E50: 80% | F50: 85% | G50: 75% | H50: 10% | J50: 55 | K50: 9,950 | L50: 995 | M50: 12,438 | N50: 11,443 | O50: =(M50*12-(VLOOKUP(N50*12,'Tax table'!$A$3:$C$10,3)*(N50*12-VLOOKUP(N50*12,'Tax table'!$A$3:$C$10,1))+VLOOKUP(N50*12,'Tax table'!$A$3:$C$10,2)))/12 -> 11,563 | P50: 8,955 | Q50: =(VLOOKUP(P50*12,'Tax table'!$A$3:$C$10,3)*(P50*12-VLOOKUP(P50*12,'Tax table'!$A$3:$C$10,1))+VLOOKUP(P50*12,'Tax table'!$A$3:$C$10,2))/12 -> 427 | R50: 9,523 | S50: 8,095 | T50: 70.0% | U50: 24,285 | V50: =IF($B$15="Yes",MIN(S50*2,References!$B$7),0) -> 16,190 | W50: =IF(AND(D50<>0,$B$16="Yes"),References!$B$6,0) -> 100,000 | X50: 1,429 | Y50: 7,463 | Z50: 995 | AA50: 8,458 | AB50: 11,443 | AC50: =(M50*12-(VLOOKUP(AB50*12,'Tax table'!$A$3:$C$10,3)*(AB50*12-VLOOKUP(AB50*12,'Tax table'!$A$3:$C$10,1))+VLOOKUP(AB50*12,'Tax table'!$A$3:$C$10,2)))/12 -> 11,563 | AD50: 8,458 | AE50: 73.1%
A51: Member 2249 | B51: 1969-07-23 | C51: F | D51: 119,404 | E51: 80% | F51: 85% | G51: 75% | H51: 10% | J51: 49 | K51: 9,950 | L51: 995 | M51: 12,438 | N51: 11,443 | O51: =(M51*12-(VLOOKUP(N51*12,'Tax table'!$A$3:$C$10,3)*(N51*12-VLOOKUP(N51*12,'Tax table'!$A$3:$C$10,1))+VLOOKUP(N51*12,'Tax table'!$A$3:$C$10,2)))/12 -> 11,563 | P51: 8,955 | Q51: =(VLOOKUP(P51*12,'Tax table'!$A$3:$C$10,3)*(P51*12-VLOOKUP(P51*12,'Tax table'!$A$3:$C$10,1))+VLOOKUP(P51*12,'Tax table'!$A$3:$C$10,2))/12 -> 427 | R51: 9,523 | S51: 8,095 | T51: 70.0% | U51: 24,285 | V51: =IF($B$15="Yes",MIN(S51*2,References!$B$7),0) -> 16,190 | W51: =IF(AND(D51<>0,$B$16="Yes"),References!$B$6,0) -> 100,000 | X51: 1,429 | Y51: 7,463 | Z51: 995 | AA51: 8,458 | AB51: 11,443 | AC51: =(M51*12-(VLOOKUP(AB51*12,'Tax table'!$A$3:$C$10,3)*(AB51*12-VLOOKUP(AB51*12,'Tax table'!$A$3:$C$10,1))+VLOOKUP(AB51*12,'Tax table'!$A$3:$C$10,2)))/12 -> 11,563 | AD51: 8,458 | AE51: 73.1%
A52: Member 2250 | B52: 1989-02-01 | C52: M | D52: 119,404 | E52: 80% | F52: 85% | G52: 75% | H52: 10% | J52: 29 | K52: 9,950 | L52: 995 | M52: 12,438 | N52: 11,443 | O52: =(M52*12-(VLOOKUP(N52*12,'Tax table'!$A$3:$C$10,3)*(N52*12-VLOOKUP(N52*12,'Tax table'!$A$3:$C$10,1))+VLOOKUP(N52*12,'Tax table'!$A$3:$C$10,2)))/12 -> 11,563 | P52: 8,955 | Q52: =(VLOOKUP(P52*12,'Tax table'!$A$3:$C$10,3)*(P52*12-VLOOKUP(P52*12,'Tax table'!$A$3:$C$10,1))+VLOOKUP(P52*12,'Tax table'!$A$3:$C$10,2))/12 -> 427 | R52: 9,523 | S52: 8,095 | T52: 70.0% | U52: 24,285 | V52: =IF($B$15="Yes",MIN(S52*2,References!$B$7),0) -> 16,190 | W52: =IF(AND(D52<>0,$B$16="Yes"),References!$B$6,0) -> 100,000 | X52: 1,429 | Y52: 7,463 | Z52: 995 | AA52: 8,458 | AB52: 11,443 | AC52: =(M52*12-(VLOOKUP(AB52*12,'Tax table'!$A$3:$C$10,3)*(AB52*12-VLOOKUP(AB52*12,'Tax table'!$A$3:$C$10,1))+VLOOKUP(AB52*12,'Tax table'!$A$3:$C$10,2)))/12 -> 11,563 | AD52: 8,458 | AE52: 73.1%
A53: Member 2251 | B53: 1981-02-02 | C53: M | D53: 119,404 | E53: 80% | F53: 85% | G53: 75% | H53: 10% | J53: 37 | K53: 9,950 | L53: 995 | M53: 12,438 | N53: 11,443 | O53: =(M53*12-(VLOOKUP(N53*12,'Tax table'!$A$3:$C$10,3)*(N53*12-VLOOKUP(N53*12,'Tax table'!$A$3:$C$10,1))+VLOOKUP(N53*12,'Tax table'!$A$3:$C$10,2)))/12 -> 11,563 | P53: 8,955 | Q53: =(VLOOKUP(P53*12,'Tax table'!$A$3:$C$10,3)*(P53*12-VLOOKUP(P53*12,'Tax table'!$A$3:$C$10,1))+VLOOKUP(P53*12,'Tax table'!$A$3:$C$10,2))/12 -> 427 | R53: 9,523 | S53: 8,095 | T53: 70.0% | U53: 24,285 | V53: =IF($B$15="Yes",MIN(S53*2,References!$B$7),0) -> 16,190 | W53: =IF(AND(D53<>0,$B$16="Yes"),References!$B$6,0) -> 100,000 | X53: 1,429 | Y53: 7,463 | Z53: 995 | AA53: 8,458 | AB53: 11,443 | AC53: =(M53*12-(VLOOKUP(AB53*12,'Tax table'!$A$3:$C$10,3)*(AB53*12-VLOOKUP(AB53*12,'Tax table'!$A$3:$C$10,1))+VLOOKUP(AB53*12,'Tax table'!$A$3:$C$10,2)))/12 -> 11,563 | AD53: 8,458 | AE53: 73.1%
A54: Member 2252 | B54: 1982-09-23 | C54: M | D54: 119,404 | E54: 80% | F54: 85% | G54: 75% | H54: 10% | J54: 36 | K54: 9,950 | L54: 995 | M54: 12,438 | N54: 11,443 | O54: =(M54*12-(VLOOKUP(N54*12,'Tax table'!$A$3:$C$10,3)*(N54*12-VLOOKUP(N54*12,'Tax table'!$A$3:$C$10,1))+VLOOKUP(N54*12,'Tax table'!$A$3:$C$10,2)))/12 -> 11,563 | P54: 8,955 | Q54: =(VLOOKUP(P54*12,'Tax table'!$A$3:$C$10,3)*(P54*12-VLOOKUP(P54*12,'Tax table'!$A$3:$C$10,1))+VLOOKUP(P54*12,'Tax table'!$A$3:$C$10,2))/12 -> 427 | R54: 9,523 | S54: 8,095 | T54: 70.0% | U54: 24,285 | V54: =IF($B$15="Yes",MIN(S54*2,References!$B$7),0) -> 16,190 | W54: =IF(AND(D54<>0,$B$16="Yes"),References!$B$6,0) -> 100,000 | X54: 1,429 | Y54: 7,463 | Z54: 995 | AA54: 8,458 | AB54: 11,443 | AC54: =(M54*12-(VLOOKUP(AB54*12,'Tax table'!$A$3:$C$10,3)*(AB54*12-VLOOKUP(AB54*12,'Tax table'!$A$3:$C$10,1))+VLOOKUP(AB54*12,'Tax table'!$A$3:$C$10,2)))/12 -> 11,563 | AD54: 8,458 | AE54: 73.1%
A55: Member 2245 | B55: 1981-02-07 | C55: M | D55: 119,417 | E55: 80% | F55: 85% | G55: 75% | H55: 10% | J55: 37 | K55: 9,951 | L55: 995 | M55: 12,439 | N55: 11,444 | O55: =(M55*12-(VLOOKUP(N55*12,'Tax table'!$A$3:$C$10,3)*(N55*12-VLOOKUP(N55*12,'Tax table'!$A$3:$C$10,1))+VLOOKUP(N55*12,'Tax table'!$A$3:$C$10,2)))/12 -> 11,564 | P55: 8,956 | Q55: =(VLOOKUP(P55*12,'Tax table'!$A$3:$C$10,3)*(P55*12-VLOOKUP(P55*12,'Tax table'!$A$3:$C$10,1))+VLOOKUP(P55*12,'Tax table'!$A$3:$C$10,2))/12 -> 427 | R55: 9,524 | S55: 8,096 | T55: 70.0% | U55: 24,287 | V55: =IF($B$15="Yes",MIN(S55*2,References!$B$7),0) -> 16,191 | W55: =IF(AND(D55<>0,$B$16="Yes"),References!$B$6,0) -> 100,000 | X55: 1,429 | Y55: 7,464 | Z55: 995 | AA55: 8,459 | AB55: 11,444 | AC55: =(M55*12-(VLOOKUP(AB55*12,'Tax table'!$A$3:$C$10,3)*(AB55*12-VLOOKUP(AB55*12,'Tax table'!$A$3:$C$10,1))+VLOOKUP(AB55*12,'Tax table'!$A$3:$C$10,2)))/12 -> 11,564 | AD55: 8,459 | AE55: 73.1%
A56: Member 2244 | B56: 1981-08-26 | C56: M | D56: 119,528 | E56: 80% | F56: 85% | G56: 75% | H56: 10% | J56: 37 | K56: 9,961 | L56: 996 | M56: 12,451 | N56: 11,455 | O56: =(M56*12-(VLOOKUP(N56*12,'Tax table'!$A$3:$C$10,3)*(N56*12-VLOOKUP(N56*12,'Tax table'!$A$3:$C$10,1))+VLOOKUP(N56*12,'Tax table'!$A$3:$C$10,2)))/12 -> 11,574 | P56: 8,965 | Q56: =(VLOOKUP(P56*12,'Tax table'!$A$3:$C$10,3)*(P56*12-VLOOKUP(P56*12,'Tax table'!$A$3:$C$10,1))+VLOOKUP(P56*12,'Tax table'!$A$3:$C$10,2))/12 -> 429 | R56: 9,532 | S56: 8,102 | T56: 70.0% | U56: 24,307 | V56: =IF($B$15="Yes",MIN(S56*2,References!$B$7),0) -> 16,204 | W56: =IF(AND(D56<>0,$B$16="Yes"),References!$B$6,0) -> 100,000 | X56: 1,430 | Y56: 7,470 | Z56: 996 | AA56: 8,467 | AB56: 11,455 | AC56: =(M56*12-(VLOOKUP(AB56*12,'Tax table'!$A$3:$C$10,3)*(AB56*12-VLOOKUP(AB56*12,'Tax table'!$A$3:$C$10,1))+VLOOKUP(AB56*12,'Tax table'!$A$3:$C$10,2)))/12 -> 11,574 | AD56: 8,467 | AE56: 73.2%
A57: Member 10 | B57: 1954-03-09 | C57: F | D57: 119,944 | E57: 80% | F57: 85% | G57: 75% | H57: 10% | J57: 64 | K57: 9,995 | L57: 1,000 | M57: 12,494 | N57: 11,495 | O57: =(M57*12-(VLOOKUP(N57*12,'Tax table'!$A$3:$C$10,3)*(N57*12-VLOOKUP(N57*12,'Tax table'!$A$3:$C$10,1))+VLOOKUP(N57*12,'Tax table'!$A$3:$C$10,2)))/12 -> 11,610 | P57: 8,996 | Q57: =(VLOOKUP(P57*12,'Tax table'!$A$3:$C$10,3)*(P57*12-VLOOKUP(P57*12,'Tax table'!$A$3:$C$10,1))+VLOOKUP(P57*12,'Tax table'!$A$3:$C$10,2))/12 -> 434 | R57: 9,561 | S57: 8,127 | T57: 70.0% | U57: 24,381 | V57: =IF($B$15="Yes",MIN(S57*2,References!$B$7),0) -> 16,254 | W57: =IF(AND(D57<>0,$B$16="Yes"),References!$B$6,0) -> 100,000 | X57: 1,434 | Y57: 7,497 | Z57: 1,000 | AA57: 8,496 | AB57: 11,495 | AC57: =(M57*12-(VLOOKUP(AB57*12,'Tax table'!$A$3:$C$10,3)*(AB57*12-VLOOKUP(AB57*12,'Tax table'!$A$3:$C$10,1))+VLOOKUP(AB57*12,'Tax table'!$A$3:$C$10,2)))/12 -> 11,610 | AD57: 8,496 | AE57: 73.2%
A58: Member 2243 | B58: 1974-04-09 | C58: F | D58: 122,232 | E58: 80% | F58: 85% | G58: 75% | H58: 10% | J58: 44 | K58: 10,186 | L58: 1,019 | M58: 12,733 | N58: 11,714 | O58: =(M58*12-(VLOOKUP(N58*12,'Tax table'!$A$3:$C$10,3)*(N58*12-VLOOKUP(N58*12,'Tax table'!$A$3:$C$10,1))+VLOOKUP(N58*12,'Tax table'!$A$3:$C$10,2)))/12 -> 11,809 | P58: 9,167 | Q58: =(VLOOKUP(P58*12,'Tax table'!$A$3:$C$10,3)*(P58*12-VLOOKUP(P58*12,'Tax table'!$A$3:$C$10,1))+VLOOKUP(P58*12,'Tax table'!$A$3:$C$10,2))/12 -> 465 | R58: 9,721 | S58: 8,263 | T58: 70.0% | U58: 24,788 | V58: =IF($B$15="Yes",MIN(S58*2,References!$B$7),0) -> 16,526 | W58: =IF(AND(D58<>0,$B$16="Yes"),References!$B$6,0) -> 100,000 | X58: 1,458 | Y58: 7,640 | Z58: 1,019 | AA58: 8,658 | AB58: 11,714 | AC58: =(M58*12-(VLOOKUP(AB58*12,'Tax table'!$A$3:$C$10,3)*(AB58*12-VLOOKUP(AB58*12,'Tax table'!$A$3:$C$10,1))+VLOOKUP(AB58*12,'Tax table'!$A$3:$C$10,2)))/12 -> 11,809 | AD58: 8,658 | AE58: 73.3%
A59: Member 2241 | B59: 1990-04-07 | C59: M | D59: 122,570 | E59: 80% | F59: 85% | G59: 75% | H59: 10% | J59: 28 | K59: 10,214 | L59: 1,021 | M59: 12,768 | N59: 11,746 | O59: =(M59*12-(VLOOKUP(N59*12,'Tax table'!$A$3:$C$10,3)*(N59*12-VLOOKUP(N59*12,'Tax table'!$A$3:$C$10,1))+VLOOKUP(N59*12,'Tax table'!$A$3:$C$10,2)))/12 -> 11,838 | P59: 9,193 | Q59: =(VLOOKUP(P59*12,'Tax table'!$A$3:$C$10,3)*(P59*12-VLOOKUP(P59*12,'Tax table'!$A$3:$C$10,1))+VLOOKUP(P59*12,'Tax table'!$A$3:$C$10,2))/12 -> 470 | R59: 9,744 | S59: 8,283 | T59: 70.0% | U59: 24,848 | V59: =IF($B$15="Yes",MIN(S59*2,References!$B$7),0) -> 16,566 | W59: =IF(AND(D59<>0,$B$16="Yes"),References!$B$6,0) -> 100,000 | X59: 1,462 | Y59: 7,661 | Z59: 1,021 | AA59: 8,682 | AB59: 11,746 | AC59: =(M59*12-(VLOOKUP(AB59*12,'Tax table'!$A$3:$C$10,3)*(AB59*12-VLOOKUP(AB59*12,'Tax table'!$A$3:$C$10,1))+VLOOKUP(AB59*12,'Tax table'!$A$3:$C$10,2)))/12 -> 11,838 | AD59: 8,682 | AE59: 73.3%
A60: Member 2242 | B60: 1990-05-27 | C60: F | D60: 122,570 | E60: 80% | F60: 85% | G60: 75% | H60: 10% | J60: 28 | K60: 10,214 | L60: 1,021 | M60: 12,768 | N60: 11,746 | O60: =(M60*12-(VLOOKUP(N60*12,'Tax table'!$A$3:$C$10,3)*(N60*12-VLOOKUP(N60*12,'Tax table'!$A$3:$C$10,1))+VLOOKUP(N60*12,'Tax table'!$A$3:$C$10,2)))/12 -> 11,838 | P60: 9,193 | Q60: =(VLOOKUP(P60*12,'Tax table'!$A$3:$C$10,3)*(P60*12-VLOOKUP(P60*12,'Tax table'!$A$3:$C$10,1))+VLOOKUP(P60*12,'Tax table'!$A$3:$C$10,2))/12 -> 470 | R60: 9,744 | S60: 8,283 | T60: 70.0% | U60: 24,848 | V60: =IF($B$15="Yes",MIN(S60*2,References!$B$7),0) -> 16,566 | W60: =IF(AND(D60<>0,$B$16="Yes"),References!$B$6,0) -> 100,000 | X60: 1,462 | Y60: 7,661 | Z60: 1,021 | AA60: 8,682 | AB60: 11,746 | AC60: =(M60*12-(VLOOKUP(AB60*12,'Tax table'!$A$3:$C$10,3)*(AB60*12-VLOOKUP(AB60*12,'Tax table'!$A$3:$C$10,1))+VLOOKUP(AB60*12,'Tax table'!$A$3:$C$10,2)))/12 -> 11,838 | AD60: 8,682 | AE60: 73.3%
A61: Member 2240 | B61: 1983-04-28 | C61: M | D61: 122,577 | E61: 80% | F61: 85% | G61: 75% | H61: 10% | J61: 35 | K61: 10,215 | L61: 1,021 | M61: 12,768 | N61: 11,747 | O61: =(M61*12-(VLOOKUP(N61*12,'Tax table'!$A$3:$C$10,3)*(N61*12-VLOOKUP(N61*12,'Tax table'!$A$3:$C$10,1))+VLOOKUP(N61*12,'Tax table'!$A$3:$C$10,2)))/12 -> 11,839 | P61: 9,193 | Q61: =(VLOOKUP(P61*12,'Tax table'!$A$3:$C$10,3)*(P61*12-VLOOKUP(P61*12,'Tax table'!$A$3:$C$10,1))+VLOOKUP(P61*12,'Tax table'!$A$3:$C$10,2))/12 -> 470 | R61: 9,745 | S61: 8,283 | T61: 70.0% | U61: 24,850 | V61: =IF($B$15="Yes",MIN(S61*2,References!$B$7),0) -> 16,566 | W61: =IF(AND(D61<>0,$B$16="Yes"),References!$B$6,0) -> 100,000 | X61: 1,462 | Y61: 7,661 | Z61: 1,021 | AA61: 8,683 | AB61: 11,747 | AC61: =(M61*12-(VLOOKUP(AB61*12,'Tax table'!$A$3:$C$10,3)*(AB61*12-VLOOKUP(AB61*12,'Tax table'!$A$3:$C$10,1))+VLOOKUP(AB61*12,'Tax table'!$A$3:$C$10,2)))/12 -> 11,839 | AD61: 8,683 | AE61: 73.3%
A62: Member 2239 | B62: 1981-04-06 | C62: F | D62: 125,722 | E62: 80% | F62: 85% | G62: 75% | H62: 10% | J62: 37 | K62: 10,477 | L62: 1,048 | M62: 13,096 | N62: 12,048 | O62: =(M62*12-(VLOOKUP(N62*12,'Tax table'!$A$3:$C$10,3)*(N62*12-VLOOKUP(N62*12,'Tax table'!$A$3:$C$10,1))+VLOOKUP(N62*12,'Tax table'!$A$3:$C$10,2)))/12 -> 12,112 | P62: 9,429 | Q62: =(VLOOKUP(P62*12,'Tax table'!$A$3:$C$10,3)*(P62*12-VLOOKUP(P62*12,'Tax table'!$A$3:$C$10,1))+VLOOKUP(P62*12,'Tax table'!$A$3:$C$10,2))/12 -> 512 | R62: 9,965 | S62: 8,470 | T62: 69.9% | U62: 25,410 | V62: =IF($B$15="Yes",MIN(S62*2,References!$B$7),0) -> 16,940 | W62: =IF(AND(D62<>0,$B$16="Yes"),References!$B$6,0) -> 100,000 | X62: 1,495 | Y62: 7,858 | Z62: 1,048 | AA62: 8,905 | AB62: 12,048 | AC62: =(M62*12-(VLOOKUP(AB62*12,'Tax table'!$A$3:$C$10,3)*(AB62*12-VLOOKUP(AB62*12,'Tax table'!$A$3:$C$10,1))+VLOOKUP(AB62*12,'Tax table'!$A$3:$C$10,2)))/12 -> 12,112 | AD62: 8,905 | AE62: 73.5%
A63: Member 2234 | B63: 1962-09-22 | C63: F | D63: 125,722 | E63: 80% | F63: 85% | G63: 75% | H63: 10% | J63: 56 | K63: 10,477 | L63: 1,048 | M63: 13,096 | N63: 12,048 | O63: =(M63*12-(VLOOKUP(N63*12,'Tax table'!$A$3:$C$10,3)*(N63*12-VLOOKUP(N63*12,'Tax table'!$A$3:$C$10,1))+VLOOKUP(N63*12,'Tax table'!$A$3:$C$10,2)))/12 -> 12,112 | P63: 9,429 | Q63: =(VLOOKUP(P63*12,'Tax table'!$A$3:$C$10,3)*(P63*12-VLOOKUP(P63*12,'Tax table'!$A$3:$C$10,1))+VLOOKUP(P63*12,'Tax table'!$A$3:$C$10,2))/12 -> 512 | R63: 9,965 | S63: 8,470 | T63: 69.9% | U63: 25,410 | V63: =IF($B$15="Yes",MIN(S63*2,References!$B$7),0) -> 16,940 | W63: =IF(AND(D63<>0,$B$16="Yes"),References!$B$6,0) -> 100,000 | X63: 1,495 | Y63: 7,858 | Z63: 1,048 | AA63: 8,905 | AB63: 12,048 | AC63: =(M63*12-(VLOOKUP(AB63*12,'Tax table'!$A$3:$C$10,3)*(AB63*12-VLOOKUP(AB63*12,'Tax table'!$A$3:$C$10,1))+VLOOKUP(AB63*12,'Tax table'!$A$3:$C$10,2)))/12 -> 12,112 | AD63: 8,905 | AE63: 73.5%
A64: Member 2235 | B64: 1978-05-23 | C64: M | D64: 125,722 | E64: 80% | F64: 85% | G64: 75% | H64: 10% | J64: 40 | K64: 10,477 | L64: 1,048 | M64: 13,096 | N64: 12,048 | O64: =(M64*12-(VLOOKUP(N64*12,'Tax table'!$A$3:$C$10,3)*(N64*12-VLOOKUP(N64*12,'Tax table'!$A$3:$C$10,1))+VLOOKUP(N64*12,'Tax table'!$A$3:$C$10,2)))/12 -> 12,112 | P64: 9,429 | Q64: =(VLOOKUP(P64*12,'Tax table'!$A$3:$C$10,3)*(P64*12-VLOOKUP(P64*12,'Tax table'!$A$3:$C$10,1))+VLOOKUP(P64*12,'Tax table'!$A$3:$C$10,2))/12 -> 512 | R64: 9,965 | S64: 8,470 | T64: 69.9% | U64: 25,410 | V64: =IF($B$15="Yes",MIN(S64*2,References!$B$7),0) -> 16,940 | W64: =IF(AND(D64<>0,$B$16="Yes"),References!$B$6,0) -> 100,000 | X64: 1,495 | Y64: 7,858 | Z64: 1,048 | AA64: 8,905 | AB64: 12,048 | AC64: =(M64*12-(VLOOKUP(AB64*12,'Tax table'!$A$3:$C$10,3)*(AB64*12-VLOOKUP(AB64*12,'Tax table'!$A$3:$C$10,1))+VLOOKUP(AB64*12,'Tax table'!$A$3:$C$10,2)))/12 -> 12,112 | AD64: 8,905 | AE64: 73.5%
A65: Member 2236 | B65: 1977-10-13 | C65: M | D65: 125,722 | E65: 80% | F65: 85% | G65: 75% | H65: 10% | J65: 41 | K65: 10,477 | L65: 1,048 | M65: 13,096 | N65: 12,048 | O65: =(M65*12-(VLOOKUP(N65*12,'Tax table'!$A$3:$C$10,3)*(N65*12-VLOOKUP(N65*12,'Tax table'!$A$3:$C$10,1))+VLOOKUP(N65*12,'Tax table'!$A$3:$C$10,2)))/12 -> 12,112 | P65: 9,429 | Q65: =(VLOOKUP(P65*12,'Tax table'!$A$3:$C$10,3)*(P65*12-VLOOKUP(P65*12,'Tax table'!$A$3:$C$10,1))+VLOOKUP(P65*12,'Tax table'!$A$3:$C$10,2))/12 -> 512 | R65: 9,965 | S65: 8,470 | T65: 69.9% | U65: 25,410 | V65: =IF($B$15="Yes",MIN(S65*2,References!$B$7),0) -> 16,940 | W65: =IF(AND(D65<>0,$B$16="Yes"),References!$B$6,0) -> 100,000 | X65: 1,495 | Y65: 7,858 | Z65: 1,048 | AA65: 8,905 | AB65: 12,048 | AC65: =(M65*12-(VLOOKUP(AB65*12,'Tax table'!$A$3:$C$10,3)*(AB65*12-VLOOKUP(AB65*12,'Tax table'!$A$3:$C$10,1))+VLOOKUP(AB65*12,'Tax table'!$A$3:$C$10,2)))/12 -> 12,112 | AD65: 8,905 | AE65: 73.5%
A66: Member 2237 | B66: 1975-07-04 | C66: F | D66: 125,722 | E66: 80% | F66: 85% | G66: 75% | H66: 10% | J66: 43 | K66: 10,477 | L66: 1,048 | M66: 13,096 | N66: 12,048 | O66: =(M66*12-(VLOOKUP(N66*12,'Tax table'!$A$3:$C$10,3)*(N66*12-VLOOKUP(N66*12,'Tax table'!$A$3:$C$10,1))+VLOOKUP(N66*12,'Tax table'!$A$3:$C$10,2)))/12 -> 12,112 | P66: 9,429 | Q66: =(VLOOKUP(P66*12,'Tax table'!$A$3:$C$10,3)*(P66*12-VLOOKUP(P66*12,'Tax table'!$A$3:$C$10,1))+VLOOKUP(P66*12,'Tax table'!$A$3:$C$10,2))/12 -> 512 | R66: 9,965 | S66: 8,470 | T66: 69.9% | U66: 25,410 | V66: =IF($B$15="Yes",MIN(S66*2,References!$B$7),0) -> 16,940 | W66: =IF(AND(D66<>0,$B$16="Yes"),References!$B$6,0) -> 100,000 | X66: 1,495 | Y66: 7,858 | Z66: 1,048 | AA66: 8,905 | AB66: 12,048 | AC66: =(M66*12-(VLOOKUP(AB66*12,'Tax table'!$A$3:$C$10,3)*(AB66*12-VLOOKUP(AB66*12,'Tax table'!$A$3:$C$10,1))+VLOOKUP(AB66*12,'Tax table'!$A$3:$C$10,2)))/12 -> 12,112 | AD66: 8,905 | AE66: 73.5%
A67: Member 2238 | B67: 1978-12-04 | C67: F | D67: 125,722 | E67: 80% | F67: 85% | G67: 75% | H67: 10% | J67: 39 | K67: 10,477 | L67: 1,048 | M67: 13,096 | N67: 12,048 | O67: =(M67*12-(VLOOKUP(N67*12,'Tax table'!$A$3:$C$10,3)*(N67*12-VLOOKUP(N67*12,'Tax table'!$A$3:$C$10,1))+VLOOKUP(N67*12,'Tax table'!$A$3:$C$10,2)))/12 -> 12,112 | P67: 9,429 | Q67: =(VLOOKUP(P67*12,'Tax table'!$A$3:$C$10,3)*(P67*12-VLOOKUP(P67*12,'Tax table'!$A$3:$C$10,1))+VLOOKUP(P67*12,'Tax table'!$A$3:$C$10,2))/12 -> 512 | R67: 9,965 | S67: 8,470 | T67: 69.9% | U67: 25,410 | V67: =IF($B$15="Yes",MIN(S67*2,References!$B$7),0) -> 16,940 | W67: =IF(AND(D67<>0,$B$16="Yes"),References!$B$6,0) -> 100,000 | X67: 1,495 | Y67: 7,858 | Z67: 1,048 | AA67: 8,905 | AB67: 12,048 | AC67: =(M67*12-(VLOOKUP(AB67*12,'Tax table'!$A$3:$C$10,3)*(AB67*12-VLOOKUP(AB67*12,'Tax table'!$A$3:$C$10,1))+VLOOKUP(AB67*12,'Tax table'!$A$3:$C$10,2)))/12 -> 12,112 | AD67: 8,905 | AE67: 73.5%
A68: Member 2233 | B68: 1978-01-28 | C68: F | D68: 125,729 | E68: 80% | F68: 85% | G68: 75% | H68: 10% | J68: 40 | K68: 10,477 | L68: 1,048 | M68: 13,097 | N68: 12,049 | O68: =(M68*12-(VLOOKUP(N68*12,'Tax table'!$A$3:$C$10,3)*(N68*12-VLOOKUP(N68*12,'Tax table'!$A$3:$C$10,1))+VLOOKUP(N68*12,'Tax table'!$A$3:$C$10,2)))/12 -> 12,113 | P68: 9,430 | Q68: =(VLOOKUP(P68*12,'Tax table'!$A$3:$C$10,3)*(P68*12-VLOOKUP(P68*12,'Tax table'!$A$3:$C$10,1))+VLOOKUP(P68*12,'Tax table'!$A$3:$C$10,2))/12 -> 512 | R68: 9,965 | S68: 8,470 | T68: 69.9% | U68: 25,411 | V68: =IF($B$15="Yes",MIN(S68*2,References!$B$7),0) -> 16,941 | W68: =IF(AND(D68<>0,$B$16="Yes"),References!$B$6,0) -> 100,000 | X68: 1,495 | Y68: 7,858 | Z68: 1,048 | AA68: 8,906 | AB68: 12,049 | AC68: =(M68*12-(VLOOKUP(AB68*12,'Tax table'!$A$3:$C$10,3)*(AB68*12-VLOOKUP(AB68*12,'Tax table'!$A$3:$C$10,1))+VLOOKUP(AB68*12,'Tax table'!$A$3:$C$10,2)))/12 -> 12,113 | AD68: 8,906 | AE68: 73.5%
A69: Member 2229 | B69: 1988-11-08 | C69: M | D69: 126,762 | E69: 80% | F69: 85% | G69: 75% | H69: 10% | J69: 29 | K69: 10,563 | L69: 1,056 | M69: 13,204 | N69: 12,148 | O69: =(M69*12-(VLOOKUP(N69*12,'Tax table'!$A$3:$C$10,3)*(N69*12-VLOOKUP(N69*12,'Tax table'!$A$3:$C$10,1))+VLOOKUP(N69*12,'Tax table'!$A$3:$C$10,2)))/12 -> 12,203 | P69: 9,507 | Q69: =(VLOOKUP(P69*12,'Tax table'!$A$3:$C$10,3)*(P69*12-VLOOKUP(P69*12,'Tax table'!$A$3:$C$10,1))+VLOOKUP(P69*12,'Tax table'!$A$3:$C$10,2))/12 -> 526 | R69: 10,037 | S69: 8,532 | T69: 69.9% | U69: 25,595 | V69: =IF($B$15="Yes",MIN(S69*2,References!$B$7),0) -> 17,063 | W69: =IF(AND(D69<>0,$B$16="Yes"),References!$B$6,0) -> 100,000 | X69: 1,506 | Y69: 7,923 | Z69: 1,056 | AA69: 8,979 | AB69: 12,148 | AC69: =(M69*12-(VLOOKUP(AB69*12,'Tax table'!$A$3:$C$10,3)*(AB69*12-VLOOKUP(AB69*12,'Tax table'!$A$3:$C$10,1))+VLOOKUP(AB69*12,'Tax table'!$A$3:$C$10,2)))/12 -> 12,203 | AD69: 8,979 | AE69: 73.6%
A70: Member 2230 | B70: 1989-10-09 | C70: F | D70: 126,762 | E70: 80% | F70: 85% | G70: 75% | H70: 10% | J70: 29 | K70: 10,563 | L70: 1,056 | M70: 13,204 | N70: 12,148 | O70: =(M70*12-(VLOOKUP(N70*12,'Tax table'!$A$3:$C$10,3)*(N70*12-VLOOKUP(N70*12,'Tax table'!$A$3:$C$10,1))+VLOOKUP(N70*12,'Tax table'!$A$3:$C$10,2)))/12 -> 12,203 | P70: 9,507 | Q70: =(VLOOKUP(P70*12,'Tax table'!$A$3:$C$10,3)*(P70*12-VLOOKUP(P70*12,'Tax table'!$A$3:$C$10,1))+VLOOKUP(P70*12,'Tax table'!$A$3:$C$10,2))/12 -> 526 | R70: 10,037 | S70: 8,532 | T70: 69.9% | U70: 25,595 | V70: =IF($B$15="Yes",MIN(S70*2,References!$B$7),0) -> 17,063 | W70: =IF(AND(D70<>0,$B$16="Yes"),References!$B$6,0) -> 100,000 | X70: 1,506 | Y70: 7,923 | Z70: 1,056 | AA70: 8,979 | AB70: 12,148 | AC70: =(M70*12-(VLOOKUP(AB70*12,'Tax table'!$A$3:$C$10,3)*(AB70*12-VLOOKUP(AB70*12,'Tax table'!$A$3:$C$10,1))+VLOOKUP(AB70*12,'Tax table'!$A$3:$C$10,2)))/12 -> 12,203 | AD70: 8,979 | AE70: 73.6%
A71: Member 2231 | B71: 1983-01-03 | C71: F | D71: 126,762 | E71: 80% | F71: 85% | G71: 75% | H71: 10% | J71: 35 | K71: 10,563 | L71: 1,056 | M71: 13,204 | N71: 12,148 | O71: =(M71*12-(VLOOKUP(N71*12,'Tax table'!$A$3:$C$10,3)*(N71*12-VLOOKUP(N71*12,'Tax table'!$A$3:$C$10,1))+VLOOKUP(N71*12,'Tax table'!$A$3:$C$10,2)))/12 -> 12,203 | P71: 9,507 | Q71: =(VLOOKUP(P71*12,'Tax table'!$A$3:$C$10,3)*(P71*12-VLOOKUP(P71*12,'Tax table'!$A$3:$C$10,1))+VLOOKUP(P71*12,'Tax table'!$A$3:$C$10,2))/12 -> 526 | R71: 10,037 | S71: 8,532 | T71: 69.9% | U71: 25,595 | V71: =IF($B$15="Yes",MIN(S71*2,References!$B$7),0) -> 17,063 | W71: =IF(AND(D71<>0,$B$16="Yes"),References!$B$6,0) -> 100,000 | X71: 1,506 | Y71: 7,923 | Z71: 1,056 | AA71: 8,979 | AB71: 12,148 | AC71: =(M71*12-(VLOOKUP(AB71*12,'Tax table'!$A$3:$C$10,3)*(AB71*12-VLOOKUP(AB71*12,'Tax table'!$A$3:$C$10,1))+VLOOKUP(AB71*12,'Tax table'!$A$3:$C$10,2)))/12 -> 12,203 | AD71: 8,979 | AE71: 73.6%
A72: Member 2232 | B72: 1977-05-20 | C72: M | D72: 126,762 | E72: 80% | F72: 85% | G72: 75% | H72: 10% | J72: 41 | K72: 10,563 | L72: 1,056 | M72: 13,204 | N72: 12,148 | O72: =(M72*12-(VLOOKUP(N72*12,'Tax table'!$A$3:$C$10,3)*(N72*12-VLOOKUP(N72*12,'Tax table'!$A$3:$C$10,1))+VLOOKUP(N72*12,'Tax table'!$A$3:$C$10,2)))/12 -> 12,203 | P72: 9,507 | Q72: =(VLOOKUP(P72*12,'Tax table'!$A$3:$C$10,3)*(P72*12-VLOOKUP(P72*12,'Tax table'!$A$3:$C$10,1))+VLOOKUP(P72*12,'Tax table'!$A$3:$C$10,2))/12 -> 526 | R72: 10,037 | S72: 8,532 | T72: 69.9% | U72: 25,595 | V72: =IF($B$15="Yes",MIN(S72*2,References!$B$7),0) -> 17,063 | W72: =IF(AND(D72<>0,$B$16="Yes"),References!$B$6,0) -> 100,000 | X72: 1,506 | Y72: 7,923 | Z72: 1,056 | AA72: 8,979 | AB72: 12,148 | AC72: =(M72*12-(VLOOKUP(AB72*12,'Tax table'!$A$3:$C$10,3)*(AB72*12-VLOOKUP(AB72*12,'Tax table'!$A$3:$C$10,1))+VLOOKUP(AB72*12,'Tax table'!$A$3:$C$10,2)))/12 -> 12,203 | AD72: 8,979 | AE72: 73.6%
A73: Member 2228 | B73: 1983-12-29 | C73: M | D73: 127,152 | E73: 80% | F73: 85% | G73: 75% | H73: 10% | J73: 34 | K73: 10,596 | L73: 1,060 | M73: 13,245 | N73: 12,185 | O73: =(M73*12-(VLOOKUP(N73*12,'Tax table'!$A$3:$C$10,3)*(N73*12-VLOOKUP(N73*12,'Tax table'!$A$3:$C$10,1))+VLOOKUP(N73*12,'Tax table'!$A$3:$C$10,2)))/12 -> 12,237 | P73: 9,536 | Q73: =(VLOOKUP(P73*12,'Tax table'!$A$3:$C$10,3)*(P73*12-VLOOKUP(P73*12,'Tax table'!$A$3:$C$10,1))+VLOOKUP(P73*12,'Tax table'!$A$3:$C$10,2))/12 -> 532 | R73: 10,064 | S73: 8,555 | T73: 69.9% | U73: 25,664 | V73: =IF($B$15="Yes",MIN(S73*2,References!$B$7),0) -> 17,110 | W73: =IF(AND(D73<>0,$B$16="Yes"),References!$B$6,0) -> 100,000 | X73: 1,510 | Y73: 7,947 | Z73: 1,060 | AA73: 9,007 | AB73: 12,185 | AC73: =(M73*12-(VLOOKUP(AB73*12,'Tax table'!$A$3:$C$10,3)*(AB73*12-VLOOKUP(AB73*12,'Tax table'!$A$3:$C$10,1))+VLOOKUP(AB73*12,'Tax table'!$A$3:$C$10,2)))/12 -> 12,237 | AD73: 9,007 | AE73: 73.6%
A74: Member 9 | B74: 1957-04-23 | C74: F | D74: 127,338 | E74: 80% | F74: 85% | G74: 75% | H74: 10% | J74: 61 | K74: 10,612 | L74: 1,061 | M74: 13,264 | N74: 12,203 | O74: =(M74*12-(VLOOKUP(N74*12,'Tax table'!$A$3:$C$10,3)*(N74*12-VLOOKUP(N74*12,'Tax table'!$A$3:$C$10,1))+VLOOKUP(N74*12,'Tax table'!$A$3:$C$10,2)))/12 -> 12,253 | P74: 9,550 | Q74: =(VLOOKUP(P74*12,'Tax table'!$A$3:$C$10,3)*(P74*12-VLOOKUP(P74*12,'Tax table'!$A$3:$C$10,1))+VLOOKUP(P74*12,'Tax table'!$A$3:$C$10,2))/12 -> 534 | R74: 10,077 | S74: 8,566 | T74: 69.9% | U74: 25,697 | V74: =IF($B$15="Yes",MIN(S74*2,References!$B$7),0) -> 17,132 | W74: =IF(AND(D74<>0,$B$16="Yes"),References!$B$6,0) -> 100,000 | X74: 1,512 | Y74: 7,959 | Z74: 1,061 | AA74: 9,020 | AB74: 12,203 | AC74: =(M74*12-(VLOOKUP(AB74*12,'Tax table'!$A$3:$C$10,3)*(AB74*12-VLOOKUP(AB74*12,'Tax table'!$A$3:$C$10,1))+VLOOKUP(AB74*12,'Tax table'!$A$3:$C$10,2)))/12 -> 12,253 | AD74: 9,020 | AE74: 73.6%
A75: Member 2227 | B75: 1982-01-03 | C75: M | D75: 129,543 | E75: 80% | F75: 85% | G75: 75% | H75: 10% | J75: 36 | K75: 10,795 | L75: 1,080 | M75: 13,494 | N75: 12,415 | O75: =(M75*12-(VLOOKUP(N75*12,'Tax table'!$A$3:$C$10,3)*(N75*12-VLOOKUP(N75*12,'Tax table'!$A$3:$C$10,1))+VLOOKUP(N75*12,'Tax table'!$A$3:$C$10,2)))/12 -> 12,444 | P75: 9,716 | Q75: =(VLOOKUP(P75*12,'Tax table'!$A$3:$C$10,3)*(P75*12-VLOOKUP(P75*12,'Tax table'!$A$3:$C$10,1))+VLOOKUP(P75*12,'Tax table'!$A$3:$C$10,2))/12 -> 564 | R75: 10,231 | S75: 8,697 | T75: 69.9% | U75: 26,090 | V75: =IF($B$15="Yes",MIN(S75*2,References!$B$7),0) -> 17,393 | W75: =IF(AND(D75<>0,$B$16="Yes"),References!$B$6,0) -> 100,000 | X75: 1,535 | Y75: 8,096 | Z75: 1,080 | AA75: 9,176 | AB75: 12,415 | AC75: =(M75*12-(VLOOKUP(AB75*12,'Tax table'!$A$3:$C$10,3)*(AB75*12-VLOOKUP(AB75*12,'Tax table'!$A$3:$C$10,1))+VLOOKUP(AB75*12,'Tax table'!$A$3:$C$10,2)))/12 -> 12,444 | AD75: 9,176 | AE75: 73.7%
A76: Member 2225 | B76: 1987-02-22 | C76: M | D76: 129,948 | E76: 80% | F76: 85% | G76: 75% | H76: 10% | J76: 31 | K76: 10,829 | L76: 1,083 | M76: 13,536 | N76: 12,453 | O76: =(M76*12-(VLOOKUP(N76*12,'Tax table'!$A$3:$C$10,3)*(N76*12-VLOOKUP(N76*12,'Tax table'!$A$3:$C$10,1))+VLOOKUP(N76*12,'Tax table'!$A$3:$C$10,2)))/12 -> 12,480 | P76: 9,746 | Q76: =(VLOOKUP(P76*12,'Tax table'!$A$3:$C$10,3)*(P76*12-VLOOKUP(P76*12,'Tax table'!$A$3:$C$10,1))+VLOOKUP(P76*12,'Tax table'!$A$3:$C$10,2))/12 -> 569 | R76: 10,260 | S76: 8,721 | T76: 69.9% | U76: 26,162 | V76: =IF($B$15="Yes",MIN(S76*2,References!$B$7),0) -> 17,441 | W76: =IF(AND(D76<>0,$B$16="Yes"),References!$B$6,0) -> 100,000 | X76: 1,539 | Y76: 8,122 | Z76: 1,083 | AA76: 9,205 | AB76: 12,453 | AC76: =(M76*12-(VLOOKUP(AB76*12,'Tax table'!$A$3:$C$10,3)*(AB76*12-VLOOKUP(AB76*12,'Tax table'!$A$3:$C$10,1))+VLOOKUP(AB76*12,'Tax table'!$A$3:$C$10,2)))/12 -> 12,480 | AD76: 9,205 | AE76: 73.8%
A77: Member 2226 | B77: 1977-02-25 | C77: F | D77: 129,948 | E77: 80% | F77: 85% | G77: 75% | H77: 10% | J77: 41 | K77: 10,829 | L77: 1,083 | M77: 13,536 | N77: 12,453 | O77: =(M77*12-(VLOOKUP(N77*12,'Tax table'!$A$3:$C$10,3)*(N77*12-VLOOKUP(N77*12,'Tax table'!$A$3:$C$10,1))+VLOOKUP(N77*12,'Tax table'!$A$3:$C$10,2)))/12 -> 12,480 | P77: 9,746 | Q77: =(VLOOKUP(P77*12,'Tax table'!$A$3:$C$10,3)*(P77*12-VLOOKUP(P77*12,'Tax table'!$A$3:$C$10,1))+VLOOKUP(P77*12,'Tax table'!$A$3:$C$10,2))/12 -> 569 | R77: 10,260 | S77: 8,721 | T77: 69.9% | U77: 26,162 | V77: =IF($B$15="Yes",MIN(S77*2,References!$B$7),0) -> 17,441 | W77: =IF(AND(D77<>0,$B$16="Yes"),References!$B$6,0) -> 100,000 | X77: 1,539 | Y77: 8,122 | Z77: 1,083 | AA77: 9,205 | AB77: 12,453 | AC77: =(M77*12-(VLOOKUP(AB77*12,'Tax table'!$A$3:$C$10,3)*(AB77*12-VLOOKUP(AB77*12,'Tax table'!$A$3:$C$10,1))+VLOOKUP(AB77*12,'Tax table'!$A$3:$C$10,2)))/12 -> 12,480 | AD77: 9,205 | AE77: 73.8%
A78: Member 2220 | B78: 1972-07-23 | C78: M | D78: 130,596 | E78: 80% | F78: 85% | G78: 75% | H78: 10% | J78: 46 | K78: 10,883 | L78: 1,088 | M78: 13,604 | N78: 12,515 | O78: =(M78*12-(VLOOKUP(N78*12,'Tax table'!$A$3:$C$10,3)*(N78*12-VLOOKUP(N78*12,'Tax table'!$A$3:$C$10,1))+VLOOKUP(N78*12,'Tax table'!$A$3:$C$10,2)))/12 -> 12,536 | P78: 9,795 | Q78: =(VLOOKUP(P78*12,'Tax table'!$A$3:$C$10,3)*(P78*12-VLOOKUP(P78*12,'Tax table'!$A$3:$C$10,1))+VLOOKUP(P78*12,'Tax table'!$A$3:$C$10,2))/12 -> 578 | R78: 10,305 | S78: 8,759 | T78: 69.9% | U78: 26,278 | V78: =IF($B$15="Yes",MIN(S78*2,References!$B$7),0) -> 17,518 | W78: =IF(AND(D78<>0,$B$16="Yes"),References!$B$6,0) -> 100,000 | X78: 1,546 | Y78: 8,162 | Z78: 1,088 | AA78: 9,251 | AB78: 12,515 | AC78: =(M78*12-(VLOOKUP(AB78*12,'Tax table'!$A$3:$C$10,3)*(AB78*12-VLOOKUP(AB78*12,'Tax table'!$A$3:$C$10,1))+VLOOKUP(AB78*12,'Tax table'!$A$3:$C$10,2)))/12 -> 12,536 | AD78: 9,251 | AE78: 73.8%
A79: Member 2221 | B79: 1986-10-03 | C79: M | D79: 130,596 | E79: 80% | F79: 85% | G79: 75% | H79: 10% | J79: 32 | K79: 10,883 | L79: 1,088 | M79: 13,604 | N79: 12,515 | O79: =(M79*12-(VLOOKUP(N79*12,'Tax table'!$A$3:$C$10,3)*(N79*12-VLOOKUP(N79*12,'Tax table'!$A$3:$C$10,1))+VLOOKUP(N79*12,'Tax table'!$A$3:$C$10,2)))/12 -> 12,536 | P79: 9,795 | Q79: =(VLOOKUP(P79*12,'Tax table'!$A$3:$C$10,3)*(P79*12-VLOOKUP(P79*12,'Tax table'!$A$3:$C$10,1))+VLOOKUP(P79*12,'Tax table'!$A$3:$C$10,2))/12 -> 578 | R79: 10,305 | S79: 8,759 | T79: 69.9% | U79: 26,278 | V79: =IF($B$15="Yes",MIN(S79*2,References!$B$7),0) -> 17,518 | W79: =IF(AND(D79<>0,$B$16="Yes"),References!$B$6,0) -> 100,000 | X79: 1,546 | Y79: 8,162 | Z79: 1,088 | AA79: 9,251 | AB79: 12,515 | AC79: =(M79*12-(VLOOKUP(AB79*12,'Tax table'!$A$3:$C$10,3)*(AB79*12-VLOOKUP(AB79*12,'Tax table'!$A$3:$C$10,1))+VLOOKUP(AB79*12,'Tax table'!$A$3:$C$10,2)))/12 -> 12,536 | AD79: 9,251 | AE79: 73.8%
A80: Member 2222 | B80: 1994-11-29 | C80: M | D80: 130,596 | E80: 80% | F80: 85% | G80: 75% | H80: 10% | J80: 23 | K80: 10,883 | L80: 1,088 | M80: 13,604 | N80: 12,515 | O80: =(M80*12-(VLOOKUP(N80*12,'Tax table'!$A$3:$C$10,3)*(N80*12-VLOOKUP(N80*12,'Tax table'!$A$3:$C$10,1))+VLOOKUP(N80*12,'Tax table'!$A$3:$C$10,2)))/12 -> 12,536 | P80: 9,795 | Q80: =(VLOOKUP(P80*12,'Tax table'!$A$3:$C$10,3)*(P80*12-VLOOKUP(P80*12,'Tax table'!$A$3:$C$10,1))+VLOOKUP(P80*12,'Tax table'!$A$3:$C$10,2))/12 -> 578 | R80: 10,305 | S80: 8,759 | T80: 69.9% | U80: 26,278 | V80: =IF($B$15="Yes",MIN(S80*2,References!$B$7),0) -> 17,518 | W80: =IF(AND(D80<>0,$B$16="Yes"),References!$B$6,0) -> 100,000 | X80: 1,546 | Y80: 8,162 | Z80: 1,088 | AA80: 9,251 | AB80: 12,515 | AC80: =(M80*12-(VLOOKUP(AB80*12,'Tax table'!$A$3:$C$10,3)*(AB80*12-VLOOKUP(AB80*12,'Tax table'!$A$3:$C$10,1))+VLOOKUP(AB80*12,'Tax table'!$A$3:$C$10,2)))/12 -> 12,536 | AD80: 9,251 | AE80: 73.8%
A81: Member 2223 | B81: 1983-08-17 | C81: M | D81: 130,596 | E81: 80% | F81: 85% | G81: 75% | H81: 10% | J81: 35 | K81: 10,883 | L81: 1,088 | M81: 13,604 | N81: 12,515 | O81: =(M81*12-(VLOOKUP(N81*12,'Tax table'!$A$3:$C$10,3)*(N81*12-VLOOKUP(N81*12,'Tax table'!$A$3:$C$10,1))+VLOOKUP(N81*12,'Tax table'!$A$3:$C$10,2)))/12 -> 12,536 | P81: 9,795 | Q81: =(VLOOKUP(P81*12,'Tax table'!$A$3:$C$10,3)*(P81*12-VLOOKUP(P81*12,'Tax table'!$A$3:$C$10,1))+VLOOKUP(P81*12,'Tax table'!$A$3:$C$10,2))/12 -> 578 | R81: 10,305 | S81: 8,759 | T81: 69.9% | U81: 26,278 | V81: =IF($B$15="Yes",MIN(S81*2,References!$B$7),0) -> 17,518 | W81: =IF(AND(D81<>0,$B$16="Yes"),References!$B$6,0) -> 100,000 | X81: 1,546 | Y81: 8,162 | Z81: 1,088 | AA81: 9,251 | AB81: 12,515 | AC81: =(M81*12-(VLOOKUP(AB81*12,'Tax table'!$A$3:$C$10,3)*(AB81*12-VLOOKUP(AB81*12,'Tax table'!$A$3:$C$10,1))+VLOOKUP(AB81*12,'Tax table'!$A$3:$C$10,2)))/12 -> 12,536 | AD81: 9,251 | AE81: 73.8%
A82: Member 2224 | B82: 1982-11-30 | C82: M | D82: 130,596 | E82: 80% | F82: 85% | G82: 75% | H82: 10% | J82: 35 | K82: 10,883 | L82: 1,088 | M82: 13,604 | N82: 12,515 | O82: =(M82*12-(VLOOKUP(N82*12,'Tax table'!$A$3:$C$10,3)*(N82*12-VLOOKUP(N82*12,'Tax table'!$A$3:$C$10,1))+VLOOKUP(N82*12,'Tax table'!$A$3:$C$10,2)))/12 -> 12,536 | P82: 9,795 | Q82: =(VLOOKUP(P82*12,'Tax table'!$A$3:$C$10,3)*(P82*12-VLOOKUP(P82*12,'Tax table'!$A$3:$C$10,1))+VLOOKUP(P82*12,'Tax table'!$A$3:$C$10,2))/12 -> 578 | R82: 10,305 | S82: 8,759 | T82: 69.9% | U82: 26,278 | V82: =IF($B$15="Yes",MIN(S82*2,References!$B$7),0) -> 17,518 | W82: =IF(AND(D82<>0,$B$16="Yes"),References!$B$6,0) -> 100,000 | X82: 1,546 | Y82: 8,162 | Z82: 1,088 | AA82: 9,251 | AB82: 12,515 | AC82: =(M82*12-(VLOOKUP(AB82*12,'Tax table'!$A$3:$C$10,3)*(AB82*12-VLOOKUP(AB82*12,'Tax table'!$A$3:$C$10,1))+VLOOKUP(AB82*12,'Tax table'!$A$3:$C$10,2)))/12 -> 12,536 | AD82: 9,251 | AE82: 73.8%
A83: Member 2219 | B83: 1980-05-11 | C83: M | D83: 130,835 | E83: 80% | F83: 85% | G83: 75% | H83: 10% | J83: 38 | K83: 10,903 | L83: 1,090 | M83: 13,629 | N83: 12,538 | O83: =(M83*12-(VLOOKUP(N83*12,'Tax table'!$A$3:$C$10,3)*(N83*12-VLOOKUP(N83*12,'Tax table'!$A$3:$C$10,1))+VLOOKUP(N83*12,'Tax table'!$A$3:$C$10,2)))/12 -> 12,557 | P83: 9,813 | Q83: =(VLOOKUP(P83*12,'Tax table'!$A$3:$C$10,3)*(P83*12-VLOOKUP(P83*12,'Tax table'!$A$3:$C$10,1))+VLOOKUP(P83*12,'Tax table'!$A$3:$C$10,2))/12 -> 581 | R83: 10,322 | S83: 8,773 | T83: 69.9% | U83: 26,320 | V83: =IF($B$15="Yes",MIN(S83*2,References!$B$7),0) -> 17,547 | W83: =IF(AND(D83<>0,$B$16="Yes"),References!$B$6,0) -> 100,000 | X83: 1,548 | Y83: 8,177 | Z83: 1,090 | AA83: 9,267 | AB83: 12,538 | AC83: =(M83*12-(VLOOKUP(AB83*12,'Tax table'!$A$3:$C$10,3)*(AB83*12-VLOOKUP(AB83*12,'Tax table'!$A$3:$C$10,1))+VLOOKUP(AB83*12,'Tax table'!$A$3:$C$10,2)))/12 -> 12,557 | AD83: 9,267 | AE83: 73.8%
A84: Member 2215 | B84: 1978-12-25 | C84: M | D84: 131,234 | E84: 80% | F84: 85% | G84: 75% | H84: 10% | J84: 39 | K84: 10,936 | L84: 1,094 | M84: 13,670 | N84: 12,577 | O84: =(M84*12-(VLOOKUP(N84*12,'Tax table'!$A$3:$C$10,3)*(N84*12-VLOOKUP(N84*12,'Tax table'!$A$3:$C$10,1))+VLOOKUP(N84*12,'Tax table'!$A$3:$C$10,2)))/12 -> 12,591 | P84: 9,843 | Q84: =(VLOOKUP(P84*12,'Tax table'!$A$3:$C$10,3)*(P84*12-VLOOKUP(P84*12,'Tax table'!$A$3:$C$10,1))+VLOOKUP(P84*12,'Tax table'!$A$3:$C$10,2))/12 -> 587 | R84: 10,350 | S84: 8,797 | T84: 69.9% | U84: 26,391 | V84: =IF($B$15="Yes",MIN(S84*2,References!$B$7),0) -> 17,594 | W84: =IF(AND(D84<>0,$B$16="Yes"),References!$B$6,0) -> 100,000 | X84: 1,552 | Y84: 8,202 | Z84: 1,094 | AA84: 9,296 | AB84: 12,577 | AC84: =(M84*12-(VLOOKUP(AB84*12,'Tax table'!$A$3:$C$10,3)*(AB84*12-VLOOKUP(AB84*12,'Tax table'!$A$3:$C$10,1))+VLOOKUP(AB84*12,'Tax table'!$A$3:$C$10,2)))/12 -> 12,591 | AD84: 9,296 | AE84: 73.8%
A85: Member 2216 | B85: 1976-07-28 | C85: M | D85: 131,234 | E85: 80% | F85: 85% | G85: 75% | H85: 10% | J85: 42 | K85: 10,936 | L85: 1,094 | M85: 13,670 | N85: 12,577 | O85: =(M85*12-(VLOOKUP(N85*12,'Tax table'!$A$3:$C$10,3)*(N85*12-VLOOKUP(N85*12,'Tax table'!$A$3:$C$10,1))+VLOOKUP(N85*12,'Tax table'!$A$3:$C$10,2)))/12 -> 12,591 | P85: 9,843 | Q85: =(VLOOKUP(P85*12,'Tax table'!$A$3:$C$10,3)*(P85*12-VLOOKUP(P85*12,'Tax table'!$A$3:$C$10,1))+VLOOKUP(P85*12,'Tax table'!$A$3:$C$10,2))/12 -> 587 | R85: 10,350 | S85: 8,797 | T85: 69.9% | U85: 26,391 | V85: =IF($B$15="Yes",MIN(S85*2,References!$B$7),0) -> 17,594 | W85: =IF(AND(D85<>0,$B$16="Yes"),References!$B$6,0) -> 100,000 | X85: 1,552 | Y85: 8,202 | Z85: 1,094 | AA85: 9,296 | AB85: 12,577 | AC85: =(M85*12-(VLOOKUP(AB85*12,'Tax table'!$A$3:$C$10,3)*(AB85*12-VLOOKUP(AB85*12,'Tax table'!$A$3:$C$10,1))+VLOOKUP(AB85*12,'Tax table'!$A$3:$C$10,2)))/12 -> 12,591 | AD85: 9,296 | AE85: 73.8%
A86: Member 2217 | B86: 1980-09-08 | C86: M | D86: 131,234 | E86: 80% | F86: 85% | G86: 75% | H86: 10% | J86: 38 | K86: 10,936 | L86: 1,094 | M86: 13,670 | N86: 12,577 | O86: =(M86*12-(VLOOKUP(N86*12,'Tax table'!$A$3:$C$10,3)*(N86*12-VLOOKUP(N86*12,'Tax table'!$A$3:$C$10,1))+VLOOKUP(N86*12,'Tax table'!$A$3:$C$10,2)))/12 -> 12,591 | P86: 9,843 | Q86: =(VLOOKUP(P86*12,'Tax table'!$A$3:$C$10,3)*(P86*12-VLOOKUP(P86*12,'Tax table'!$A$3:$C$10,1))+VLOOKUP(P86*12,'Tax table'!$A$3:$C$10,2))/12 -> 587 | R86: 10,350 | S86: 8,797 | T86: 69.9% | U86: 26,391 | V86: =IF($B$15="Yes",MIN(S86*2,References!$B$7),0) -> 17,594 | W86: =IF(AND(D86<>0,$B$16="Yes"),References!$B$6,0) -> 100,000 | X86: 1,552 | Y86: 8,202 | Z86: 1,094 | AA86: 9,296 | AB86: 12,577 | AC86: =(M86*12-(VLOOKUP(AB86*12,'Tax table'!$A$3:$C$10,3)*(AB86*12-VLOOKUP(AB86*12,'Tax table'!$A$3:$C$10,1))+VLOOKUP(AB86*12,'Tax table'!$A$3:$C$10,2)))/12 -> 12,591 | AD86: 9,296 | AE86: 73.8%
A87: Member 2218 | B87: 1987-09-11 | C87: M | D87: 131,234 | E87: 80% | F87: 85% | G87: 75% | H87: 10% | J87: 31 | K87: 10,936 | L87: 1,094 | M87: 13,670 | N87: 12,577 | O87: =(M87*12-(VLOOKUP(N87*12,'Tax table'!$A$3:$C$10,3)*(N87*12-VLOOKUP(N87*12,'Tax table'!$A$3:$C$10,1))+VLOOKUP(N87*12,'Tax table'!$A$3:$C$10,2)))/12 -> 12,591 | P87: 9,843 | Q87: =(VLOOKUP(P87*12,'Tax table'!$A$3:$C$10,3)*(P87*12-VLOOKUP(P87*12,'Tax table'!$A$3:$C$10,1))+VLOOKUP(P87*12,'Tax table'!$A$3:$C$10,2))/12 -> 587 | R87: 10,350 | S87: 8,797 | T87: 69.9% | U87: 26,391 | V87: =IF($B$15="Yes",MIN(S87*2,References!$B$7),0) -> 17,594 | W87: =IF(AND(D87<>0,$B$16="Yes"),References!$B$6,0) -> 100,000 | X87: 1,552 | Y87: 8,202 | Z87: 1,094 | AA87: 9,296 | AB87: 12,577 | AC87: =(M87*12-(VLOOKUP(AB87*12,'Tax table'!$A$3:$C$10,3)*(AB87*12-VLOOKUP(AB87*12,'Tax table'!$A$3:$C$10,1))+VLOOKUP(AB87*12,'Tax table'!$A$3:$C$10,2)))/12 -> 12,591 | AD87: 9,296 | AE87: 73.8%
A88: Member 2214 | B88: 1965-10-18 | C88: F | D88: 132,016 | E88: 80% | F88: 85% | G88: 75% | H88: 10% | J88: =DATEDIF(B88,$B$7,"y") -> 53 | K88: =D88/12 -> 11,001 | L88: =IF($B$10="No",MIN(K88*H88,15%*K88),I88/12) -> 1,100 | M88: =D88/12/E88 -> 13,752 | N88: =M88-L88 -> 12,651 | O88: =(M88*12-(VLOOKUP(N88*12,'Tax table'!$A$3:$C$10,3)*(N88*12-VLOOKUP(N88*12,'Tax table'!$A$3:$C$10,1))+VLOOKUP(N88*12,'Tax table'!$A$3:$C$10,2)))/12 -> 12,659 | P88: =K88-L88 -> 9,901 | Q88: =(VLOOKUP(P88*12,'Tax table'!$A$3:$C$10,3)*(P88*12-VLOOKUP(P88*12,'Tax table'!$A$3:$C$10,1))+VLOOKUP(P88*12,'Tax table'!$A$3:$C$10,2))/12 -> 597 | R88: =K88-Q88 -> 10,404 | S88: =MIN(R88*F88,SUM($B$8,$B$9)) -> 8,843 | T88: =S88/O88 -> 69.9% | U88: =IF($B$14="Yes",S88*3,0) -> 26,530 | V88: =IF($B$15="Yes",MIN(S88*2,References!$B$7),0) -> 17,687 | W88: =IF(AND(D88<>0,$B$16="Yes"),References!$B$6,0) -> 100,000 | X88: =IF($B$17="Yes",MIN(R88,SUM($B$8:$B$9))-S88,0) -> 1,561 | Y88: =MIN(K88*G88,$B$8) -> 8,251 | Z88: =MIN(K88*H88,$B$9) -> 1,100 | AA88: =Z88+Y88 -> 9,351 | AB88: =M88-Z88 -> 12,651 | AC88: =(M88*12-(VLOOKUP(AB88*12,'Tax table'!$A$3:$C$10,3)*(AB88*12-VLOOKUP(AB88*12,'Tax table'!$A$3:$C$10,1))+VLOOKUP(AB88*12,'Tax table'!$A$3:$C$10,2)))/12 -> 12,659 | AD88: =MIN(AA88,AC88) -> 9,351 | AE88: =AD88/O88 -> 73.9%
A89: Member 2211 | B89: 1965-07-13 | C89: F | D89: 132,029 | E89: 80% | F89: 85% | G89: 75% | H89: 10% | J89: 53 | K89: 11,002 | L89: 1,100 | M89: 13,753 | N89: 12,653 | O89: =(M89*12-(VLOOKUP(N89*12,'Tax table'!$A$3:$C$10,3)*(N89*12-VLOOKUP(N89*12,'Tax table'!$A$3:$C$10,1))+VLOOKUP(N89*12,'Tax table'!$A$3:$C$10,2)))/12 -> 12,660 | P89: 9,902 | Q89: =(VLOOKUP(P89*12,'Tax table'!$A$3:$C$10,3)*(P89*12-VLOOKUP(P89*12,'Tax table'!$A$3:$C$10,1))+VLOOKUP(P89*12,'Tax table'!$A$3:$C$10,2))/12 -> 597 | R89: 10,405 | S89: 8,844 | T89: 69.9% | U89: 26,533 | V89: =IF($B$15="Yes",MIN(S89*2,References!$B$7),0) -> 17,689 | W89: =IF(AND(D89<>0,$B$16="Yes"),References!$B$6,0) -> 100,000 | X89: 1,561 | Y89: 8,252 | Z89: 1,100 | AA89: 9,352 | AB89: 12,653 | AC89: =(M89*12-(VLOOKUP(AB89*12,'Tax table'!$A$3:$C$10,3)*(AB89*12-VLOOKUP(AB89*12,'Tax table'!$A$3:$C$10,1))+VLOOKUP(AB89*12,'Tax table'!$A$3:$C$10,2)))/12 -> 12,660 | AD89: 9,352 | AE89: 73.9%
A90: Member 2212 | B90: 1963-03-08 | C90: F | D90: 132,029 | E90: 80% | F90: 85% | G90: 75% | H90: 10% | J90: 55 | K90: 11,002 | L90: 1,100 | M90: 13,753 | N90: 12,653 | O90: =(M90*12-(VLOOKUP(N90*12,'Tax table'!$A$3:$C$10,3)*(N90*12-VLOOKUP(N90*12,'Tax table'!$A$3:$C$10,1))+VLOOKUP(N90*12,'Tax table'!$A$3:$C$10,2)))/12 -> 12,660 | P90: 9,902 | Q90: =(VLOOKUP(P90*12,'Tax table'!$A$3:$C$10,3)*(P90*12-VLOOKUP(P90*12,'Tax table'!$A$3:$C$10,1))+VLOOKUP(P90*12,'Tax table'!$A$3:$C$10,2))/12 -> 597 | R90: 10,405 | S90: 8,844 | T90: 69.9% | U90: 26,533 | V90: =IF($B$15="Yes",MIN(S90*2,References!$B$7),0) -> 17,689 | W90: =IF(AND(D90<>0,$B$16="Yes"),References!$B$6,0) -> 100,000 | X90: 1,561 | Y90: 8,252 | Z90: 1,100 | AA90: 9,352 | AB90: 12,653 | AC90: =(M90*12-(VLOOKUP(AB90*12,'Tax table'!$A$3:$C$10,3)*(AB90*12-VLOOKUP(AB90*12,'Tax table'!$A$3:$C$10,1))+VLOOKUP(AB90*12,'Tax table'!$A$3:$C$10,2)))/12 -> 12,660 | AD90: 9,352 | AE90: 73.9%
A91: Member 2213 | B91: 1977-06-21 | C91: F | D91: 132,029 | E91: 80% | F91: 85% | G91: 75% | H91: 10% | J91: 41 | K91: 11,002 | L91: 1,100 | M91: 13,753 | N91: 12,653 | O91: =(M91*12-(VLOOKUP(N91*12,'Tax table'!$A$3:$C$10,3)*(N91*12-VLOOKUP(N91*12,'Tax table'!$A$3:$C$10,1))+VLOOKUP(N91*12,'Tax table'!$A$3:$C$10,2)))/12 -> 12,660 | P91: 9,902 | Q91: =(VLOOKUP(P91*12,'Tax table'!$A$3:$C$10,3)*(P91*12-VLOOKUP(P91*12,'Tax table'!$A$3:$C$10,1))+VLOOKUP(P91*12,'Tax table'!$A$3:$C$10,2))/12 -> 597 | R91: 10,405 | S91: 8,844 | T91: 69.9% | U91: 26,533 | V91: =IF($B$15="Yes",MIN(S91*2,References!$B$7),0) -> 17,689 | W91: =IF(AND(D91<>0,$B$16="Yes"),References!$B$6,0) -> 100,000 | X91: 1,561 | Y91: 8,252 | Z91: 1,100 | AA91: 9,352 | AB91: 12,653 | AC91: =(M91*12-(VLOOKUP(AB91*12,'Tax table'!$A$3:$C$10,3)*(AB91*12-VLOOKUP(AB91*12,'Tax table'!$A$3:$C$10,1))+VLOOKUP(AB91*12,'Tax table'!$A$3:$C$10,2)))/12 -> 12,660 | AD91: 9,352 | AE91: 73.9%
A92: Member 2210 | B92: 1979-05-13 | C92: M | D92: 132,102 | E92: 80% | F92: 85% | G92: 75% | H92: 10% | J92: 39 | K92: 11,009 | L92: 1,101 | M92: 13,761 | N92: 12,660 | O92: =(M92*12-(VLOOKUP(N92*12,'Tax table'!$A$3:$C$10,3)*(N92*12-VLOOKUP(N92*12,'Tax table'!$A$3:$C$10,1))+VLOOKUP(N92*12,'Tax table'!$A$3:$C$10,2)))/12 -> 12,667 | P92: 9,908 | Q92: =(VLOOKUP(P92*12,'Tax table'!$A$3:$C$10,3)*(P92*12-VLOOKUP(P92*12,'Tax table'!$A$3:$C$10,1))+VLOOKUP(P92*12,'Tax table'!$A$3:$C$10,2))/12 -> 598 | R92: 10,410 | S92: 8,849 | T92: 69.9% | U92: 26,546 | V92: =IF($B$15="Yes",MIN(S92*2,References!$B$7),0) -> 17,697 | W92: =IF(AND(D92<>0,$B$16="Yes"),References!$B$6,0) -> 100,000 | X92: 1,562 | Y92: 8,256 | Z92: 1,101 | AA92: 9,357 | AB92: 12,660 | AC92: =(M92*12-(VLOOKUP(AB92*12,'Tax table'!$A$3:$C$10,3)*(AB92*12-VLOOKUP(AB92*12,'Tax table'!$A$3:$C$10,1))+VLOOKUP(AB92*12,'Tax table'!$A$3:$C$10,2)))/12 -> 12,667 | AD92: 9,357 | AE92: 73.9%
A93: Member 2209 | B93: 1983-08-01 | C93: F | D93: 132,306 | E93: 80% | F93: 85% | G93: 75% | H93: 10% | J93: 35 | K93: 11,025 | L93: 1,103 | M93: 13,782 | N93: 12,679 | O93: =(M93*12-(VLOOKUP(N93*12,'Tax table'!$A$3:$C$10,3)*(N93*12-VLOOKUP(N93*12,'Tax table'!$A$3:$C$10,1))+VLOOKUP(N93*12,'Tax table'!$A$3:$C$10,2)))/12 -> 12,685 | P93: 9,923 | Q93: =(VLOOKUP(P93*12,'Tax table'!$A$3:$C$10,3)*(P93*12-VLOOKUP(P93*12,'Tax table'!$A$3:$C$10,1))+VLOOKUP(P93*12,'Tax table'!$A$3:$C$10,2))/12 -> 601 | R93: 10,424 | S93: 8,861 | T93: 69.9% | U93: 26,582 | V93: =IF($B$15="Yes",MIN(S93*2,References!$B$7),0) -> 17,721 | W93: =IF(AND(D93<>0,$B$16="Yes"),References!$B$6,0) -> 100,000 | X93: 1,564 | Y93: 8,269 | Z93: 1,103 | AA93: 9,372 | AB93: 12,679 | AC93: =(M93*12-(VLOOKUP(AB93*12,'Tax table'!$A$3:$C$10,3)*(AB93*12-VLOOKUP(AB93*12,'Tax table'!$A$3:$C$10,1))+VLOOKUP(AB93*12,'Tax table'!$A$3:$C$10,2)))/12 -> 12,685 | AD93: 9,372 | AE93: 73.9%
A94: Member 8 | B94: 1965-11-23 | C94: F | D94: 132,892 | E94: 80% | F94: 85% | G94: 75% | H94: 10% | J94: 52 | K94: 11,074 | L94: 1,107 | M94: 13,843 | N94: 12,735 | O94: =(M94*12-(VLOOKUP(N94*12,'Tax table'!$A$3:$C$10,3)*(N94*12-VLOOKUP(N94*12,'Tax table'!$A$3:$C$10,1))+VLOOKUP(N94*12,'Tax table'!$A$3:$C$10,2)))/12 -> 12,736 | P94: 9,967 | Q94: =(VLOOKUP(P94*12,'Tax table'!$A$3:$C$10,3)*(P94*12-VLOOKUP(P94*12,'Tax table'!$A$3:$C$10,1))+VLOOKUP(P94*12,'Tax table'!$A$3:$C$10,2))/12 -> 609 | R94: 10,465 | S94: 8,895 | T94: 69.8% | U94: 26,686 | V94: =IF($B$15="Yes",MIN(S94*2,References!$B$7),0) -> 17,791 | W94: =IF(AND(D94<>0,$B$16="Yes"),References!$B$6,0) -> 100,000 | X94: 1,570 | Y94: 8,306 | Z94: 1,107 | AA94: 9,413 | AB94: 12,735 | AC94: =(M94*12-(VLOOKUP(AB94*12,'Tax table'!$A$3:$C$10,3)*(AB94*12-VLOOKUP(AB94*12,'Tax table'!$A$3:$C$10,1))+VLOOKUP(AB94*12,'Tax table'!$A$3:$C$10,2)))/12 -> 12,736 | AD94: 9,413 | AE94: 73.9%
A95: Member 2208 | B95: 1959-07-27 | C95: M | D95: 133,178 | E95: 80% | F95: 85% | G95: 75% | H95: 10% | J95: 59 | K95: 11,098 | L95: 1,110 | M95: 13,873 | N95: 12,763 | O95: =(M95*12-(VLOOKUP(N95*12,'Tax table'!$A$3:$C$10,3)*(N95*12-VLOOKUP(N95*12,'Tax table'!$A$3:$C$10,1))+VLOOKUP(N95*12,'Tax table'!$A$3:$C$10,2)))/12 -> 12,760 | P95: 9,988 | Q95: =(VLOOKUP(P95*12,'Tax table'!$A$3:$C$10,3)*(P95*12-VLOOKUP(P95*12,'Tax table'!$A$3:$C$10,1))+VLOOKUP(P95*12,'Tax table'!$A$3:$C$10,2))/12 -> 613 | R95: 10,485 | S95: 8,912 | T95: 69.8% | U95: 26,737 | V95: =IF($B$15="Yes",MIN(S95*2,References!$B$7),0) -> 17,825 | W95: =IF(AND(D95<>0,$B$16="Yes"),References!$B$6,0) -> 100,000 | X95: 1,573 | Y95: 8,324 | Z95: 1,110 | AA95: 9,433 | AB95: 12,763 | AC95: =(M95*12-(VLOOKUP(AB95*12,'Tax table'!$A$3:$C$10,3)*(AB95*12-VLOOKUP(AB95*12,'Tax table'!$A$3:$C$10,1))+VLOOKUP(AB95*12,'Tax table'!$A$3:$C$10,2)))/12 -> 12,760 | AD95: 9,433 | AE95: 73.9%
A96: Member 2207 | B96: 1959-01-02 | C96: F | D96: 133,332 | E96: 80% | F96: 85% | G96: 75% | H96: 10% | J96: 59 | K96: 11,111 | L96: 1,111 | M96: 13,889 | N96: 12,778 | O96: =(M96*12-(VLOOKUP(N96*12,'Tax table'!$A$3:$C$10,3)*(N96*12-VLOOKUP(N96*12,'Tax table'!$A$3:$C$10,1))+VLOOKUP(N96*12,'Tax table'!$A$3:$C$10,2)))/12 -> 12,774 | P96: 10,000 | Q96: =(VLOOKUP(P96*12,'Tax table'!$A$3:$C$10,3)*(P96*12-VLOOKUP(P96*12,'Tax table'!$A$3:$C$10,1))+VLOOKUP(P96*12,'Tax table'!$A$3:$C$10,2))/12 -> 615 | R96: 10,496 | S96: 8,922 | T96: 69.8% | U96: 26,765 | V96: =IF($B$15="Yes",MIN(S96*2,References!$B$7),0) -> 17,843 | W96: =IF(AND(D96<>0,$B$16="Yes"),References!$B$6,0) -> 100,000 | X96: 1,574 | Y96: 8,333 | Z96: 1,111 | AA96: 9,444 | AB96: 12,778 | AC96: =(M96*12-(VLOOKUP(AB96*12,'Tax table'!$A$3:$C$10,3)*(AB96*12-VLOOKUP(AB96*12,'Tax table'!$A$3:$C$10,1))+VLOOKUP(AB96*12,'Tax table'!$A$3:$C$10,2)))/12 -> 12,774 | AD96: 9,444 | AE96: 73.9%
A97: Member 2206 | B97: 1980-04-02 | C97: M | D97: 133,692 | E97: 80% | F97: 85% | G97: 75% | H97: 10% | J97: 38 | K97: 11,141 | L97: 1,114 | M97: 13,926 | N97: 12,812 | O97: =(M97*12-(VLOOKUP(N97*12,'Tax table'!$A$3:$C$10,3)*(N97*12-VLOOKUP(N97*12,'Tax table'!$A$3:$C$10,1))+VLOOKUP(N97*12,'Tax table'!$A$3:$C$10,2)))/12 -> 12,805 | P97: 10,027 | Q97: =(VLOOKUP(P97*12,'Tax table'!$A$3:$C$10,3)*(P97*12-VLOOKUP(P97*12,'Tax table'!$A$3:$C$10,1))+VLOOKUP(P97*12,'Tax table'!$A$3:$C$10,2))/12 -> 620 | R97: 10,521 | S97: 8,943 | T97: 69.8% | U97: 26,829 | V97: =IF($B$15="Yes",MIN(S97*2,References!$B$7),0) -> 17,886 | W97: =IF(AND(D97<>0,$B$16="Yes"),References!$B$6,0) -> 100,000 | X97: 1,578 | Y97: 8,356 | Z97: 1,114 | AA97: 9,470 | AB97: 12,812 | AC97: =(M97*12-(VLOOKUP(AB97*12,'Tax table'!$A$3:$C$10,3)*(AB97*12-VLOOKUP(AB97*12,'Tax table'!$A$3:$C$10,1))+VLOOKUP(AB97*12,'Tax table'!$A$3:$C$10,2)))/12 -> 12,805 | AD97: 9,470 | AE97: 74.0%
A98: Member 2201 | B98: 1988-02-17 | C98: F | D98: 134,288 | E98: 80% | F98: 85% | G98: 75% | H98: 10% | J98: 30 | K98: 11,191 | L98: 1,119 | M98: 13,988 | N98: 12,869 | O98: =(M98*12-(VLOOKUP(N98*12,'Tax table'!$A$3:$C$10,3)*(N98*12-VLOOKUP(N98*12,'Tax table'!$A$3:$C$10,1))+VLOOKUP(N98*12,'Tax table'!$A$3:$C$10,2)))/12 -> 12,857 | P98: 10,072 | Q98: =(VLOOKUP(P98*12,'Tax table'!$A$3:$C$10,3)*(P98*12-VLOOKUP(P98*12,'Tax table'!$A$3:$C$10,1))+VLOOKUP(P98*12,'Tax table'!$A$3:$C$10,2))/12 -> 628 | R98: 10,563 | S98: 8,978 | T98: 69.8% | U98: 26,935 | V98: =IF($B$15="Yes",MIN(S98*2,References!$B$7),0) -> 17,957 | W98: =IF(AND(D98<>0,$B$16="Yes"),References!$B$6,0) -> 100,000 | X98: 1,584 | Y98: 8,393 | Z98: 1,119 | AA98: 9,512 | AB98: 12,869 | AC98: =(M98*12-(VLOOKUP(AB98*12,'Tax table'!$A$3:$C$10,3)*(AB98*12-VLOOKUP(AB98*12,'Tax table'!$A$3:$C$10,1))+VLOOKUP(AB98*12,'Tax table'!$A$3:$C$10,2)))/12 -> 12,857 | AD98: 9,512 | AE98: 74.0%
A99: Member 2202 | B99: 1992-08-06 | C99: F | D99: 134,288 | E99: 80% | F99: 85% | G99: 75% | H99: 10% | J99: 26 | K99: 11,191 | L99: 1,119 | M99: 13,988 | N99: 12,869 | O99: =(M99*12-(VLOOKUP(N99*12,'Tax table'!$A$3:$C$10,3)*(N99*12-VLOOKUP(N99*12,'Tax table'!$A$3:$C$10,1))+VLOOKUP(N99*12,'Tax table'!$A$3:$C$10,2)))/12 -> 12,857 | P99: 10,072 | Q99: =(VLOOKUP(P99*12,'Tax table'!$A$3:$C$10,3)*(P99*12-VLOOKUP(P99*12,'Tax table'!$A$3:$C$10,1))+VLOOKUP(P99*12,'Tax table'!$A$3:$C$10,2))/12 -> 628 | R99: 10,563 | S99: 8,978 | T99: 69.8% | U99: 26,935 | V99: =IF($B$15="Yes",MIN(S99*2,References!$B$7),0) -> 17,957 | W99: =IF(AND(D99<>0,$B$16="Yes"),References!$B$6,0) -> 100,000 | X99: 1,584 | Y99: 8,393 | Z99: 1,119 | AA99: 9,512 | AB99: 12,869 | AC99: =(M99*12-(VLOOKUP(AB99*12,'Tax table'!$A$3:$C$10,3)*(AB99*12-VLOOKUP(AB99*12,'Tax table'!$A$3:$C$10,1))+VLOOKUP(AB99*12,'Tax table'!$A$3:$C$10,2)))/12 -> 12,857 | AD99: 9,512 | AE99: 74.0%
A100: Member 2203 | B100: 1990-05-09 | C100: F | D100: 134,288 | E100: 80% | F100: 85% | G100: 75% | H100: 10% | J100: 28 | K100: 11,191 | L100: 1,119 | M100: 13,988 | N100: 12,869 | O100: =(M100*12-(VLOOKUP(N100*12,'Tax table'!$A$3:$C$10,3)*(N100*12-VLOOKUP(N100*12,'Tax table'!$A$3:$C$10,1))+VLOOKUP(N100*12,'Tax table'!$A$3:$C$10,2)))/12 -> 12,857 | P100: 10,072 | Q100: =(VLOOKUP(P100*12,'Tax table'!$A$3:$C$10,3)*(P100*12-VLOOKUP(P100*12,'Tax table'!$A$3:$C$10,1))+VLOOKUP(P100*12,'Tax table'!$A$3:$C$10,2))/12 -> 628 | R100: 10,563 | S100: 8,978 | T100: 69.8% | U100: 26,935 | V100: =IF($B$15="Yes",MIN(S100*2,References!$B$7),0) -> 17,957 | W100: =IF(AND(D100<>0,$B$16="Yes"),References!$B$6,0) -> 100,000 | X100: 1,584 | Y100: 8,393 | Z100: 1,119 | AA100: 9,512 | AB100: 12,869 | AC100: =(M100*12-(VLOOKUP(AB100*12,'Tax table'!$A$3:$C$10,3)*(AB100*12-VLOOKUP(AB100*12,'Tax table'!$A$3:$C$10,1))+VLOOKUP(AB100*12,'Tax table'!$A$3:$C$10,2)))/12 -> 12,857 | AD100: 9,512 | AE100: 74.0%
A101: Member 2204 | B101: 1971-05-24 | C101: F | D101: 134,288 | E101: 80% | F101: 85% | G101: 75% | H101: 10% | J101: 47 | K101: 11,191 | L101: 1,119 | M101: 13,988 | N101: 12,869 | O101: =(M101*12-(VLOOKUP(N101*12,'Tax table'!$A$3:$C$10,3)*(N101*12-VLOOKUP(N101*12,'Tax table'!$A$3:$C$10,1))+VLOOKUP(N101*12,'Tax table'!$A$3:$C$10,2)))/12 -> 12,857 | P101: 10,072 | Q101: =(VLOOKUP(P101*12,'Tax table'!$A$3:$C$10,3)*(P101*12-VLOOKUP(P101*12,'Tax table'!$A$3:$C$10,1))+VLOOKUP(P101*12,'Tax table'!$A$3:$C$10,2))/12 -> 628 | R101: 10,563 | S101: 8,978 | T101: 69.8% | U101: 26,935 | V101: =IF($B$15="Yes",MIN(S101*2,References!$B$7),0) -> 17,957 | W101: =IF(AND(D101<>0,$B$16="Yes"),References!$B$6,0) -> 100,000 | X101: 1,584 | Y101: 8,393 | Z101: 1,119 | AA101: 9,512 | AB101: 12,869 | AC101: =(M101*12-(VLOOKUP(AB101*12,'Tax table'!$A$3:$C$10,3)*(AB101*12-VLOOKUP(AB101*12,'Tax table'!$A$3:$C$10,1))+VLOOKUP(AB101*12,'Tax table'!$A$3:$C$10,2)))/12 -> 12,857 | AD101: 9,512 | AE101: 74.0%
A102: Member 2205 | B102: 1983-07-02 | C102: M | D102: 134,288 | E102: 80% | F102: 85% | G102: 75% | H102: 10% | J102: 35 | K102: 11,191 | L102: 1,119 | M102: 13,988 | N102: 12,869 | O102: =(M102*12-(VLOOKUP(N102*12,'Tax table'!$A$3:$C$10,3)*(N102*12-VLOOKUP(N102*12,'Tax table'!$A$3:$C$10,1))+VLOOKUP(N102*12,'Tax table'!$A$3:$C$10,2)))/12 -> 12,857 | P102: 10,072 | Q102: =(VLOOKUP(P102*12,'Tax table'!$A$3:$C$10,3)*(P102*12-VLOOKUP(P102*12,'Tax table'!$A$3:$C$10,1))+VLOOKUP(P102*12,'Tax table'!$A$3:$C$10,2))/12 -> 628 | R102: 10,563 | S102: 8,978 | T102: 69.8% | U102: 26,935 | V102: =IF($B$15="Yes",MIN(S102*2,References!$B$7),0) -> 17,957 | W102: =IF(AND(D102<>0,$B$16="Yes"),References!$B$6,0) -> 100,000 | X102: 1,584 | Y102: 8,393 | Z102: 1,119 | AA102: 9,512 | AB102: 12,869 | AC102: =(M102*12-(VLOOKUP(AB102*12,'Tax table'!$A$3:$C$10,3)*(AB102*12-VLOOKUP(AB102*12,'Tax table'!$A$3:$C$10,1))+VLOOKUP(AB102*12,'Tax table'!$A$3:$C$10,2)))/12 -> 12,857 | AD102: 9,512 | AE102: 74.0%
A103: Member 2200 | B103: 1970-07-13 | C103: M | D103: 134,570 | E103: 80% | F103: 85% | G103: 75% | H103: 10% | J103: 48 | K103: 11,214 | L103: 1,121 | M103: 14,018 | N103: 12,896 | O103: =(M103*12-(VLOOKUP(N103*12,'Tax table'!$A$3:$C$10,3)*(N103*12-VLOOKUP(N103*12,'Tax table'!$A$3:$C$10,1))+VLOOKUP(N103*12,'Tax table'!$A$3:$C$10,2)))/12 -> 12,881 | P103: 10,093 | Q103: =(VLOOKUP(P103*12,'Tax table'!$A$3:$C$10,3)*(P103*12-VLOOKUP(P103*12,'Tax table'!$A$3:$C$10,1))+VLOOKUP(P103*12,'Tax table'!$A$3:$C$10,2))/12 -> 632 | R103: 10,582 | S103: 8,995 | T103: 69.8% | U103: 26,985 | V103: =IF($B$15="Yes",MIN(S103*2,References!$B$7),0) -> 17,990 | W103: =IF(AND(D103<>0,$B$16="Yes"),References!$B$6,0) -> 100,000 | X103: 1,587 | Y103: 8,411 | Z103: 1,121 | AA103: 9,532 | AB103: 12,896 | AC103: =(M103*12-(VLOOKUP(AB103*12,'Tax table'!$A$3:$C$10,3)*(AB103*12-VLOOKUP(AB103*12,'Tax table'!$A$3:$C$10,1))+VLOOKUP(AB103*12,'Tax table'!$A$3:$C$10,2)))/12 -> 12,881 | AD103: 9,532 | AE103: 74.0%
A104: Member 2199 | B104: 1958-08-24 | C104: M | D104: 135,128 | E104: 80% | F104: 85% | G104: 75% | H104: 10% | J104: 60 | K104: 11,261 | L104: 1,126 | M104: 14,076 | N104: 12,950 | O104: =(M104*12-(VLOOKUP(N104*12,'Tax table'!$A$3:$C$10,3)*(N104*12-VLOOKUP(N104*12,'Tax table'!$A$3:$C$10,1))+VLOOKUP(N104*12,'Tax table'!$A$3:$C$10,2)))/12 -> 12,930 | P104: 10,135 | Q104: =(VLOOKUP(P104*12,'Tax table'!$A$3:$C$10,3)*(P104*12-VLOOKUP(P104*12,'Tax table'!$A$3:$C$10,1))+VLOOKUP(P104*12,'Tax table'!$A$3:$C$10,2))/12 -> 639 | R104: 10,621 | S104: 9,028 | T104: 69.8% | U104: 27,085 | V104: =IF($B$15="Yes",MIN(S104*2,References!$B$7),0) -> 18,056 | W104: =IF(AND(D104<>0,$B$16="Yes"),References!$B$6,0) -> 100,000 | X104: 1,593 | Y104: 8,446 | Z104: 1,126 | AA104: 9,572 | AB104: 12,950 | AC104: =(M104*12-(VLOOKUP(AB104*12,'Tax table'!$A$3:$C$10,3)*(AB104*12-VLOOKUP(AB104*12,'Tax table'!$A$3:$C$10,1))+VLOOKUP(AB104*12,'Tax table'!$A$3:$C$10,2)))/12 -> 12,930 | AD104: 9,572 | AE104: 74.0%
A105: Member 2198 | B105: 1966-04-07 | C105: M | D105: 135,732 | E105: 80% | F105: 85% | G105: 75% | H105: 10% | J105: 52 | K105: 11,311 | L105: 1,131 | M105: 14,139 | N105: 13,008 | O105: =(M105*12-(VLOOKUP(N105*12,'Tax table'!$A$3:$C$10,3)*(N105*12-VLOOKUP(N105*12,'Tax table'!$A$3:$C$10,1))+VLOOKUP(N105*12,'Tax table'!$A$3:$C$10,2)))/12 -> 12,982 | P105: 10,180 | Q105: =(VLOOKUP(P105*12,'Tax table'!$A$3:$C$10,3)*(P105*12-VLOOKUP(P105*12,'Tax table'!$A$3:$C$10,1))+VLOOKUP(P105*12,'Tax table'!$A$3:$C$10,2))/12 -> 647 | R105: 10,664 | S105: 9,064 | T105: 69.8% | U105: 27,192 | V105: =IF($B$15="Yes",MIN(S105*2,References!$B$7),0) -> 18,128 | W105: =IF(AND(D105<>0,$B$16="Yes"),References!$B$6,0) -> 100,000 | X105: 1,600 | Y105: 8,483 | Z105: 1,131 | AA105: 9,614 | AB105: 13,008 | AC105: =(M105*12-(VLOOKUP(AB105*12,'Tax table'!$A$3:$C$10,3)*(AB105*12-VLOOKUP(AB105*12,'Tax table'!$A$3:$C$10,1))+VLOOKUP(AB105*12,'Tax table'!$A$3:$C$10,2)))/12 -> 12,982 | AD105: 9,614 | AE105: 74.1%
A106: Member 2197 | B106: 1961-01-29 | C106: M | D106: 136,923 | E106: 80% | F106: 85% | G106: 75% | H106: 10% | J106: 57 | K106: 11,410 | L106: 1,141 | M106: 14,263 | N106: 13,122 | O106: =(M106*12-(VLOOKUP(N106*12,'Tax table'!$A$3:$C$10,3)*(N106*12-VLOOKUP(N106*12,'Tax table'!$A$3:$C$10,1))+VLOOKUP(N106*12,'Tax table'!$A$3:$C$10,2)))/12 -> 13,086 | P106: 10,269 | Q106: =(VLOOKUP(P106*12,'Tax table'!$A$3:$C$10,3)*(P106*12-VLOOKUP(P106*12,'Tax table'!$A$3:$C$10,1))+VLOOKUP(P106*12,'Tax table'!$A$3:$C$10,2))/12 -> 663 | R106: 10,747 | S106: 9,135 | T106: 69.8% | U106: 27,404 | V106: =IF($B$15="Yes",MIN(S106*2,References!$B$7),0) -> 18,270 | W106: =IF(AND(D106<>0,$B$16="Yes"),References!$B$6,0) -> 100,000 | X106: 1,612 | Y106: 8,558 | Z106: 1,141 | AA106: 9,699 | AB106: 13,122 | AC106: =(M106*12-(VLOOKUP(AB106*12,'Tax table'!$A$3:$C$10,3)*(AB106*12-VLOOKUP(AB106*12,'Tax table'!$A$3:$C$10,1))+VLOOKUP(AB106*12,'Tax table'!$A$3:$C$10,2)))/12 -> 13,086 | AD106: 9,699 | AE106: 74.1%
A107: Member 2196 | B107: 1957-12-29 | C107: F | D107: 136,979 | E107: 80% | F107: 85% | G107: 75% | H107: 10% | J107: 60 | K107: 11,415 | L107: 1,141 | M107: 14,269 | N107: 13,127 | O107: =(M107*12-(VLOOKUP(N107*12,'Tax table'!$A$3:$C$10,3)*(N107*12-VLOOKUP(N107*12,'Tax table'!$A$3:$C$10,1))+VLOOKUP(N107*12,'Tax table'!$A$3:$C$10,2)))/12 -> 13,091 | P107: 10,273 | Q107: =(VLOOKUP(P107*12,'Tax table'!$A$3:$C$10,3)*(P107*12-VLOOKUP(P107*12,'Tax table'!$A$3:$C$10,1))+VLOOKUP(P107*12,'Tax table'!$A$3:$C$10,2))/12 -> 664 | R107: 10,751 | S107: 9,138 | T107: 69.8% | U107: 27,414 | V107: =IF($B$15="Yes",MIN(S107*2,References!$B$7),0) -> 18,276 | W107: =IF(AND(D107<>0,$B$16="Yes"),References!$B$6,0) -> 100,000 | X107: 1,613 | Y107: 8,561 | Z107: 1,141 | AA107: 9,703 | AB107: 13,127 | AC107: =(M107*12-(VLOOKUP(AB107*12,'Tax table'!$A$3:$C$10,3)*(AB107*12-VLOOKUP(AB107*12,'Tax table'!$A$3:$C$10,1))+VLOOKUP(AB107*12,'Tax table'!$A$3:$C$10,2)))/12 -> 13,091 | AD107: 9,703 | AE107: 74.1%
A108: Member 2195 | B108: 1959-11-20 | C108: F | D108: 137,033 | E108: 80% | F108: 85% | G108: 75% | H108: 10% | J108: 58 | K108: 11,419 | L108: 1,142 | M108: 14,274 | N108: 13,132 | O108: =(M108*12-(VLOOKUP(N108*12,'Tax table'!$A$3:$C$10,3)*(N108*12-VLOOKUP(N108*12,'Tax table'!$A$3:$C$10,1))+VLOOKUP(N108*12,'Tax table'!$A$3:$C$10,2)))/12 -> 13,095 | P108: 10,277 | Q108: =(VLOOKUP(P108*12,'Tax table'!$A$3:$C$10,3)*(P108*12-VLOOKUP(P108*12,'Tax table'!$A$3:$C$10,1))+VLOOKUP(P108*12,'Tax table'!$A$3:$C$10,2))/12 -> 665 | R108: 10,754 | S108: 9,141 | T108: 69.8% | U108: 27,424 | V108: =IF($B$15="Yes",MIN(S108*2,References!$B$7),0) -> 18,283 | W108: =IF(AND(D108<>0,$B$16="Yes"),References!$B$6,0) -> 100,000 | X108: 1,613 | Y108: 8,565 | Z108: 1,142 | AA108: 9,706 | AB108: 13,132 | AC108: =(M108*12-(VLOOKUP(AB108*12,'Tax table'!$A$3:$C$10,3)*(AB108*12-VLOOKUP(AB108*12,'Tax table'!$A$3:$C$10,1))+VLOOKUP(AB108*12,'Tax table'!$A$3:$C$10,2)))/12 -> 13,095 | AD108: 9,706 | AE108: 74.1%
A109: Member 2194 | B109: 1959-02-20 | C109: M | D109: 137,037 | E109: 80% | F109: 85% | G109: 75% | H109: 10% | J109: 59 | K109: 11,420 | L109: 1,142 | M109: 14,275 | N109: 13,133 | O109: =(M109*12-(VLOOKUP(N109*12,'Tax table'!$A$3:$C$10,3)*(N109*12-VLOOKUP(N109*12,'Tax table'!$A$3:$C$10,1))+VLOOKUP(N109*12,'Tax table'!$A$3:$C$10,2)))/12 -> 13,096 | P109: 10,278 | Q109: =(VLOOKUP(P109*12,'Tax table'!$A$3:$C$10,3)*(P109*12-VLOOKUP(P109*12,'Tax table'!$A$3:$C$10,1))+VLOOKUP(P109*12,'Tax table'!$A$3:$C$10,2))/12 -> 665 | R109: 10,755 | S109: 9,142 | T109: 69.8% | U109: 27,425 | V109: =IF($B$15="Yes",MIN(S109*2,References!$B$7),0) -> 18,283 | W109: =IF(AND(D109<>0,$B$16="Yes"),References!$B$6,0) -> 100,000 | X109: 1,613 | Y109: 8,565 | Z109: 1,142 | AA109: 9,707 | AB109: 13,133 | AC109: =(M109*12-(VLOOKUP(AB109*12,'Tax table'!$A$3:$C$10,3)*(AB109*12-VLOOKUP(AB109*12,'Tax table'!$A$3:$C$10,1))+VLOOKUP(AB109*12,'Tax table'!$A$3:$C$10,2)))/12 -> 13,096 | AD109: 9,707 | AE109: 74.1%
A110: Member 2192 | B110: 1964-05-28 | C110: M | D110: 137,052 | E110: 80% | F110: 85% | G110: 75% | H110: 10% | J110: 54 | K110: 11,421 | L110: 1,142 | M110: 14,276 | N110: 13,134 | O110: =(M110*12-(VLOOKUP(N110*12,'Tax table'!$A$3:$C$10,3)*(N110*12-VLOOKUP(N110*12,'Tax table'!$A$3:$C$10,1))+VLOOKUP(N110*12,'Tax table'!$A$3:$C$10,2)))/12 -> 13,097 | P110: 10,279 | Q110: =(VLOOKUP(P110*12,'Tax table'!$A$3:$C$10,3)*(P110*12-VLOOKUP(P110*12,'Tax table'!$A$3:$C$10,1))+VLOOKUP(P110*12,'Tax table'!$A$3:$C$10,2))/12 -> 665 | R110: 10,756 | S110: 9,142 | T110: 69.8% | U110: 27,427 | V110: =IF($B$15="Yes",MIN(S110*2,References!$B$7),0) -> 18,285 | W110: =IF(AND(D110<>0,$B$16="Yes"),References!$B$6,0) -> 100,000 | X110: 1,613 | Y110: 8,566 | Z110: 1,142 | AA110: 9,708 | AB110: 13,134 | AC110: =(M110*12-(VLOOKUP(AB110*12,'Tax table'!$A$3:$C$10,3)*(AB110*12-VLOOKUP(AB110*12,'Tax table'!$A$3:$C$10,1))+VLOOKUP(AB110*12,'Tax table'!$A$3:$C$10,2)))/12 -> 13,097 | AD110: 9,708 | AE110: 74.1%
A111: Member 2193 | B111: 1963-02-17 | C111: M | D111: 137,052 | E111: 80% | F111: 85% | G111: 75% | H111: 10% | J111: 55 | K111: 11,421 | L111: 1,142 | M111: 14,276 | N111: 13,134 | O111: =(M111*12-(VLOOKUP(N111*12,'Tax table'!$A$3:$C$10,3)*(N111*12-VLOOKUP(N111*12,'Tax table'!$A$3:$C$10,1))+VLOOKUP(N111*12,'Tax table'!$A$3:$C$10,2)))/12 -> 13,097 | P111: 10,279 | Q111: =(VLOOKUP(P111*12,'Tax table'!$A$3:$C$10,3)*(P111*12-VLOOKUP(P111*12,'Tax table'!$A$3:$C$10,1))+VLOOKUP(P111*12,'Tax table'!$A$3:$C$10,2))/12 -> 665 | R111: 10,756 | S111: 9,142 | T111: 69.8% | U111: 27,427 | V111: =IF($B$15="Yes",MIN(S111*2,References!$B$7),0) -> 18,285 | W111: =IF(AND(D111<>0,$B$16="Yes"),References!$B$6,0) -> 100,000 | X111: 1,613 | Y111: 8,566 | Z111: 1,142 | AA111: 9,708 | AB111: 13,134 | AC111: =(M111*12-(VLOOKUP(AB111*12,'Tax table'!$A$3:$C$10,3)*(AB111*12-VLOOKUP(AB111*12,'Tax table'!$A$3:$C$10,1))+VLOOKUP(AB111*12,'Tax table'!$A$3:$C$10,2)))/12 -> 13,097 | AD111: 9,708 | AE111: 74.1%
A112: Member 2189 | B112: 1973-08-11 | C112: M | D112: 137,437 | E112: 80% | F112: 85% | G112: 75% | H112: 10% | J112: 45 | K112: 11,453 | L112: 1,145 | M112: 14,316 | N112: 13,171 | O112: =(M112*12-(VLOOKUP(N112*12,'Tax table'!$A$3:$C$10,3)*(N112*12-VLOOKUP(N112*12,'Tax table'!$A$3:$C$10,1))+VLOOKUP(N112*12,'Tax table'!$A$3:$C$10,2)))/12 -> 13,131 | P112: 10,308 | Q112: =(VLOOKUP(P112*12,'Tax table'!$A$3:$C$10,3)*(P112*12-VLOOKUP(P112*12,'Tax table'!$A$3:$C$10,1))+VLOOKUP(P112*12,'Tax table'!$A$3:$C$10,2))/12 -> 670 | R112: 10,783 | S112: 9,165 | T112: 69.8% | U112: 27,496 | V112: =IF($B$15="Yes",MIN(S112*2,References!$B$7),0) -> 18,331 | W112: =IF(AND(D112<>0,$B$16="Yes"),References!$B$6,0) -> 100,000 | X112: 1,617 | Y112: 8,590 | Z112: 1,145 | AA112: 9,735 | AB112: 13,171 | AC112: =(M112*12-(VLOOKUP(AB112*12,'Tax table'!$A$3:$C$10,3)*(AB112*12-VLOOKUP(AB112*12,'Tax table'!$A$3:$C$10,1))+VLOOKUP(AB112*12,'Tax table'!$A$3:$C$10,2)))/12 -> 13,131 | AD112: 9,735 | AE112: 74.1%
A113: Member 2190 | B113: 1978-06-25 | C113: M | D113: 137,437 | E113: 80% | F113: 85% | G113: 75% | H113: 10% | J113: 40 | K113: 11,453 | L113: 1,145 | M113: 14,316 | N113: 13,171 | O113: =(M113*12-(VLOOKUP(N113*12,'Tax table'!$A$3:$C$10,3)*(N113*12-VLOOKUP(N113*12,'Tax table'!$A$3:$C$10,1))+VLOOKUP(N113*12,'Tax table'!$A$3:$C$10,2)))/12 -> 13,131 | P113: 10,308 | Q113: =(VLOOKUP(P113*12,'Tax table'!$A$3:$C$10,3)*(P113*12-VLOOKUP(P113*12,'Tax table'!$A$3:$C$10,1))+VLOOKUP(P113*12,'Tax table'!$A$3:$C$10,2))/12 -> 670 | R113: 10,783 | S113: 9,165 | T113: 69.8% | U113: 27,496 | V113: =IF($B$15="Yes",MIN(S113*2,References!$B$7),0) -> 18,331 | W113: =IF(AND(D113<>0,$B$16="Yes"),References!$B$6,0) -> 100,000 | X113: 1,617 | Y113: 8,590 | Z113: 1,145 | AA113: 9,735 | AB113: 13,171 | AC113: =(M113*12-(VLOOKUP(AB113*12,'Tax table'!$A$3:$C$10,3)*(AB113*12-VLOOKUP(AB113*12,'Tax table'!$A$3:$C$10,1))+VLOOKUP(AB113*12,'Tax table'!$A$3:$C$10,2)))/12 -> 13,131 | AD113: 9,735 | AE113: 74.1%
A114: Member 2191 | B114: 1984-08-04 | C114: M | D114: 137,437 | E114: 80% | F114: 85% | G114: 75% | H114: 10% | J114: 34 | K114: 11,453 | L114: 1,145 | M114: 14,316 | N114: 13,171 | O114: =(M114*12-(VLOOKUP(N114*12,'Tax table'!$A$3:$C$10,3)*(N114*12-VLOOKUP(N114*12,'Tax table'!$A$3:$C$10,1))+VLOOKUP(N114*12,'Tax table'!$A$3:$C$10,2)))/12 -> 13,131 | P114: 10,308 | Q114: =(VLOOKUP(P114*12,'Tax table'!$A$3:$C$10,3)*(P114*12-VLOOKUP(P114*12,'Tax table'!$A$3:$C$10,1))+VLOOKUP(P114*12,'Tax table'!$A$3:$C$10,2))/12 -> 670 | R114: 10,783 | S114: 9,165 | T114: 69.8% | U114: 27,496 | V114: =IF($B$15="Yes",MIN(S114*2,References!$B$7),0) -> 18,331 | W114: =IF(AND(D114<>0,$B$16="Yes"),References!$B$6,0) -> 100,000 | X114: 1,617 | Y114: 8,590 | Z114: 1,145 | AA114: 9,735 | AB114: 13,171 | AC114: =(M114*12-(VLOOKUP(AB114*12,'Tax table'!$A$3:$C$10,3)*(AB114*12-VLOOKUP(AB114*12,'Tax table'!$A$3:$C$10,1))+VLOOKUP(AB114*12,'Tax table'!$A$3:$C$10,2)))/12 -> 13,131 | AD114: 9,735 | AE114: 74.1%
A115: Member 2188 | B115: 1974-10-21 | C115: F | D115: 138,468 | E115: 80% | F115: 85% | G115: 75% | H115: 10% | J115: 44 | K115: 11,539 | L115: 1,154 | M115: 14,424 | N115: 13,270 | O115: =(M115*12-(VLOOKUP(N115*12,'Tax table'!$A$3:$C$10,3)*(N115*12-VLOOKUP(N115*12,'Tax table'!$A$3:$C$10,1))+VLOOKUP(N115*12,'Tax table'!$A$3:$C$10,2)))/12 -> 13,220 | P115: 10,385 | Q115: =(VLOOKUP(P115*12,'Tax table'!$A$3:$C$10,3)*(P115*12-VLOOKUP(P115*12,'Tax table'!$A$3:$C$10,1))+VLOOKUP(P115*12,'Tax table'!$A$3:$C$10,2))/12 -> 684 | R115: 10,855 | S115: 9,226 | T115: 69.8% | U115: 27,679 | V115: =IF($B$15="Yes",MIN(S115*2,References!$B$7),0) -> 18,453 | W115: =IF(AND(D115<>0,$B$16="Yes"),References!$B$6,0) -> 100,000 | X115: 1,628 | Y115: 8,654 | Z115: 1,154 | AA115: 9,808 | AB115: 13,270 | AC115: =(M115*12-(VLOOKUP(AB115*12,'Tax table'!$A$3:$C$10,3)*(AB115*12-VLOOKUP(AB115*12,'Tax table'!$A$3:$C$10,1))+VLOOKUP(AB115*12,'Tax table'!$A$3:$C$10,2)))/12 -> 13,220 | AD115: 9,808 | AE115: 74.2%
A116: Member 2187 | B116: 1960-05-17 | C116: F | D116: 138,541 | E116: 80% | F116: 85% | G116: 75% | H116: 10% | J116: 58 | K116: 11,545 | L116: 1,155 | M116: 14,431 | N116: 13,277 | O116: =(M116*12-(VLOOKUP(N116*12,'Tax table'!$A$3:$C$10,3)*(N116*12-VLOOKUP(N116*12,'Tax table'!$A$3:$C$10,1))+VLOOKUP(N116*12,'Tax table'!$A$3:$C$10,2)))/12 -> 13,227 | P116: 10,391 | Q116: =(VLOOKUP(P116*12,'Tax table'!$A$3:$C$10,3)*(P116*12-VLOOKUP(P116*12,'Tax table'!$A$3:$C$10,1))+VLOOKUP(P116*12,'Tax table'!$A$3:$C$10,2))/12 -> 685 | R116: 10,860 | S116: 9,231 | T116: 69.8% | U116: 27,692 | V116: =IF($B$15="Yes",MIN(S116*2,References!$B$7),0) -> 18,462 | W116: =IF(AND(D116<>0,$B$16="Yes"),References!$B$6,0) -> 100,000 | X116: 1,629 | Y116: 8,659 | Z116: 1,155 | AA116: 9,813 | AB116: 13,277 | AC116: =(M116*12-(VLOOKUP(AB116*12,'Tax table'!$A$3:$C$10,3)*(AB116*12-VLOOKUP(AB116*12,'Tax table'!$A$3:$C$10,1))+VLOOKUP(AB116*12,'Tax table'!$A$3:$C$10,2)))/12 -> 13,227 | AD116: 9,813 | AE116: 74.2%
A117: Member 2186 | B117: 1953-09-01 | C117: F | D117: 138,657 | E117: 80% | F117: 85% | G117: 75% | H117: 10% | J117: 65 | K117: 11,555 | L117: 1,155 | M117: 14,443 | N117: 13,288 | O117: =(M117*12-(VLOOKUP(N117*12,'Tax table'!$A$3:$C$10,3)*(N117*12-VLOOKUP(N117*12,'Tax table'!$A$3:$C$10,1))+VLOOKUP(N117*12,'Tax table'!$A$3:$C$10,2)))/12 -> 13,237 | P117: 10,399 | Q117: =(VLOOKUP(P117*12,'Tax table'!$A$3:$C$10,3)*(P117*12-VLOOKUP(P117*12,'Tax table'!$A$3:$C$10,1))+VLOOKUP(P117*12,'Tax table'!$A$3:$C$10,2))/12 -> 687 | R117: 10,868 | S117: 9,238 | T117: 69.8% | U117: 27,713 | V117: =IF($B$15="Yes",MIN(S117*2,References!$B$7),0) -> 18,475 | W117: =IF(AND(D117<>0,$B$16="Yes"),References!$B$6,0) -> 100,000 | X117: 1,630 | Y117: 8,666 | Z117: 1,155 | AA117: 9,822 | AB117: 13,288 | AC117: =(M117*12-(VLOOKUP(AB117*12,'Tax table'!$A$3:$C$10,3)*(AB117*12-VLOOKUP(AB117*12,'Tax table'!$A$3:$C$10,1))+VLOOKUP(AB117*12,'Tax table'!$A$3:$C$10,2)))/12 -> 13,237 | AD117: 9,822 | AE117: 74.2%
A118: Member 7 | B118: 1958-10-29 | C118: F | D118: 139,713 | E118: 80% | F118: 85% | G118: 75% | H118: 10% | J118: 60 | K118: 11,643 | L118: 1,164 | M118: 14,553 | N118: 13,389 | O118: =(M118*12-(VLOOKUP(N118*12,'Tax table'!$A$3:$C$10,3)*(N118*12-VLOOKUP(N118*12,'Tax table'!$A$3:$C$10,1))+VLOOKUP(N118*12,'Tax table'!$A$3:$C$10,2)))/12 -> 13,328 | P118: 10,478 | Q118: =(VLOOKUP(P118*12,'Tax table'!$A$3:$C$10,3)*(P118*12-VLOOKUP(P118*12,'Tax table'!$A$3:$C$10,1))+VLOOKUP(P118*12,'Tax table'!$A$3:$C$10,2))/12 -> 701 | R118: 10,942 | S118: 9,300 | T118: 69.8% | U118: 27,901 | V118: =IF($B$15="Yes",MIN(S118*2,References!$B$7),0) -> 18,601 | W118: =IF(AND(D118<>0,$B$16="Yes"),References!$B$6,0) -> 100,000 | X118: 1,641 | Y118: 8,732 | Z118: 1,164 | AA118: 9,896 | AB118: 13,389 | AC118: =(M118*12-(VLOOKUP(AB118*12,'Tax table'!$A$3:$C$10,3)*(AB118*12-VLOOKUP(AB118*12,'Tax table'!$A$3:$C$10,1))+VLOOKUP(AB118*12,'Tax table'!$A$3:$C$10,2)))/12 -> 13,328 | AD118: 9,896 | AE118: 74.3%
A119: Member 2185 | B119: 1982-01-05 | C119: M | D119: 139,954 | E119: 80% | F119: 85% | G119: 75% | H119: 10% | J119: 36 | K119: 11,663 | L119: 1,166 | M119: 14,579 | N119: 13,412 | O119: =(M119*12-(VLOOKUP(N119*12,'Tax table'!$A$3:$C$10,3)*(N119*12-VLOOKUP(N119*12,'Tax table'!$A$3:$C$10,1))+VLOOKUP(N119*12,'Tax table'!$A$3:$C$10,2)))/12 -> 13,349 | P119: 10,497 | Q119: =(VLOOKUP(P119*12,'Tax table'!$A$3:$C$10,3)*(P119*12-VLOOKUP(P119*12,'Tax table'!$A$3:$C$10,1))+VLOOKUP(P119*12,'Tax table'!$A$3:$C$10,2))/12 -> 704 | R119: 10,958 | S119: 9,315 | T119: 69.8% | U119: 27,944 | V119: =IF($B$15="Yes",MIN(S119*2,References!$B$7),0) -> 18,629 | W119: =IF(AND(D119<>0,$B$16="Yes"),References!$B$6,0) -> 100,000 | X119: 1,644 | Y119: 8,747 | Z119: 1,166 | AA119: 9,913 | AB119: 13,412 | AC119: =(M119*12-(VLOOKUP(AB119*12,'Tax table'!$A$3:$C$10,3)*(AB119*12-VLOOKUP(AB119*12,'Tax table'!$A$3:$C$10,1))+VLOOKUP(AB119*12,'Tax table'!$A$3:$C$10,2)))/12 -> 13,349 | AD119: 9,913 | AE119: 74.3%
A120: Member 2168 | B120: 1972-10-20 | C120: F | D120: 140,386 | E120: 80% | F120: 85% | G120: 75% | H120: 10% | J120: 46 | K120: 11,699 | L120: 1,170 | M120: 14,624 | N120: 13,454 | O120: =(M120*12-(VLOOKUP(N120*12,'Tax table'!$A$3:$C$10,3)*(N120*12-VLOOKUP(N120*12,'Tax table'!$A$3:$C$10,1))+VLOOKUP(N120*12,'Tax table'!$A$3:$C$10,2)))/12 -> 13,387 | P120: 10,529 | Q120: =(VLOOKUP(P120*12,'Tax table'!$A$3:$C$10,3)*(P120*12-VLOOKUP(P120*12,'Tax table'!$A$3:$C$10,1))+VLOOKUP(P120*12,'Tax table'!$A$3:$C$10,2))/12 -> 710 | R120: 10,989 | S120: 9,340 | T120: 69.8% | U120: 28,021 | V120: =IF($B$15="Yes",MIN(S120*2,References!$B$7),0) -> 18,681 | W120: =IF(AND(D120<>0,$B$16="Yes"),References!$B$6,0) -> 100,000 | X120: 1,648 | Y120: 8,774 | Z120: 1,170 | AA120: 9,944 | AB120: 13,454 | AC120: =(M120*12-(VLOOKUP(AB120*12,'Tax table'!$A$3:$C$10,3)*(AB120*12-VLOOKUP(AB120*12,'Tax table'!$A$3:$C$10,1))+VLOOKUP(AB120*12,'Tax table'!$A$3:$C$10,2)))/12 -> 13,387 | AD120: 9,944 | AE120: 74.3%
A121: Member 2169 | B121: 1990-06-08 | C121: M | D121: 140,386 | E121: 80% | F121: 85% | G121: 75% | H121: 10% | J121: 28 | K121: 11,699 | L121: 1,170 | M121: 14,624 | N121: 13,454 | O121: =(M121*12-(VLOOKUP(N121*12,'Tax table'!$A$3:$C$10,3)*(N121*12-VLOOKUP(N121*12,'Tax table'!$A$3:$C$10,1))+VLOOKUP(N121*12,'Tax table'!$A$3:$C$10,2)))/12 -> 13,387 | P121: 10,529 | Q121: =(VLOOKUP(P121*12,'Tax table'!$A$3:$C$10,3)*(P121*12-VLOOKUP(P121*12,'Tax table'!$A$3:$C$10,1))+VLOOKUP(P121*12,'Tax table'!$A$3:$C$10,2))/12 -> 710 | R121: 10,989 | S121: 9,340 | T121: 69.8% | U121: 28,021 | V121: =IF($B$15="Yes",MIN(S121*2,References!$B$7),0) -> 18,681 | W121: =IF(AND(D121<>0,$B$16="Yes"),References!$B$6,0) -> 100,000 | X121: 1,648 | Y121: 8,774 | Z121: 1,170 | AA121: 9,944 | AB121: 13,454 | AC121: =(M121*12-(VLOOKUP(AB121*12,'Tax table'!$A$3:$C$10,3)*(AB121*12-VLOOKUP(AB121*12,'Tax table'!$A$3:$C$10,1))+VLOOKUP(AB121*12,'Tax table'!$A$3:$C$10,2)))/12 -> 13,387 | AD121: 9,944 | AE121: 74.3%
A122: Member 2170 | B122: 1982-10-25 | C122: M | D122: 140,386 | E122: 80% | F122: 85% | G122: 75% | H122: 10% | J122: 36 | K122: 11,699 | L122: 1,170 | M122: 14,624 | N122: 13,454 | O122: =(M122*12-(VLOOKUP(N122*12,'Tax table'!$A$3:$C$10,3)*(N122*12-VLOOKUP(N122*12,'Tax table'!$A$3:$C$10,1))+VLOOKUP(N122*12,'Tax table'!$A$3:$C$10,2)))/12 -> 13,387 | P122: 10,529 | Q122: =(VLOOKUP(P122*12,'Tax table'!$A$3:$C$10,3)*(P122*12-VLOOKUP(P122*12,'Tax table'!$A$3:$C$10,1))+VLOOKUP(P122*12,'Tax table'!$A$3:$C$10,2))/12 -> 710 | R122: 10,989 | S122: 9,340 | T122: 69.8% | U122: 28,021 | V122: =IF($B$15="Yes",MIN(S122*2,References!$B$7),0) -> 18,681 | W122: =IF(AND(D122<>0,$B$16="Yes"),References!$B$6,0) -> 100,000 | X122: 1,648 | Y122: 8,774 | Z122: 1,170 | AA122: 9,944 | AB122: 13,454 | AC122: =(M122*12-(VLOOKUP(AB122*12,'Tax table'!$A$3:$C$10,3)*(AB122*12-VLOOKUP(AB122*12,'Tax table'!$A$3:$C$10,1))+VLOOKUP(AB122*12,'Tax table'!$A$3:$C$10,2)))/12 -> 13,387 | AD122: 9,944 | AE122: 74.3%
A123: Member 2171 | B123: 1976-06-15 | C123: M | D123: 140,386 | E123: 80% | F123: 85% | G123: 75% | H123: 10% | J123: 42 | K123: 11,699 | L123: 1,170 | M123: 14,624 | N123: 13,454 | O123: =(M123*12-(VLOOKUP(N123*12,'Tax table'!$A$3:$C$10,3)*(N123*12-VLOOKUP(N123*12,'Tax table'!$A$3:$C$10,1))+VLOOKUP(N123*12,'Tax table'!$A$3:$C$10,2)))/12 -> 13,387 | P123: 10,529 | Q123: =(VLOOKUP(P123*12,'Tax table'!$A$3:$C$10,3)*(P123*12-VLOOKUP(P123*12,'Tax table'!$A$3:$C$10,1))+VLOOKUP(P123*12,'Tax table'!$A$3:$C$10,2))/12 -> 710 | R123: 10,989 | S123: 9,340 | T123: 69.8% | U123: 28,021 | V123: =IF($B$15="Yes",MIN(S123*2,References!$B$7),0) -> 18,681 | W123: =IF(AND(D123<>0,$B$16="Yes"),References!$B$6,0) -> 100,000 | X123: 1,648 | Y123: 8,774 | Z123: 1,170 | AA123: 9,944 | AB123: 13,454 | AC123: =(M123*12-(VLOOKUP(AB123*12,'Tax table'!$A$3:$C$10,3)*(AB123*12-VLOOKUP(AB123*12,'Tax table'!$A$3:$C$10,1))+VLOOKUP(AB123*12,'Tax table'!$A$3:$C$10,2)))/12 -> 13,387 | AD123: 9,944 | AE123: 74.3%
A124: Member 2172 | B124: 1972-05-02 | C124: M | D124: 140,386 | E124: 80% | F124: 85% | G124: 75% | H124: 10% | J124: 46 | K124: 11,699 | L124: 1,170 | M124: 14,624 | N124: 13,454 | O124: =(M124*12-(VLOOKUP(N124*12,'Tax table'!$A$3:$C$10,3)*(N124*12-VLOOKUP(N124*12,'Tax table'!$A$3:$C$10,1))+VLOOKUP(N124*12,'Tax table'!$A$3:$C$10,2)))/12 -> 13,387 | P124: 10,529 | Q124: =(VLOOKUP(P124*12,'Tax table'!$A$3:$C$10,3)*(P124*12-VLOOKUP(P124*12,'Tax table'!$A$3:$C$10,1))+VLOOKUP(P124*12,'Tax table'!$A$3:$C$10,2))/12 -> 710 | R124: 10,989 | S124: 9,340 | T124: 69.8% | U124: 28,021 | V124: =IF($B$15="Yes",MIN(S124*2,References!$B$7),0) -> 18,681 | W124: =IF(AND(D124<>0,$B$16="Yes"),References!$B$6,0) -> 100,000 | X124: 1,648 | Y124: 8,774 | Z124: 1,170 | AA124: 9,944 | AB124: 13,454 | AC124: =(M124*12-(VLOOKUP(AB124*12,'Tax table'!$A$3:$C$10,3)*(AB124*12-VLOOKUP(AB124*12,'Tax table'!$A$3:$C$10,1))+VLOOKUP(AB124*12,'Tax table'!$A$3:$C$10,2)))/12 -> 13,387 | AD124: 9,944 | AE124: 74.3%
A125: Member 2173 | B125: 1986-05-10 | C125: M | D125: 140,386 | E125: 80% | F125: 85% | G125: 75% | H125: 10% | J125: 32 | K125: 11,699 | L125: 1,170 | M125: 14,624 | N125: 13,454 | O125: =(M125*12-(VLOOKUP(N125*12,'Tax table'!$A$3:$C$10,3)*(N125*12-VLOOKUP(N125*12,'Tax table'!$A$3:$C$10,1))+VLOOKUP(N125*12,'Tax table'!$A$3:$C$10,2)))/12 -> 13,387 | P125: 10,529 | Q125: =(VLOOKUP(P125*12,'Tax table'!$A$3:$C$10,3)*(P125*12-VLOOKUP(P125*12,'Tax table'!$A$3:$C$10,1))+VLOOKUP(P125*12,'Tax table'!$A$3:$C$10,2))/12 -> 710 | R125: 10,989 | S125: 9,340 | T125: 69.8% | U125: 28,021 | V125: =IF($B$15="Yes",MIN(S125*2,References!$B$7),0) -> 18,681 | W125: =IF(AND(D125<>0,$B$16="Yes"),References!$B$6,0) -> 100,000 | X125: 1,648 | Y125: 8,774 | Z125: 1,170 | AA125: 9,944 | AB125: 13,454 | AC125: =(M125*12-(VLOOKUP(AB125*12,'Tax table'!$A$3:$C$10,3)*(AB125*12-VLOOKUP(AB125*12,'Tax table'!$A$3:$C$10,1))+VLOOKUP(AB125*12,'Tax table'!$A$3:$C$10,2)))/12 -> 13,387 | AD125: 9,944 | AE125: 74.3%
A126: Member 2174 | B126: 1990-01-28 | C126: M | D126: 140,386 | E126: 80% | F126: 85% | G126: 75% | H126: 10% | J126: 28 | K126: 11,699 | L126: 1,170 | M126: 14,624 | N126: 13,454 | O126: =(M126*12-(VLOOKUP(N126*12,'Tax table'!$A$3:$C$10,3)*(N126*12-VLOOKUP(N126*12,'Tax table'!$A$3:$C$10,1))+VLOOKUP(N126*12,'Tax table'!$A$3:$C$10,2)))/12 -> 13,387 | P126: 10,529 | Q126: =(VLOOKUP(P126*12,'Tax table'!$A$3:$C$10,3)*(P126*12-VLOOKUP(P126*12,'Tax table'!$A$3:$C$10,1))+VLOOKUP(P126*12,'Tax table'!$A$3:$C$10,2))/12 -> 710 | R126: 10,989 | S126: 9,340 | T126: 69.8% | U126: 28,021 | V126: =IF($B$15="Yes",MIN(S126*2,References!$B$7),0) -> 18,681 | W126: =IF(AND(D126<>0,$B$16="Yes"),References!$B$6,0) -> 100,000 | X126: 1,648 | Y126: 8,774 | Z126: 1,170 | AA126: 9,944 | AB126: 13,454 | AC126: =(M126*12-(VLOOKUP(AB126*12,'Tax table'!$A$3:$C$10,3)*(AB126*12-VLOOKUP(AB126*12,'Tax table'!$A$3:$C$10,1))+VLOOKUP(AB126*12,'Tax table'!$A$3:$C$10,2)))/12 -> 13,387 | AD126: 9,944 | AE126: 74.3%
A127: Member 2175 | B127: 1982-05-09 | C127: M | D127: 140,386 | E127: 80% | F127: 85% | G127: 75% | H127: 10% | J127: 36 | K127: 11,699 | L127: 1,170 | M127: 14,624 | N127: 13,454 | O127: =(M127*12-(VLOOKUP(N127*12,'Tax table'!$A$3:$C$10,3)*(N127*12-VLOOKUP(N127*12,'Tax table'!$A$3:$C$10,1))+VLOOKUP(N127*12,'Tax table'!$A$3:$C$10,2)))/12 -> 13,387 | P127: 10,529 | Q127: =(VLOOKUP(P127*12,'Tax table'!$A$3:$C$10,3)*(P127*12-VLOOKUP(P127*12,'Tax table'!$A$3:$C$10,1))+VLOOKUP(P127*12,'Tax table'!$A$3:$C$10,2))/12 -> 710 | R127: 10,989 | S127: 9,340 | T127: 69.8% | U127: 28,021 | V127: =IF($B$15="Yes",MIN(S127*2,References!$B$7),0) -> 18,681 | W127: =IF(AND(D127<>0,$B$16="Yes"),References!$B$6,0) -> 100,000 | X127: 1,648 | Y127: 8,774 | Z127: 1,170 | AA127: 9,944 | AB127: 13,454 | AC127: =(M127*12-(VLOOKUP(AB127*12,'Tax table'!$A$3:$C$10,3)*(AB127*12-VLOOKUP(AB127*12,'Tax table'!$A$3:$C$10,1))+VLOOKUP(AB127*12,'Tax table'!$A$3:$C$10,2)))/12 -> 13,387 | AD127: 9,944 | AE127: 74.3%
A128: Member 2176 | B128: 1981-08-15 | C128: M | D128: 140,386 | E128: 80% | F128: 85% | G128: 75% | H128: 10% | J128: 37 | K128: 11,699 | L128: 1,170 | M128: 14,624 | N128: 13,454 | O128: =(M128*12-(VLOOKUP(N128*12,'Tax table'!$A$3:$C$10,3)*(N128*12-VLOOKUP(N128*12,'Tax table'!$A$3:$C$10,1))+VLOOKUP(N128*12,'Tax table'!$A$3:$C$10,2)))/12 -> 13,387 | P128: 10,529 | Q128: =(VLOOKUP(P128*12,'Tax table'!$A$3:$C$10,3)*(P128*12-VLOOKUP(P128*12,'Tax table'!$A$3:$C$10,1))+VLOOKUP(P128*12,'Tax table'!$A$3:$C$10,2))/12 -> 710 | R128: 10,989 | S128: 9,340 | T128: 69.8% | U128: 28,021 | V128: =IF($B$15="Yes",MIN(S128*2,References!$B$7),0) -> 18,681 | W128: =IF(AND(D128<>0,$B$16="Yes"),References!$B$6,0) -> 100,000 | X128: 1,648 | Y128: 8,774 | Z128: 1,170 | AA128: 9,944 | AB128: 13,454 | AC128: =(M128*12-(VLOOKUP(AB128*12,'Tax table'!$A$3:$C$10,3)*(AB128*12-VLOOKUP(AB128*12,'Tax table'!$A$3:$C$10,1))+VLOOKUP(AB128*12,'Tax table'!$A$3:$C$10,2)))/12 -> 13,387 | AD128: 9,944 | AE128: 74.3%
A129: Member 2177 | B129: 1982-04-26 | C129: M | D129: 140,386 | E129: 80% | F129: 85% | G129: 75% | H129: 10% | J129: 36 | K129: 11,699 | L129: 1,170 | M129: 14,624 | N129: 13,454 | O129: =(M129*12-(VLOOKUP(N129*12,'Tax table'!$A$3:$C$10,3)*(N129*12-VLOOKUP(N129*12,'Tax table'!$A$3:$C$10,1))+VLOOKUP(N129*12,'Tax table'!$A$3:$C$10,2)))/12 -> 13,387 | P129: 10,529 | Q129: =(VLOOKUP(P129*12,'Tax table'!$A$3:$C$10,3)*(P129*12-VLOOKUP(P129*12,'Tax table'!$A$3:$C$10,1))+VLOOKUP(P129*12,'Tax table'!$A$3:$C$10,2))/12 -> 710 | R129: 10,989 | S129: 9,340 | T129: 69.8% | U129: 28,021 | V129: =IF($B$15="Yes",MIN(S129*2,References!$B$7),0) -> 18,681 | W129: =IF(AND(D129<>0,$B$16="Yes"),References!$B$6,0) -> 100,000 | X129: 1,648 | Y129: 8,774 | Z129: 1,170 | AA129: 9,944 | AB129: 13,454 | AC129: =(M129*12-(VLOOKUP(AB129*12,'Tax table'!$A$3:$C$10,3)*(AB129*12-VLOOKUP(AB129*12,'Tax table'!$A$3:$C$10,1))+VLOOKUP(AB129*12,'Tax table'!$A$3:$C$10,2)))/12 -> 13,387 | AD129: 9,944 | AE129: 74.3%
A130: Member 2178 | B130: 1986-02-07 | C130: M | D130: 140,386 | E130: 80% | F130: 85% | G130: 75% | H130: 10% | J130: 32 | K130: 11,699 | L130: 1,170 | M130: 14,624 | N130: 13,454 | O130: =(M130*12-(VLOOKUP(N130*12,'Tax table'!$A$3:$C$10,3)*(N130*12-VLOOKUP(N130*12,'Tax table'!$A$3:$C$10,1))+VLOOKUP(N130*12,'Tax table'!$A$3:$C$10,2)))/12 -> 13,387 | P130: 10,529 | Q130: =(VLOOKUP(P130*12,'Tax table'!$A$3:$C$10,3)*(P130*12-VLOOKUP(P130*12,'Tax table'!$A$3:$C$10,1))+VLOOKUP(P130*12,'Tax table'!$A$3:$C$10,2))/12 -> 710 | R130: 10,989 | S130: 9,340 | T130: 69.8% | U130: 28,021 | V130: =IF($B$15="Yes",MIN(S130*2,References!$B$7),0) -> 18,681 | W130: =IF(AND(D130<>0,$B$16="Yes"),References!$B$6,0) -> 100,000 | X130: 1,648 | Y130: 8,774 | Z130: 1,170 | AA130: 9,944 | AB130: 13,454 | AC130: =(M130*12-(VLOOKUP(AB130*12,'Tax table'!$A$3:$C$10,3)*(AB130*12-VLOOKUP(AB130*12,'Tax table'!$A$3:$C$10,1))+VLOOKUP(AB130*12,'Tax table'!$A$3:$C$10,2)))/12 -> 13,387 | AD130: 9,944 | AE130: 74.3%
A131: Member 2179 | B131: 1984-08-30 | C131: M | D131: 140,386 | E131: 80% | F131: 85% | G131: 75% | H131: 10% | J131: 34 | K131: 11,699 | L131: 1,170 | M131: 14,624 | N131: 13,454 | O131: =(M131*12-(VLOOKUP(N131*12,'Tax table'!$A$3:$C$10,3)*(N131*12-VLOOKUP(N131*12,'Tax table'!$A$3:$C$10,1))+VLOOKUP(N131*12,'Tax table'!$A$3:$C$10,2)))/12 -> 13,387 | P131: 10,529 | Q131: =(VLOOKUP(P131*12,'Tax table'!$A$3:$C$10,3)*(P131*12-VLOOKUP(P131*12,'Tax table'!$A$3:$C$10,1))+VLOOKUP(P131*12,'Tax table'!$A$3:$C$10,2))/12 -> 710 | R131: 10,989 | S131: 9,340 | T131: 69.8% | U131: 28,021 | V131: =IF($B$15="Yes",MIN(S131*2,References!$B$7),0) -> 18,681 | W131: =IF(AND(D131<>0,$B$16="Yes"),References!$B$6,0) -> 100,000 | X131: 1,648 | Y131: 8,774 | Z131: 1,170 | AA131: 9,944 | AB131: 13,454 | AC131: =(M131*12-(VLOOKUP(AB131*12,'Tax table'!$A$3:$C$10,3)*(AB131*12-VLOOKUP(AB131*12,'Tax table'!$A$3:$C$10,1))+VLOOKUP(AB131*12,'Tax table'!$A$3:$C$10,2)))/12 -> 13,387 | AD131: 9,944 | AE131: 74.3%
A132: Member 2180 | B132: 1975-12-21 | C132: M | D132: 140,386 | E132: 80% | F132: 85% | G132: 75% | H132: 10% | J132: 42 | K132: 11,699 | L132: 1,170 | M132: 14,624 | N132: 13,454 | O132: =(M132*12-(VLOOKUP(N132*12,'Tax table'!$A$3:$C$10,3)*(N132*12-VLOOKUP(N132*12,'Tax table'!$A$3:$C$10,1))+VLOOKUP(N132*12,'Tax table'!$A$3:$C$10,2)))/12 -> 13,387 | P132: 10,529 | Q132: =(VLOOKUP(P132*12,'Tax table'!$A$3:$C$10,3)*(P132*12-VLOOKUP(P132*12,'Tax table'!$A$3:$C$10,1))+VLOOKUP(P132*12,'Tax table'!$A$3:$C$10,2))/12 -> 710 | R132: 10,989 | S132: 9,340 | T132: 69.8% | U132: 28,021 | V132: =IF($B$15="Yes",MIN(S132*2,References!$B$7),0) -> 18,681 | W132: =IF(AND(D132<>0,$B$16="Yes"),References!$B$6,0) -> 100,000 | X132: 1,648 | Y132: 8,774 | Z132: 1,170 | AA132: 9,944 | AB132: 13,454 | AC132: =(M132*12-(VLOOKUP(AB132*12,'Tax table'!$A$3:$C$10,3)*(AB132*12-VLOOKUP(AB132*12,'Tax table'!$A$3:$C$10,1))+VLOOKUP(AB132*12,'Tax table'!$A$3:$C$10,2)))/12 -> 13,387 | AD132: 9,944 | AE132: 74.3%
A133: Member 2181 | B133: 1982-05-02 | C133: M | D133: 140,386 | E133: 80% | F133: 85% | G133: 75% | H133: 10% | J133: 36 | K133: 11,699 | L133: 1,170 | M133: 14,624 | N133: 13,454 | O133: =(M133*12-(VLOOKUP(N133*12,'Tax table'!$A$3:$C$10,3)*(N133*12-VLOOKUP(N133*12,'Tax table'!$A$3:$C$10,1))+VLOOKUP(N133*12,'Tax table'!$A$3:$C$10,2)))/12 -> 13,387 | P133: 10,529 | Q133: =(VLOOKUP(P133*12,'Tax table'!$A$3:$C$10,3)*(P133*12-VLOOKUP(P133*12,'Tax table'!$A$3:$C$10,1))+VLOOKUP(P133*12,'Tax table'!$A$3:$C$10,2))/12 -> 710 | R133: 10,989 | S133: 9,340 | T133: 69.8% | U133: 28,021 | V133: =IF($B$15="Yes",MIN(S133*2,References!$B$7),0) -> 18,681 | W133: =IF(AND(D133<>0,$B$16="Yes"),References!$B$6,0) -> 100,000 | X133: 1,648 | Y133: 8,774 | Z133: 1,170 | AA133: 9,944 | AB133: 13,454 | AC133: =(M133*12-(VLOOKUP(AB133*12,'Tax table'!$A$3:$C$10,3)*(AB133*12-VLOOKUP(AB133*12,'Tax table'!$A$3:$C$10,1))+VLOOKUP(AB133*12,'Tax table'!$A$3:$C$10,2)))/12 -> 13,387 | AD133: 9,944 | AE133: 74.3%
A134: Member 2182 | B134: 1986-12-10 | C134: M | D134: 140,386 | E134: 80% | F134: 85% | G134: 75% | H134: 10% | J134: 31 | K134: 11,699 | L134: 1,170 | M134: 14,624 | N134: 13,454 | O134: =(M134*12-(VLOOKUP(N134*12,'Tax table'!$A$3:$C$10,3)*(N134*12-VLOOKUP(N134*12,'Tax table'!$A$3:$C$10,1))+VLOOKUP(N134*12,'Tax table'!$A$3:$C$10,2)))/12 -> 13,387 | P134: 10,529 | Q134: =(VLOOKUP(P134*12,'Tax table'!$A$3:$C$10,3)*(P134*12-VLOOKUP(P134*12,'Tax table'!$A$3:$C$10,1))+VLOOKUP(P134*12,'Tax table'!$A$3:$C$10,2))/12 -> 710 | R134: 10,989 | S134: 9,340 | T134: 69.8% | U134: 28,021 | V134: =IF($B$15="Yes",MIN(S134*2,References!$B$7),0) -> 18,681 | W134: =IF(AND(D134<>0,$B$16="Yes"),References!$B$6,0) -> 100,000 | X134: 1,648 | Y134: 8,774 | Z134: 1,170 | AA134: 9,944 | AB134: 13,454 | AC134: =(M134*12-(VLOOKUP(AB134*12,'Tax table'!$A$3:$C$10,3)*(AB134*12-VLOOKUP(AB134*12,'Tax table'!$A$3:$C$10,1))+VLOOKUP(AB134*12,'Tax table'!$A$3:$C$10,2)))/12 -> 13,387 | AD134: 9,944 | AE134: 74.3%
A135: Member 2183 | B135: 1982-05-07 | C135: M | D135: 140,386 | E135: 80% | F135: 85% | G135: 75% | H135: 10% | J135: 36 | K135: 11,699 | L135: 1,170 | M135: 14,624 | N135: 13,454 | O135: =(M135*12-(VLOOKUP(N135*12,'Tax table'!$A$3:$C$10,3)*(N135*12-VLOOKUP(N135*12,'Tax table'!$A$3:$C$10,1))+VLOOKUP(N135*12,'Tax table'!$A$3:$C$10,2)))/12 -> 13,387 | P135: 10,529 | Q135: =(VLOOKUP(P135*12,'Tax table'!$A$3:$C$10,3)*(P135*12-VLOOKUP(P135*12,'Tax table'!$A$3:$C$10,1))+VLOOKUP(P135*12,'Tax table'!$A$3:$C$10,2))/12 -> 710 | R135: 10,989 | S135: 9,340 | T135: 69.8% | U135: 28,021 | V135: =IF($B$15="Yes",MIN(S135*2,References!$B$7),0) -> 18,681 | W135: =IF(AND(D135<>0,$B$16="Yes"),References!$B$6,0) -> 100,000 | X135: 1,648 | Y135: 8,774 | Z135: 1,170 | AA135: 9,944 | AB135: 13,454 | AC135: =(M135*12-(VLOOKUP(AB135*12,'Tax table'!$A$3:$C$10,3)*(AB135*12-VLOOKUP(AB135*12,'Tax table'!$A$3:$C$10,1))+VLOOKUP(AB135*12,'Tax table'!$A$3:$C$10,2)))/12 -> 13,387 | AD135: 9,944 | AE135: 74.3%
A136: Member 2184 | B136: 1990-03-27 | C136: M | D136: 140,386 | E136: 80% | F136: 85% | G136: 75% | H136: 10% | J136: 28 | K136: 11,699 | L136: 1,170 | M136: 14,624 | N136: 13,454 | O136: =(M136*12-(VLOOKUP(N136*12,'Tax table'!$A$3:$C$10,3)*(N136*12-VLOOKUP(N136*12,'Tax table'!$A$3:$C$10,1))+VLOOKUP(N136*12,'Tax table'!$A$3:$C$10,2)))/12 -> 13,387 | P136: 10,529 | Q136: =(VLOOKUP(P136*12,'Tax table'!$A$3:$C$10,3)*(P136*12-VLOOKUP(P136*12,'Tax table'!$A$3:$C$10,1))+VLOOKUP(P136*12,'Tax table'!$A$3:$C$10,2))/12 -> 710 | R136: 10,989 | S136: 9,340 | T136: 69.8% | U136: 28,021 | V136: =IF($B$15="Yes",MIN(S136*2,References!$B$7),0) -> 18,681 | W136: =IF(AND(D136<>0,$B$16="Yes"),References!$B$6,0) -> 100,000 | X136: 1,648 | Y136: 8,774 | Z136: 1,170 | AA136: 9,944 | AB136: 13,454 | AC136: =(M136*12-(VLOOKUP(AB136*12,'Tax table'!$A$3:$C$10,3)*(AB136*12-VLOOKUP(AB136*12,'Tax table'!$A$3:$C$10,1))+VLOOKUP(AB136*12,'Tax table'!$A$3:$C$10,2)))/12 -> 13,387 | AD136: 9,944 | AE136: 74.3%
A137: Member 2167 | B137: 1960-01-12 | C137: F | D137: 140,387 | E137: 80% | F137: 85% | G137: 75% | H137: 10% | J137: 58 | K137: 11,699 | L137: 1,170 | M137: 14,624 | N137: 13,454 | O137: =(M137*12-(VLOOKUP(N137*12,'Tax table'!$A$3:$C$10,3)*(N137*12-VLOOKUP(N137*12,'Tax table'!$A$3:$C$10,1))+VLOOKUP(N137*12,'Tax table'!$A$3:$C$10,2)))/12 -> 13,387 | P137: 10,529 | Q137: =(VLOOKUP(P137*12,'Tax table'!$A$3:$C$10,3)*(P137*12-VLOOKUP(P137*12,'Tax table'!$A$3:$C$10,1))+VLOOKUP(P137*12,'Tax table'!$A$3:$C$10,2))/12 -> 710 | R137: 10,989 | S137: 9,340 | T137: 69.8% | U137: 28,021 | V137: =IF($B$15="Yes",MIN(S137*2,References!$B$7),0) -> 18,681 | W137: =IF(AND(D137<>0,$B$16="Yes"),References!$B$6,0) -> 100,000 | X137: 1,648 | Y137: 8,774 | Z137: 1,170 | AA137: 9,944 | AB137: 13,454 | AC137: =(M137*12-(VLOOKUP(AB137*12,'Tax table'!$A$3:$C$10,3)*(AB137*12-VLOOKUP(AB137*12,'Tax table'!$A$3:$C$10,1))+VLOOKUP(AB137*12,'Tax table'!$A$3:$C$10,2)))/12 -> 13,387 | AD137: 9,944 | AE137: 74.3%
A138: Member 2166 | B138: 1959-10-03 | C138: F | D138: 141,939 | E138: 80% | F138: 85% | G138: 75% | H138: 10% | J138: 59 | K138: 11,828 | L138: 1,183 | M138: 14,785 | N138: 13,602 | O138: =(M138*12-(VLOOKUP(N138*12,'Tax table'!$A$3:$C$10,3)*(N138*12-VLOOKUP(N138*12,'Tax table'!$A$3:$C$10,1))+VLOOKUP(N138*12,'Tax table'!$A$3:$C$10,2)))/12 -> 13,522 | P138: 10,645 | Q138: =(VLOOKUP(P138*12,'Tax table'!$A$3:$C$10,3)*(P138*12-VLOOKUP(P138*12,'Tax table'!$A$3:$C$10,1))+VLOOKUP(P138*12,'Tax table'!$A$3:$C$10,2))/12 -> 731 | R138: 11,097 | S138: 9,432 | T138: 69.8% | U138: 28,297 | V138: =IF($B$15="Yes",MIN(S138*2,References!$B$7),0) -> 18,865 | W138: =IF(AND(D138<>0,$B$16="Yes"),References!$B$6,0) -> 100,000 | X138: 1,665 | Y138: 8,871 | Z138: 1,183 | AA138: 10,054 | AB138: 13,602 | AC138: =(M138*12-(VLOOKUP(AB138*12,'Tax table'!$A$3:$C$10,3)*(AB138*12-VLOOKUP(AB138*12,'Tax table'!$A$3:$C$10,1))+VLOOKUP(AB138*12,'Tax table'!$A$3:$C$10,2)))/12 -> 13,522 | AD138: 10,054 | AE138: 74.4%
A139: Member 2159 | B139: 1971-07-09 | C139: M | D139: 143,985 | E139: 80% | F139: 85% | G139: 75% | H139: 10% | J139: 47 | K139: 11,999 | L139: 1,200 | M139: 14,998 | N139: 13,799 | O139: =(M139*12-(VLOOKUP(N139*12,'Tax table'!$A$3:$C$10,3)*(N139*12-VLOOKUP(N139*12,'Tax table'!$A$3:$C$10,1))+VLOOKUP(N139*12,'Tax table'!$A$3:$C$10,2)))/12 -> 13,700 | P139: 10,799 | Q139: =(VLOOKUP(P139*12,'Tax table'!$A$3:$C$10,3)*(P139*12-VLOOKUP(P139*12,'Tax table'!$A$3:$C$10,1))+VLOOKUP(P139*12,'Tax table'!$A$3:$C$10,2))/12 -> 759 | R139: 11,240 | S139: 9,554 | T139: 69.7% | U139: 28,662 | V139: =IF($B$15="Yes",MIN(S139*2,References!$B$7),0) -> 19,108 | W139: =IF(AND(D139<>0,$B$16="Yes"),References!$B$6,0) -> 100,000 | X139: 1,686 | Y139: 8,999 | Z139: 1,200 | AA139: 10,199 | AB139: 13,799 | AC139: =(M139*12-(VLOOKUP(AB139*12,'Tax table'!$A$3:$C$10,3)*(AB139*12-VLOOKUP(AB139*12,'Tax table'!$A$3:$C$10,1))+VLOOKUP(AB139*12,'Tax table'!$A$3:$C$10,2)))/12 -> 13,700 | AD139: 10,199 | AE139: 74.4%
A140: Member 2160 | B140: 1978-07-28 | C140: M | D140: 143,985 | E140: 80% | F140: 85% | G140: 75% | H140: 10% | J140: 40 | K140: 11,999 | L140: 1,200 | M140: 14,998 | N140: 13,799 | O140: =(M140*12-(VLOOKUP(N140*12,'Tax table'!$A$3:$C$10,3)*(N140*12-VLOOKUP(N140*12,'Tax table'!$A$3:$C$10,1))+VLOOKUP(N140*12,'Tax table'!$A$3:$C$10,2)))/12 -> 13,700 | P140: 10,799 | Q140: =(VLOOKUP(P140*12,'Tax table'!$A$3:$C$10,3)*(P140*12-VLOOKUP(P140*12,'Tax table'!$A$3:$C$10,1))+VLOOKUP(P140*12,'Tax table'!$A$3:$C$10,2))/12 -> 759 | R140: 11,240 | S140: 9,554 | T140: 69.7% | U140: 28,662 | V140: =IF($B$15="Yes",MIN(S140*2,References!$B$7),0) -> 19,108 | W140: =IF(AND(D140<>0,$B$16="Yes"),References!$B$6,0) -> 100,000 | X140: 1,686 | Y140: 8,999 | Z140: 1,200 | AA140: 10,199 | AB140: 13,799 | AC140: =(M140*12-(VLOOKUP(AB140*12,'Tax table'!$A$3:$C$10,3)*(AB140*12-VLOOKUP(AB140*12,'Tax table'!$A$3:$C$10,1))+VLOOKUP(AB140*12,'Tax table'!$A$3:$C$10,2)))/12 -> 13,700 | AD140: 10,199 | AE140: 74.4%
A141: Member 2161 | B141: 1980-04-11 | C141: M | D141: 143,985 | E141: 80% | F141: 85% | G141: 75% | H141: 10% | J141: 38 | K141: 11,999 | L141: 1,200 | M141: 14,998 | N141: 13,799 | O141: =(M141*12-(VLOOKUP(N141*12,'Tax table'!$A$3:$C$10,3)*(N141*12-VLOOKUP(N141*12,'Tax table'!$A$3:$C$10,1))+VLOOKUP(N141*12,'Tax table'!$A$3:$C$10,2)))/12 -> 13,700 | P141: 10,799 | Q141: =(VLOOKUP(P141*12,'Tax table'!$A$3:$C$10,3)*(P141*12-VLOOKUP(P141*12,'Tax table'!$A$3:$C$10,1))+VLOOKUP(P141*12,'Tax table'!$A$3:$C$10,2))/12 -> 759 | R141: 11,240 | S141: 9,554 | T141: 69.7% | U141: 28,662 | V141: =IF($B$15="Yes",MIN(S141*2,References!$B$7),0) -> 19,108 | W141: =IF(AND(D141<>0,$B$16="Yes"),References!$B$6,0) -> 100,000 | X141: 1,686 | Y141: 8,999 | Z141: 1,200 | AA141: 10,199 | AB141: 13,799 | AC141: =(M141*12-(VLOOKUP(AB141*12,'Tax table'!$A$3:$C$10,3)*(AB141*12-VLOOKUP(AB141*12,'Tax table'!$A$3:$C$10,1))+VLOOKUP(AB141*12,'Tax table'!$A$3:$C$10,2)))/12 -> 13,700 | AD141: 10,199 | AE141: 74.4%
A142: Member 2162 | B142: 1976-06-11 | C142: M | D142: 143,985 | E142: 80% | F142: 85% | G142: 75% | H142: 10% | J142: 42 | K142: 11,999 | L142: 1,200 | M142: 14,998 | N142: 13,799 | O142: =(M142*12-(VLOOKUP(N142*12,'Tax table'!$A$3:$C$10,3)*(N142*12-VLOOKUP(N142*12,'Tax table'!$A$3:$C$10,1))+VLOOKUP(N142*12,'Tax table'!$A$3:$C$10,2)))/12 -> 13,700 | P142: 10,799 | Q142: =(VLOOKUP(P142*12,'Tax table'!$A$3:$C$10,3)*(P142*12-VLOOKUP(P142*12,'Tax table'!$A$3:$C$10,1))+VLOOKUP(P142*12,'Tax table'!$A$3:$C$10,2))/12 -> 759 | R142: 11,240 | S142: 9,554 | T142: 69.7% | U142: 28,662 | V142: =IF($B$15="Yes",MIN(S142*2,References!$B$7),0) -> 19,108 | W142: =IF(AND(D142<>0,$B$16="Yes"),References!$B$6,0) -> 100,000 | X142: 1,686 | Y142: 8,999 | Z142: 1,200 | AA142: 10,199 | AB142: 13,799 | AC142: =(M142*12-(VLOOKUP(AB142*12,'Tax table'!$A$3:$C$10,3)*(AB142*12-VLOOKUP(AB142*12,'Tax table'!$A$3:$C$10,1))+VLOOKUP(AB142*12,'Tax table'!$A$3:$C$10,2)))/12 -> 13,700 | AD142: 10,199 | AE142: 74.4%
A143: Member 2163 | B143: 1981-05-28 | C143: M | D143: 143,985 | E143: 80% | F143: 85% | G143: 75% | H143: 10% | J143: 37 | K143: 11,999 | L143: 1,200 | M143: 14,998 | N143: 13,799 | O143: =(M143*12-(VLOOKUP(N143*12,'Tax table'!$A$3:$C$10,3)*(N143*12-VLOOKUP(N143*12,'Tax table'!$A$3:$C$10,1))+VLOOKUP(N143*12,'Tax table'!$A$3:$C$10,2)))/12 -> 13,700 | P143: 10,799 | Q143: =(VLOOKUP(P143*12,'Tax table'!$A$3:$C$10,3)*(P143*12-VLOOKUP(P143*12,'Tax table'!$A$3:$C$10,1))+VLOOKUP(P143*12,'Tax table'!$A$3:$C$10,2))/12 -> 759 | R143: 11,240 | S143: 9,554 | T143: 69.7% | U143: 28,662 | V143: =IF($B$15="Yes",MIN(S143*2,References!$B$7),0) -> 19,108 | W143: =IF(AND(D143<>0,$B$16="Yes"),References!$B$6,0) -> 100,000 | X143: 1,686 | Y143: 8,999 | Z143: 1,200 | AA143: 10,199 | AB143: 13,799 | AC143: =(M143*12-(VLOOKUP(AB143*12,'Tax table'!$A$3:$C$10,3)*(AB143*12-VLOOKUP(AB143*12,'Tax table'!$A$3:$C$10,1))+VLOOKUP(AB143*12,'Tax table'!$A$3:$C$10,2)))/12 -> 13,700 | AD143: 10,199 | AE143: 74.4%
A144: Member 2164 | B144: 1978-08-15 | C144: F | D144: 143,985 | E144: 80% | F144: 85% | G144: 75% | H144: 10% | J144: 40 | K144: 11,999 | L144: 1,200 | M144: 14,998 | N144: 13,799 | O144: =(M144*12-(VLOOKUP(N144*12,'Tax table'!$A$3:$C$10,3)*(N144*12-VLOOKUP(N144*12,'Tax table'!$A$3:$C$10,1))+VLOOKUP(N144*12,'Tax table'!$A$3:$C$10,2)))/12 -> 13,700 | P144: 10,799 | Q144: =(VLOOKUP(P144*12,'Tax table'!$A$3:$C$10,3)*(P144*12-VLOOKUP(P144*12,'Tax table'!$A$3:$C$10,1))+VLOOKUP(P144*12,'Tax table'!$A$3:$C$10,2))/12 -> 759 | R144: 11,240 | S144: 9,554 | T144: 69.7% | U144: 28,662 | V144: =IF($B$15="Yes",MIN(S144*2,References!$B$7),0) -> 19,108 | W144: =IF(AND(D144<>0,$B$16="Yes"),References!$B$6,0) -> 100,000 | X144: 1,686 | Y144: 8,999 | Z144: 1,200 | AA144: 10,199 | AB144: 13,799 | AC144: =(M144*12-(VLOOKUP(AB144*12,'Tax table'!$A$3:$C$10,3)*(AB144*12-VLOOKUP(AB144*12,'Tax table'!$A$3:$C$10,1))+VLOOKUP(AB144*12,'Tax table'!$A$3:$C$10,2)))/12 -> 13,700 | AD144: 10,199 | AE144: 74.4%
A145: Member 2165 | B145: 1982-02-08 | C145: M | D145: 143,985 | E145: 80% | F145: 85% | G145: 75% | H145: 10% | J145: 36 | K145: 11,999 | L145: 1,200 | M145: 14,998 | N145: 13,799 | O145: =(M145*12-(VLOOKUP(N145*12,'Tax table'!$A$3:$C$10,3)*(N145*12-VLOOKUP(N145*12,'Tax table'!$A$3:$C$10,1))+VLOOKUP(N145*12,'Tax table'!$A$3:$C$10,2)))/12 -> 13,700 | P145: 10,799 | Q145: =(VLOOKUP(P145*12,'Tax table'!$A$3:$C$10,3)*(P145*12-VLOOKUP(P145*12,'Tax table'!$A$3:$C$10,1))+VLOOKUP(P145*12,'Tax table'!$A$3:$C$10,2))/12 -> 759 | R145: 11,240 | S145: 9,554 | T145: 69.7% | U145: 28,662 | V145: =IF($B$15="Yes",MIN(S145*2,References!$B$7),0) -> 19,108 | W145: =IF(AND(D145<>0,$B$16="Yes"),References!$B$6,0) -> 100,000 | X145: 1,686 | Y145: 8,999 | Z145: 1,200 | AA145: 10,199 | AB145: 13,799 | AC145: =(M145*12-(VLOOKUP(AB145*12,'Tax table'!$A$3:$C$10,3)*(AB145*12-VLOOKUP(AB145*12,'Tax table'!$A$3:$C$10,1))+VLOOKUP(AB145*12,'Tax table'!$A$3:$C$10,2)))/12 -> 13,700 | AD145: 10,199 | AE145: 74.4%
A146: Member 2149 | B146: 1981-10-02 | C146: M | D146: 143,986 | E146: 80% | F146: 85% | G146: 75% | H146: 10% | J146: 37 | K146: 11,999 | L146: 1,200 | M146: 14,999 | N146: 13,799 | O146: =(M146*12-(VLOOKUP(N146*12,'Tax table'!$A$3:$C$10,3)*(N146*12-VLOOKUP(N146*12,'Tax table'!$A$3:$C$10,1))+VLOOKUP(N146*12,'Tax table'!$A$3:$C$10,2)))/12 -> 13,700 | P146: 10,799 | Q146: =(VLOOKUP(P146*12,'Tax table'!$A$3:$C$10,3)*(P146*12-VLOOKUP(P146*12,'Tax table'!$A$3:$C$10,1))+VLOOKUP(P146*12,'Tax table'!$A$3:$C$10,2))/12 -> 759 | R146: 11,240 | S146: 9,554 | T146: 69.7% | U146: 28,662 | V146: =IF($B$15="Yes",MIN(S146*2,References!$B$7),0) -> 19,108 | W146: =IF(AND(D146<>0,$B$16="Yes"),References!$B$6,0) -> 100,000 | X146: 1,686 | Y146: 8,999 | Z146: 1,200 | AA146: 10,199 | AB146: 13,799 | AC146: =(M146*12-(VLOOKUP(AB146*12,'Tax table'!$A$3:$C$10,3)*(AB146*12-VLOOKUP(AB146*12,'Tax table'!$A$3:$C$10,1))+VLOOKUP(AB146*12,'Tax table'!$A$3:$C$10,2)))/12 -> 13,700 | AD146: 10,199 | AE146: 74.4%
A147: Member 2150 | B147: 1979-04-27 | C147: M | D147: 143,986 | E147: 80% | F147: 85% | G147: 75% | H147: 10% | J147: 39 | K147: 11,999 | L147: 1,200 | M147: 14,999 | N147: 13,799 | O147: =(M147*12-(VLOOKUP(N147*12,'Tax table'!$A$3:$C$10,3)*(N147*12-VLOOKUP(N147*12,'Tax table'!$A$3:$C$10,1))+VLOOKUP(N147*12,'Tax table'!$A$3:$C$10,2)))/12 -> 13,700 | P147: 10,799 | Q147: =(VLOOKUP(P147*12,'Tax table'!$A$3:$C$10,3)*(P147*12-VLOOKUP(P147*12,'Tax table'!$A$3:$C$10,1))+VLOOKUP(P147*12,'Tax table'!$A$3:$C$10,2))/12 -> 759 | R147: 11,240 | S147: 9,554 | T147: 69.7% | U147: 28,662 | V147: =IF($B$15="Yes",MIN(S147*2,References!$B$7),0) -> 19,108 | W147: =IF(AND(D147<>0,$B$16="Yes"),References!$B$6,0) -> 100,000 | X147: 1,686 | Y147: 8,999 | Z147: 1,200 | AA147: 10,199 | AB147: 13,799 | AC147: =(M147*12-(VLOOKUP(AB147*12,'Tax table'!$A$3:$C$10,3)*(AB147*12-VLOOKUP(AB147*12,'Tax table'!$A$3:$C$10,1))+VLOOKUP(AB147*12,'Tax table'!$A$3:$C$10,2)))/12 -> 13,700 | AD147: 10,199 | AE147: 74.4%
A148: Member 2151 | B148: 1984-07-09 | C148: M | D148: 143,986 | E148: 80% | F148: 85% | G148: 75% | H148: 10% | J148: 34 | K148: 11,999 | L148: 1,200 | M148: 14,999 | N148: 13,799 | O148: =(M148*12-(VLOOKUP(N148*12,'Tax table'!$A$3:$C$10,3)*(N148*12-VLOOKUP(N148*12,'Tax table'!$A$3:$C$10,1))+VLOOKUP(N148*12,'Tax table'!$A$3:$C$10,2)))/12 -> 13,700 | P148: 10,799 | Q148: =(VLOOKUP(P148*12,'Tax table'!$A$3:$C$10,3)*(P148*12-VLOOKUP(P148*12,'Tax table'!$A$3:$C$10,1))+VLOOKUP(P148*12,'Tax table'!$A$3:$C$10,2))/12 -> 759 | R148: 11,240 | S148: 9,554 | T148: 69.7% | U148: 28,662 | V148: =IF($B$15="Yes",MIN(S148*2,References!$B$7),0) -> 19,108 | W148: =IF(AND(D148<>0,$B$16="Yes"),References!$B$6,0) -> 100,000 | X148: 1,686 | Y148: 8,999 | Z148: 1,200 | AA148: 10,199 | AB148: 13,799 | AC148: =(M148*12-(VLOOKUP(AB148*12,'Tax table'!$A$3:$C$10,3)*(AB148*12-VLOOKUP(AB148*12,'Tax table'!$A$3:$C$10,1))+VLOOKUP(AB148*12,'Tax table'!$A$3:$C$10,2)))/12 -> 13,700 | AD148: 10,199 | AE148: 74.4%
A149: Member 2152 | B149: 1975-06-28 | C149: M | D149: 143,986 | E149: 80% | F149: 85% | G149: 75% | H149: 10% | J149: 43 | K149: 11,999 | L149: 1,200 | M149: 14,999 | N149: 13,799 | O149: =(M149*12-(VLOOKUP(N149*12,'Tax table'!$A$3:$C$10,3)*(N149*12-VLOOKUP(N149*12,'Tax table'!$A$3:$C$10,1))+VLOOKUP(N149*12,'Tax table'!$A$3:$C$10,2)))/12 -> 13,700 | P149: 10,799 | Q149: =(VLOOKUP(P149*12,'Tax table'!$A$3:$C$10,3)*(P149*12-VLOOKUP(P149*12,'Tax table'!$A$3:$C$10,1))+VLOOKUP(P149*12,'Tax table'!$A$3:$C$10,2))/12 -> 759 | R149: 11,240 | S149: 9,554 | T149: 69.7% | U149: 28,662 | V149: =IF($B$15="Yes",MIN(S149*2,References!$B$7),0) -> 19,108 | W149: =IF(AND(D149<>0,$B$16="Yes"),References!$B$6,0) -> 100,000 | X149: 1,686 | Y149: 8,999 | Z149: 1,200 | AA149: 10,199 | AB149: 13,799 | AC149: =(M149*12-(VLOOKUP(AB149*12,'Tax table'!$A$3:$C$10,3)*(AB149*12-VLOOKUP(AB149*12,'Tax table'!$A$3:$C$10,1))+VLOOKUP(AB149*12,'Tax table'!$A$3:$C$10,2)))/12 -> 13,700 | AD149: 10,199 | AE149: 74.4%
A150: Member 2153 | B150: 1978-10-16 | C150: M | D150: 143,986 | E150: 80% | F150: 85% | G150: 75% | H150: 10% | J150: 40 | K150: 11,999 | L150: 1,200 | M150: 14,999 | N150: 13,799 | O150: =(M150*12-(VLOOKUP(N150*12,'Tax table'!$A$3:$C$10,3)*(N150*12-VLOOKUP(N150*12,'Tax table'!$A$3:$C$10,1))+VLOOKUP(N150*12,'Tax table'!$A$3:$C$10,2)))/12 -> 13,700 | P150: 10,799 | Q150: =(VLOOKUP(P150*12,'Tax table'!$A$3:$C$10,3)*(P150*12-VLOOKUP(P150*12,'Tax table'!$A$3:$C$10,1))+VLOOKUP(P150*12,'Tax table'!$A$3:$C$10,2))/12 -> 759 | R150: 11,240 | S150: 9,554 | T150: 69.7% | U150: 28,662 | V150: =IF($B$15="Yes",MIN(S150*2,References!$B$7),0) -> 19,108 | W150: =IF(AND(D150<>0,$B$16="Yes"),References!$B$6,0) -> 100,000 | X150: 1,686 | Y150: 8,999 | Z150: 1,200 | AA150: 10,199 | AB150: 13,799 | AC150: =(M150*12-(VLOOKUP(AB150*12,'Tax table'!$A$3:$C$10,3)*(AB150*12-VLOOKUP(AB150*12,'Tax table'!$A$3:$C$10,1))+VLOOKUP(AB150*12,'Tax table'!$A$3:$C$10,2)))/12 -> 13,700 | AD150: 10,199 | AE150: 74.4%
A151: Member 2154 | B151: 1978-01-28 | C151: M | D151: 143,986 | E151: 80% | F151: 85% | G151: 75% | H151: 10% | J151: 40 | K151: 11,999 | L151: 1,200 | M151: 14,999 | N151: 13,799 | O151: =(M151*12-(VLOOKUP(N151*12,'Tax table'!$A$3:$C$10,3)*(N151*12-VLOOKUP(N151*12,'Tax table'!$A$3:$C$10,1))+VLOOKUP(N151*12,'Tax table'!$A$3:$C$10,2)))/12 -> 13,700 | P151: 10,799 | Q151: =(VLOOKUP(P151*12,'Tax table'!$A$3:$C$10,3)*(P151*12-VLOOKUP(P151*12,'Tax table'!$A$3:$C$10,1))+VLOOKUP(P151*12,'Tax table'!$A$3:$C$10,2))/12 -> 759 | R151: 11,240 | S151: 9,554 | T151: 69.7% | U151: 28,662 | V151: =IF($B$15="Yes",MIN(S151*2,References!$B$7),0) -> 19,108 | W151: =IF(AND(D151<>0,$B$16="Yes"),References!$B$6,0) -> 100,000 | X151: 1,686 | Y151: 8,999 | Z151: 1,200 | AA151: 10,199 | AB151: 13,799 | AC151: =(M151*12-(VLOOKUP(AB151*12,'Tax table'!$A$3:$C$10,3)*(AB151*12-VLOOKUP(AB151*12,'Tax table'!$A$3:$C$10,1))+VLOOKUP(AB151*12,'Tax table'!$A$3:$C$10,2)))/12 -> 13,700 | AD151: 10,199 | AE151: 74.4%
A152: Member 2155 | B152: 1984-06-12 | C152: M | D152: 143,986 | E152: 80% | F152: 85% | G152: 75% | H152: 10% | J152: =DATEDIF(B152,$B$7,"y") -> 34 | K152: =D152/12 -> 11,999 | L152: =IF($B$10="No",MIN(K152*H152,15%*K152),I152/12) -> 1,200 | M152: =D152/12/E152 -> 14,999 | N152: =M152-L152 -> 13,799 | O152: =(M152*12-(VLOOKUP(N152*12,'Tax table'!$A$3:$C$10,3)*(N152*12-VLOOKUP(N152*12,'Tax table'!$A$3:$C$10,1))+VLOOKUP(N152*12,'Tax table'!$A$3:$C$10,2)))/12 -> 13,700 | P152: =K152-L152 -> 10,799 | Q152: =(VLOOKUP(P152*12,'Tax table'!$A$3:$C$10,3)*(P152*12-VLOOKUP(P152*12,'Tax table'!$A$3:$C$10,1))+VLOOKUP(P152*12,'Tax table'!$A$3:$C$10,2))/12 -> 759 | R152: =K152-Q152 -> 11,240 | S152: =MIN(R152*F152,SUM($B$8,$B$9)) -> 9,554 | T152: =S152/O152 -> 69.7% | U152: =IF($B$14="Yes",S152*3,0) -> 28,662 | V152: =IF($B$15="Yes",MIN(S152*2,References!$B$7),0) -> 19,108 | W152: =IF(AND(D152<>0,$B$16="Yes"),References!$B$6,0) -> 100,000 | X152: =IF($B$17="Yes",MIN(R152,SUM($B$8:$B$9))-S152,0) -> 1,686 | Y152: =MIN(K152*G152,$B$8) -> 8,999 | Z152: =MIN(K152*H152,$B$9) -> 1,200 | AA152: =Z152+Y152 -> 10,199 | AB152: =M152-Z152 -> 13,799 | AC152: =(M152*12-(VLOOKUP(AB152*12,'Tax table'!$A$3:$C$10,3)*(AB152*12-VLOOKUP(AB152*12,'Tax table'!$A$3:$C$10,1))+VLOOKUP(AB152*12,'Tax table'!$A$3:$C$10,2)))/12 -> 13,700 | AD152: =MIN(AA152,AC152) -> 10,199 | AE152: =AD152/O152 -> 74.4%
A153: Member 2156 | B153: 1988-10-23 | C153: M | D153: 143,986 | E153: 80% | F153: 85% | G153: 75% | H153: 10% | J153: 30 | K153: 11,999 | L153: 1,200 | M153: 14,999 | N153: 13,799 | O153: =(M153*12-(VLOOKUP(N153*12,'Tax table'!$A$3:$C$10,3)*(N153*12-VLOOKUP(N153*12,'Tax table'!$A$3:$C$10,1))+VLOOKUP(N153*12,'Tax table'!$A$3:$C$10,2)))/12 -> 13,700 | P153: 10,799 | Q153: =(VLOOKUP(P153*12,'Tax table'!$A$3:$C$10,3)*(P153*12-VLOOKUP(P153*12,'Tax table'!$A$3:$C$10,1))+VLOOKUP(P153*12,'Tax table'!$A$3:$C$10,2))/12 -> 759 | R153: 11,240 | S153: 9,554 | T153: 69.7% | U153: 28,662 | V153: =IF($B$15="Yes",MIN(S153*2,References!$B$7),0) -> 19,108 | W153: =IF(AND(D153<>0,$B$16="Yes"),References!$B$6,0) -> 100,000 | X153: 1,686 | Y153: 8,999 | Z153: 1,200 | AA153: 10,199 | AB153: 13,799 | AC153: =(M153*12-(VLOOKUP(AB153*12,'Tax table'!$A$3:$C$10,3)*(AB153*12-VLOOKUP(AB153*12,'Tax table'!$A$3:$C$10,1))+VLOOKUP(AB153*12,'Tax table'!$A$3:$C$10,2)))/12 -> 13,700 | AD153: 10,199 | AE153: 74.4%
A154: Member 2157 | B154: 1987-07-22 | C154: M | D154: 143,986 | E154: 80% | F154: 85% | G154: 75% | H154: 10% | J154: 31 | K154: 11,999 | L154: 1,200 | M154: 14,999 | N154: 13,799 | O154: =(M154*12-(VLOOKUP(N154*12,'Tax table'!$A$3:$C$10,3)*(N154*12-VLOOKUP(N154*12,'Tax table'!$A$3:$C$10,1))+VLOOKUP(N154*12,'Tax table'!$A$3:$C$10,2)))/12 -> 13,700 | P154: 10,799 | Q154: =(VLOOKUP(P154*12,'Tax table'!$A$3:$C$10,3)*(P154*12-VLOOKUP(P154*12,'Tax table'!$A$3:$C$10,1))+VLOOKUP(P154*12,'Tax table'!$A$3:$C$10,2))/12 -> 759 | R154: 11,240 | S154: 9,554 | T154: 69.7% | U154: 28,662 | V154: =IF($B$15="Yes",MIN(S154*2,References!$B$7),0) -> 19,108 | W154: =IF(AND(D154<>0,$B$16="Yes"),References!$B$6,0) -> 100,000 | X154: 1,686 | Y154: 8,999 | Z154: 1,200 | AA154: 10,199 | AB154: 13,799 | AC154: =(M154*12-(VLOOKUP(AB154*12,'Tax table'!$A$3:$C$10,3)*(AB154*12-VLOOKUP(AB154*12,'Tax table'!$A$3:$C$10,1))+VLOOKUP(AB154*12,'Tax table'!$A$3:$C$10,2)))/12 -> 13,700 | AD154: 10,199 | AE154: 74.4%
A155: Member 2158 | B155: 1968-07-27 | C155: M | D155: 143,986 | E155: 80% | F155: 85% | G155: 75% | H155: 10% | J155: 50 | K155: 11,999 | L155: 1,200 | M155: 14,999 | N155: 13,799 | O155: =(M155*12-(VLOOKUP(N155*12,'Tax table'!$A$3:$C$10,3)*(N155*12-VLOOKUP(N155*12,'Tax table'!$A$3:$C$10,1))+VLOOKUP(N155*12,'Tax table'!$A$3:$C$10,2)))/12 -> 13,700 | P155: 10,799 | Q155: =(VLOOKUP(P155*12,'Tax table'!$A$3:$C$10,3)*(P155*12-VLOOKUP(P155*12,'Tax table'!$A$3:$C$10,1))+VLOOKUP(P155*12,'Tax table'!$A$3:$C$10,2))/12 -> 759 | R155: 11,240 | S155: 9,554 | T155: 69.7% | U155: 28,662 | V155: =IF($B$15="Yes",MIN(S155*2,References!$B$7),0) -> 19,108 | W155: =IF(AND(D155<>0,$B$16="Yes"),References!$B$6,0) -> 100,000 | X155: 1,686 | Y155: 8,999 | Z155: 1,200 | AA155: 10,199 | AB155: 13,799 | AC155: =(M155*12-(VLOOKUP(AB155*12,'Tax table'!$A$3:$C$10,3)*(AB155*12-VLOOKUP(AB155*12,'Tax table'!$A$3:$C$10,1))+VLOOKUP(AB155*12,'Tax table'!$A$3:$C$10,2)))/12 -> 13,700 | AD155: 10,199 | AE155: 74.4%
A156: Member 2140 | B156: 1977-04-22 | C156: M | D156: 143,990 | E156: 80% | F156: 85% | G156: 75% | H156: 10% | J156: 41 | K156: 11,999 | L156: 1,200 | M156: 14,999 | N156: 13,799 | O156: =(M156*12-(VLOOKUP(N156*12,'Tax table'!$A$3:$C$10,3)*(N156*12-VLOOKUP(N156*12,'Tax table'!$A$3:$C$10,1))+VLOOKUP(N156*12,'Tax table'!$A$3:$C$10,2)))/12 -> 13,700 | P156: 10,799 | Q156: =(VLOOKUP(P156*12,'Tax table'!$A$3:$C$10,3)*(P156*12-VLOOKUP(P156*12,'Tax table'!$A$3:$C$10,1))+VLOOKUP(P156*12,'Tax table'!$A$3:$C$10,2))/12 -> 759 | R156: 11,240 | S156: 9,554 | T156: 69.7% | U156: 28,663 | V156: =IF($B$15="Yes",MIN(S156*2,References!$B$7),0) -> 19,108 | W156: =IF(AND(D156<>0,$B$16="Yes"),References!$B$6,0) -> 100,000 | X156: 1,686 | Y156: 8,999 | Z156: 1,200 | AA156: 10,199 | AB156: 13,799 | AC156: =(M156*12-(VLOOKUP(AB156*12,'Tax table'!$A$3:$C$10,3)*(AB156*12-VLOOKUP(AB156*12,'Tax table'!$A$3:$C$10,1))+VLOOKUP(AB156*12,'Tax table'!$A$3:$C$10,2)))/12 -> 13,700 | AD156: 10,199 | AE156: 74.4%
A157: Member 2141 | B157: 1985-12-01 | C157: M | D157: 143,990 | E157: 80% | F157: 85% | G157: 75% | H157: 10% | J157: 32 | K157: 11,999 | L157: 1,200 | M157: 14,999 | N157: 13,799 | O157: =(M157*12-(VLOOKUP(N157*12,'Tax table'!$A$3:$C$10,3)*(N157*12-VLOOKUP(N157*12,'Tax table'!$A$3:$C$10,1))+VLOOKUP(N157*12,'Tax table'!$A$3:$C$10,2)))/12 -> 13,700 | P157: 10,799 | Q157: =(VLOOKUP(P157*12,'Tax table'!$A$3:$C$10,3)*(P157*12-VLOOKUP(P157*12,'Tax table'!$A$3:$C$10,1))+VLOOKUP(P157*12,'Tax table'!$A$3:$C$10,2))/12 -> 759 | R157: 11,240 | S157: 9,554 | T157: 69.7% | U157: 28,663 | V157: =IF($B$15="Yes",MIN(S157*2,References!$B$7),0) -> 19,108 | W157: =IF(AND(D157<>0,$B$16="Yes"),References!$B$6,0) -> 100,000 | X157: 1,686 | Y157: 8,999 | Z157: 1,200 | AA157: 10,199 | AB157: 13,799 | AC157: =(M157*12-(VLOOKUP(AB157*12,'Tax table'!$A$3:$C$10,3)*(AB157*12-VLOOKUP(AB157*12,'Tax table'!$A$3:$C$10,1))+VLOOKUP(AB157*12,'Tax table'!$A$3:$C$10,2)))/12 -> 13,700 | AD157: 10,199 | AE157: 74.4%
A158: Member 2142 | B158: 1978-07-02 | C158: M | D158: 143,990 | E158: 80% | F158: 85% | G158: 75% | H158: 10% | J158: 40 | K158: 11,999 | L158: 1,200 | M158: 14,999 | N158: 13,799 | O158: =(M158*12-(VLOOKUP(N158*12,'Tax table'!$A$3:$C$10,3)*(N158*12-VLOOKUP(N158*12,'Tax table'!$A$3:$C$10,1))+VLOOKUP(N158*12,'Tax table'!$A$3:$C$10,2)))/12 -> 13,700 | P158: 10,799 | Q158: =(VLOOKUP(P158*12,'Tax table'!$A$3:$C$10,3)*(P158*12-VLOOKUP(P158*12,'Tax table'!$A$3:$C$10,1))+VLOOKUP(P158*12,'Tax table'!$A$3:$C$10,2))/12 -> 759 | R158: 11,240 | S158: 9,554 | T158: 69.7% | U158: 28,663 | V158: =IF($B$15="Yes",MIN(S158*2,References!$B$7),0) -> 19,108 | W158: =IF(AND(D158<>0,$B$16="Yes"),References!$B$6,0) -> 100,000 | X158: 1,686 | Y158: 8,999 | Z158: 1,200 | AA158: 10,199 | AB158: 13,799 | AC158: =(M158*12-(VLOOKUP(AB158*12,'Tax table'!$A$3:$C$10,3)*(AB158*12-VLOOKUP(AB158*12,'Tax table'!$A$3:$C$10,1))+VLOOKUP(AB158*12,'Tax table'!$A$3:$C$10,2)))/12 -> 13,700 | AD158: 10,199 | AE158: 74.4%
A159: Member 2143 | B159: 1972-06-07 | C159: M | D159: 143,990 | E159: 80% | F159: 85% | G159: 75% | H159: 10% | J159: 46 | K159: 11,999 | L159: 1,200 | M159: 14,999 | N159: 13,799 | O159: =(M159*12-(VLOOKUP(N159*12,'Tax table'!$A$3:$C$10,3)*(N159*12-VLOOKUP(N159*12,'Tax table'!$A$3:$C$10,1))+VLOOKUP(N159*12,'Tax table'!$A$3:$C$10,2)))/12 -> 13,700 | P159: 10,799 | Q159: =(VLOOKUP(P159*12,'Tax table'!$A$3:$C$10,3)*(P159*12-VLOOKUP(P159*12,'Tax table'!$A$3:$C$10,1))+VLOOKUP(P159*12,'Tax table'!$A$3:$C$10,2))/12 -> 759 | R159: 11,240 | S159: 9,554 | T159: 69.7% | U159: 28,663 | V159: =IF($B$15="Yes",MIN(S159*2,References!$B$7),0) -> 19,108 | W159: =IF(AND(D159<>0,$B$16="Yes"),References!$B$6,0) -> 100,000 | X159: 1,686 | Y159: 8,999 | Z159: 1,200 | AA159: 10,199 | AB159: 13,799 | AC159: =(M159*12-(VLOOKUP(AB159*12,'Tax table'!$A$3:$C$10,3)*(AB159*12-VLOOKUP(AB159*12,'Tax table'!$A$3:$C$10,1))+VLOOKUP(AB159*12,'Tax table'!$A$3:$C$10,2)))/12 -> 13,700 | AD159: 10,199 | AE159: 74.4%
A160: Member 2144 | B160: 1980-01-20 | C160: M | D160: 143,990 | E160: 80% | F160: 85% | G160: 75% | H160: 10% | J160: 38 | K160: 11,999 | L160: 1,200 | M160: 14,999 | N160: 13,799 | O160: =(M160*12-(VLOOKUP(N160*12,'Tax table'!$A$3:$C$10,3)*(N160*12-VLOOKUP(N160*12,'Tax table'!$A$3:$C$10,1))+VLOOKUP(N160*12,'Tax table'!$A$3:$C$10,2)))/12 -> 13,700 | P160: 10,799 | Q160: =(VLOOKUP(P160*12,'Tax table'!$A$3:$C$10,3)*(P160*12-VLOOKUP(P160*12,'Tax table'!$A$3:$C$10,1))+VLOOKUP(P160*12,'Tax table'!$A$3:$C$10,2))/12 -> 759 | R160: 11,240 | S160: 9,554 | T160: 69.7% | U160: 28,663 | V160: =IF($B$15="Yes",MIN(S160*2,References!$B$7),0) -> 19,108 | W160: =IF(AND(D160<>0,$B$16="Yes"),References!$B$6,0) -> 100,000 | X160: 1,686 | Y160: 8,999 | Z160: 1,200 | AA160: 10,199 | AB160: 13,799 | AC160: =(M160*12-(VLOOKUP(AB160*12,'Tax table'!$A$3:$C$10,3)*(AB160*12-VLOOKUP(AB160*12,'Tax table'!$A$3:$C$10,1))+VLOOKUP(AB160*12,'Tax table'!$A$3:$C$10,2)))/12 -> 13,700 | AD160: 10,199 | AE160: 74.4%
A161: Member 2145 | B161: 1975-11-02 | C161: M | D161: 143,990 | E161: 80% | F161: 85% | G161: 75% | H161: 10% | J161: 43 | K161: 11,999 | L161: 1,200 | M161: 14,999 | N161: 13,799 | O161: =(M161*12-(VLOOKUP(N161*12,'Tax table'!$A$3:$C$10,3)*(N161*12-VLOOKUP(N161*12,'Tax table'!$A$3:$C$10,1))+VLOOKUP(N161*12,'Tax table'!$A$3:$C$10,2)))/12 -> 13,700 | P161: 10,799 | Q161: =(VLOOKUP(P161*12,'Tax table'!$A$3:$C$10,3)*(P161*12-VLOOKUP(P161*12,'Tax table'!$A$3:$C$10,1))+VLOOKUP(P161*12,'Tax table'!$A$3:$C$10,2))/12 -> 759 | R161: 11,240 | S161: 9,554 | T161: 69.7% | U161: 28,663 | V161: =IF($B$15="Yes",MIN(S161*2,References!$B$7),0) -> 19,108 | W161: =IF(AND(D161<>0,$B$16="Yes"),References!$B$6,0) -> 100,000 | X161: 1,686 | Y161: 8,999 | Z161: 1,200 | AA161: 10,199 | AB161: 13,799 | AC161: =(M161*12-(VLOOKUP(AB161*12,'Tax table'!$A$3:$C$10,3)*(AB161*12-VLOOKUP(AB161*12,'Tax table'!$A$3:$C$10,1))+VLOOKUP(AB161*12,'Tax table'!$A$3:$C$10,2)))/12 -> 13,700 | AD161: 10,199 | AE161: 74.4%
A162: Member 2146 | B162: 1985-05-26 | C162: M | D162: 143,990 | E162: 80% | F162: 85% | G162: 75% | H162: 10% | J162: 33 | K162: 11,999 | L162: 1,200 | M162: 14,999 | N162: 13,799 | O162: =(M162*12-(VLOOKUP(N162*12,'Tax table'!$A$3:$C$10,3)*(N162*12-VLOOKUP(N162*12,'Tax table'!$A$3:$C$10,1))+VLOOKUP(N162*12,'Tax table'!$A$3:$C$10,2)))/12 -> 13,700 | P162: 10,799 | Q162: =(VLOOKUP(P162*12,'Tax table'!$A$3:$C$10,3)*(P162*12-VLOOKUP(P162*12,'Tax table'!$A$3:$C$10,1))+VLOOKUP(P162*12,'Tax table'!$A$3:$C$10,2))/12 -> 759 | R162: 11,240 | S162: 9,554 | T162: 69.7% | U162: 28,663 | V162: =IF($B$15="Yes",MIN(S162*2,References!$B$7),0) -> 19,108 | W162: =IF(AND(D162<>0,$B$16="Yes"),References!$B$6,0) -> 100,000 | X162: 1,686 | Y162: 8,999 | Z162: 1,200 | AA162: 10,199 | AB162: 13,799 | AC162: =(M162*12-(VLOOKUP(AB162*12,'Tax table'!$A$3:$C$10,3)*(AB162*12-VLOOKUP(AB162*12,'Tax table'!$A$3:$C$10,1))+VLOOKUP(AB162*12,'Tax table'!$A$3:$C$10,2)))/12 -> 13,700 | AD162: 10,199 | AE162: 74.4%
A163: Member 2147 | B163: 1988-10-01 | C163: M | D163: 143,990 | E163: 80% | F163: 85% | G163: 75% | H163: 10% | J163: 30 | K163: 11,999 | L163: 1,200 | M163: 14,999 | N163: 13,799 | O163: =(M163*12-(VLOOKUP(N163*12,'Tax table'!$A$3:$C$10,3)*(N163*12-VLOOKUP(N163*12,'Tax table'!$A$3:$C$10,1))+VLOOKUP(N163*12,'Tax table'!$A$3:$C$10,2)))/12 -> 13,700 | P163: 10,799 | Q163: =(VLOOKUP(P163*12,'Tax table'!$A$3:$C$10,3)*(P163*12-VLOOKUP(P163*12,'Tax table'!$A$3:$C$10,1))+VLOOKUP(P163*12,'Tax table'!$A$3:$C$10,2))/12 -> 759 | R163: 11,240 | S163: 9,554 | T163: 69.7% | U163: 28,663 | V163: =IF($B$15="Yes",MIN(S163*2,References!$B$7),0) -> 19,108 | W163: =IF(AND(D163<>0,$B$16="Yes"),References!$B$6,0) -> 100,000 | X163: 1,686 | Y163: 8,999 | Z163: 1,200 | AA163: 10,199 | AB163: 13,799 | AC163: =(M163*12-(VLOOKUP(AB163*12,'Tax table'!$A$3:$C$10,3)*(AB163*12-VLOOKUP(AB163*12,'Tax table'!$A$3:$C$10,1))+VLOOKUP(AB163*12,'Tax table'!$A$3:$C$10,2)))/12 -> 13,700 | AD163: 10,199 | AE163: 74.4%
A164: Member 2148 | B164: 1980-12-17 | C164: M | D164: 143,990 | E164: 80% | F164: 85% | G164: 75% | H164: 10% | J164: 37 | K164: 11,999 | L164: 1,200 | M164: 14,999 | N164: 13,799 | O164: =(M164*12-(VLOOKUP(N164*12,'Tax table'!$A$3:$C$10,3)*(N164*12-VLOOKUP(N164*12,'Tax table'!$A$3:$C$10,1))+VLOOKUP(N164*12,'Tax table'!$A$3:$C$10,2)))/12 -> 13,700 | P164: 10,799 | Q164: =(VLOOKUP(P164*12,'Tax table'!$A$3:$C$10,3)*(P164*12-VLOOKUP(P164*12,'Tax table'!$A$3:$C$10,1))+VLOOKUP(P164*12,'Tax table'!$A$3:$C$10,2))/12 -> 759 | R164: 11,240 | S164: 9,554 | T164: 69.7% | U164: 28,663 | V164: =IF($B$15="Yes",MIN(S164*2,References!$B$7),0) -> 19,108 | W164: =IF(AND(D164<>0,$B$16="Yes"),References!$B$6,0) -> 100,000 | X164: 1,686 | Y164: 8,999 | Z164: 1,200 | AA164: 10,199 | AB164: 13,799 | AC164: =(M164*12-(VLOOKUP(AB164*12,'Tax table'!$A$3:$C$10,3)*(AB164*12-VLOOKUP(AB164*12,'Tax table'!$A$3:$C$10,1))+VLOOKUP(AB164*12,'Tax table'!$A$3:$C$10,2)))/12 -> 13,700 | AD164: 10,199 | AE164: 74.4%
A165: Member 2134 | B165: 1973-01-14 | C165: M | D165: 143,991 | E165: 80% | F165: 85% | G165: 75% | H165: 10% | J165: 45 | K165: 11,999 | L165: 1,200 | M165: 14,999 | N165: 13,799 | O165: =(M165*12-(VLOOKUP(N165*12,'Tax table'!$A$3:$C$10,3)*(N165*12-VLOOKUP(N165*12,'Tax table'!$A$3:$C$10,1))+VLOOKUP(N165*12,'Tax table'!$A$3:$C$10,2)))/12 -> 13,700 | P165: 10,799 | Q165: =(VLOOKUP(P165*12,'Tax table'!$A$3:$C$10,3)*(P165*12-VLOOKUP(P165*12,'Tax table'!$A$3:$C$10,1))+VLOOKUP(P165*12,'Tax table'!$A$3:$C$10,2))/12 -> 759 | R165: 11,240 | S165: 9,554 | T165: 69.7% | U165: 28,663 | V165: =IF($B$15="Yes",MIN(S165*2,References!$B$7),0) -> 19,109 | W165: =IF(AND(D165<>0,$B$16="Yes"),References!$B$6,0) -> 100,000 | X165: 1,686 | Y165: 8,999 | Z165: 1,200 | AA165: 10,199 | AB165: 13,799 | AC165: =(M165*12-(VLOOKUP(AB165*12,'Tax table'!$A$3:$C$10,3)*(AB165*12-VLOOKUP(AB165*12,'Tax table'!$A$3:$C$10,1))+VLOOKUP(AB165*12,'Tax table'!$A$3:$C$10,2)))/12 -> 13,700 | AD165: 10,199 | AE165: 74.4%
A166: Member 2135 | B166: 1971-05-25 | C166: M | D166: 143,991 | E166: 80% | F166: 85% | G166: 75% | H166: 10% | J166: 47 | K166: 11,999 | L166: 1,200 | M166: 14,999 | N166: 13,799 | O166: =(M166*12-(VLOOKUP(N166*12,'Tax table'!$A$3:$C$10,3)*(N166*12-VLOOKUP(N166*12,'Tax table'!$A$3:$C$10,1))+VLOOKUP(N166*12,'Tax table'!$A$3:$C$10,2)))/12 -> 13,700 | P166: 10,799 | Q166: =(VLOOKUP(P166*12,'Tax table'!$A$3:$C$10,3)*(P166*12-VLOOKUP(P166*12,'Tax table'!$A$3:$C$10,1))+VLOOKUP(P166*12,'Tax table'!$A$3:$C$10,2))/12 -> 759 | R166: 11,240 | S166: 9,554 | T166: 69.7% | U166: 28,663 | V166: =IF($B$15="Yes",MIN(S166*2,References!$B$7),0) -> 19,109 | W166: =IF(AND(D166<>0,$B$16="Yes"),References!$B$6,0) -> 100,000 | X166: 1,686 | Y166: 8,999 | Z166: 1,200 | AA166: 10,199 | AB166: 13,799 | AC166: =(M166*12-(VLOOKUP(AB166*12,'Tax table'!$A$3:$C$10,3)*(AB166*12-VLOOKUP(AB166*12,'Tax table'!$A$3:$C$10,1))+VLOOKUP(AB166*12,'Tax table'!$A$3:$C$10,2)))/12 -> 13,700 | AD166: 10,199 | AE166: 74.4%
A167: Member 2136 | B167: 1989-09-11 | C167: M | D167: 143,991 | E167: 80% | F167: 85% | G167: 75% | H167: 10% | J167: 29 | K167: 11,999 | L167: 1,200 | M167: 14,999 | N167: 13,799 | O167: =(M167*12-(VLOOKUP(N167*12,'Tax table'!$A$3:$C$10,3)*(N167*12-VLOOKUP(N167*12,'Tax table'!$A$3:$C$10,1))+VLOOKUP(N167*12,'Tax table'!$A$3:$C$10,2)))/12 -> 13,700 | P167: 10,799 | Q167: =(VLOOKUP(P167*12,'Tax table'!$A$3:$C$10,3)*(P167*12-VLOOKUP(P167*12,'Tax table'!$A$3:$C$10,1))+VLOOKUP(P167*12,'Tax table'!$A$3:$C$10,2))/12 -> 759 | R167: 11,240 | S167: 9,554 | T167: 69.7% | U167: 28,663 | V167: =IF($B$15="Yes",MIN(S167*2,References!$B$7),0) -> 19,109 | W167: =IF(AND(D167<>0,$B$16="Yes"),References!$B$6,0) -> 100,000 | X167: 1,686 | Y167: 8,999 | Z167: 1,200 | AA167: 10,199 | AB167: 13,799 | AC167: =(M167*12-(VLOOKUP(AB167*12,'Tax table'!$A$3:$C$10,3)*(AB167*12-VLOOKUP(AB167*12,'Tax table'!$A$3:$C$10,1))+VLOOKUP(AB167*12,'Tax table'!$A$3:$C$10,2)))/12 -> 13,700 | AD167: 10,199 | AE167: 74.4%
A168: Member 2137 | B168: 1983-10-10 | C168: F | D168: 143,991 | E168: 80% | F168: 85% | G168: 75% | H168: 10% | J168: 35 | K168: 11,999 | L168: 1,200 | M168: 14,999 | N168: 13,799 | O168: =(M168*12-(VLOOKUP(N168*12,'Tax table'!$A$3:$C$10,3)*(N168*12-VLOOKUP(N168*12,'Tax table'!$A$3:$C$10,1))+VLOOKUP(N168*12,'Tax table'!$A$3:$C$10,2)))/12 -> 13,700 | P168: 10,799 | Q168: =(VLOOKUP(P168*12,'Tax table'!$A$3:$C$10,3)*(P168*12-VLOOKUP(P168*12,'Tax table'!$A$3:$C$10,1))+VLOOKUP(P168*12,'Tax table'!$A$3:$C$10,2))/12 -> 759 | R168: 11,240 | S168: 9,554 | T168: 69.7% | U168: 28,663 | V168: =IF($B$15="Yes",MIN(S168*2,References!$B$7),0) -> 19,109 | W168: =IF(AND(D168<>0,$B$16="Yes"),References!$B$6,0) -> 100,000 | X168: 1,686 | Y168: 8,999 | Z168: 1,200 | AA168: 10,199 | AB168: 13,799 | AC168: =(M168*12-(VLOOKUP(AB168*12,'Tax table'!$A$3:$C$10,3)*(AB168*12-VLOOKUP(AB168*12,'Tax table'!$A$3:$C$10,1))+VLOOKUP(AB168*12,'Tax table'!$A$3:$C$10,2)))/12 -> 13,700 | AD168: 10,199 | AE168: 74.4%
A169: Member 2138 | B169: 1968-01-11 | C169: M | D169: 143,991 | E169: 80% | F169: 85% | G169: 75% | H169: 10% | J169: 50 | K169: 11,999 | L169: 1,200 | M169: 14,999 | N169: 13,799 | O169: =(M169*12-(VLOOKUP(N169*12,'Tax table'!$A$3:$C$10,3)*(N169*12-VLOOKUP(N169*12,'Tax table'!$A$3:$C$10,1))+VLOOKUP(N169*12,'Tax table'!$A$3:$C$10,2)))/12 -> 13,700 | P169: 10,799 | Q169: =(VLOOKUP(P169*12,'Tax table'!$A$3:$C$10,3)*(P169*12-VLOOKUP(P169*12,'Tax table'!$A$3:$C$10,1))+VLOOKUP(P169*12,'Tax table'!$A$3:$C$10,2))/12 -> 759 | R169: 11,240 | S169: 9,554 | T169: 69.7% | U169: 28,663 | V169: =IF($B$15="Yes",MIN(S169*2,References!$B$7),0) -> 19,109 | W169: =IF(AND(D169<>0,$B$16="Yes"),References!$B$6,0) -> 100,000 | X169: 1,686 | Y169: 8,999 | Z169: 1,200 | AA169: 10,199 | AB169: 13,799 | AC169: =(M169*12-(VLOOKUP(AB169*12,'Tax table'!$A$3:$C$10,3)*(AB169*12-VLOOKUP(AB169*12,'Tax table'!$A$3:$C$10,1))+VLOOKUP(AB169*12,'Tax table'!$A$3:$C$10,2)))/12 -> 13,700 | AD169: 10,199 | AE169: 74.4%
A170: Member 2139 | B170: 1985-11-01 | C170: M | D170: 143,991 | E170: 80% | F170: 85% | G170: 75% | H170: 10% | J170: 33 | K170: 11,999 | L170: 1,200 | M170: 14,999 | N170: 13,799 | O170: =(M170*12-(VLOOKUP(N170*12,'Tax table'!$A$3:$C$10,3)*(N170*12-VLOOKUP(N170*12,'Tax table'!$A$3:$C$10,1))+VLOOKUP(N170*12,'Tax table'!$A$3:$C$10,2)))/12 -> 13,700 | P170: 10,799 | Q170: =(VLOOKUP(P170*12,'Tax table'!$A$3:$C$10,3)*(P170*12-VLOOKUP(P170*12,'Tax table'!$A$3:$C$10,1))+VLOOKUP(P170*12,'Tax table'!$A$3:$C$10,2))/12 -> 759 | R170: 11,240 | S170: 9,554 | T170: 69.7% | U170: 28,663 | V170: =IF($B$15="Yes",MIN(S170*2,References!$B$7),0) -> 19,109 | W170: =IF(AND(D170<>0,$B$16="Yes"),References!$B$6,0) -> 100,000 | X170: 1,686 | Y170: 8,999 | Z170: 1,200 | AA170: 10,199 | AB170: 13,799 | AC170: =(M170*12-(VLOOKUP(AB170*12,'Tax table'!$A$3:$C$10,3)*(AB170*12-VLOOKUP(AB170*12,'Tax table'!$A$3:$C$10,1))+VLOOKUP(AB170*12,'Tax table'!$A$3:$C$10,2)))/12 -> 13,700 | AD170: 10,199 | AE170: 74.4%
A171: Member 2133 | B171: 1956-09-01 | C171: M | D171: 144,425 | E171: 80% | F171: 85% | G171: 75% | H171: 10% | J171: 62 | K171: 12,035 | L171: 1,204 | M171: 15,044 | N171: 13,841 | O171: =(M171*12-(VLOOKUP(N171*12,'Tax table'!$A$3:$C$10,3)*(N171*12-VLOOKUP(N171*12,'Tax table'!$A$3:$C$10,1))+VLOOKUP(N171*12,'Tax table'!$A$3:$C$10,2)))/12 -> 13,738 | P171: 10,832 | Q171: =(VLOOKUP(P171*12,'Tax table'!$A$3:$C$10,3)*(P171*12-VLOOKUP(P171*12,'Tax table'!$A$3:$C$10,1))+VLOOKUP(P171*12,'Tax table'!$A$3:$C$10,2))/12 -> 765 | R171: 11,271 | S171: 9,580 | T171: 69.7% | U171: 28,740 | V171: =IF($B$15="Yes",MIN(S171*2,References!$B$7),0) -> 19,160 | W171: =IF(AND(D171<>0,$B$16="Yes"),References!$B$6,0) -> 100,000 | X171: 1,691 | Y171: 9,027 | Z171: 1,204 | AA171: 10,230 | AB171: 13,841 | AC171: =(M171*12-(VLOOKUP(AB171*12,'Tax table'!$A$3:$C$10,3)*(AB171*12-VLOOKUP(AB171*12,'Tax table'!$A$3:$C$10,1))+VLOOKUP(AB171*12,'Tax table'!$A$3:$C$10,2)))/12 -> 13,738 | AD171: 10,230 | AE171: 74.5%
A172: Member 2132 | B172: 1959-09-05 | C172: F | D172: 144,509 | E172: 80% | F172: 85% | G172: 75% | H172: 10% | J172: 59 | K172: 12,042 | L172: 1,204 | M172: 15,053 | N172: 13,849 | O172: =(M172*12-(VLOOKUP(N172*12,'Tax table'!$A$3:$C$10,3)*(N172*12-VLOOKUP(N172*12,'Tax table'!$A$3:$C$10,1))+VLOOKUP(N172*12,'Tax table'!$A$3:$C$10,2)))/12 -> 13,745 | P172: 10,838 | Q172: =(VLOOKUP(P172*12,'Tax table'!$A$3:$C$10,3)*(P172*12-VLOOKUP(P172*12,'Tax table'!$A$3:$C$10,1))+VLOOKUP(P172*12,'Tax table'!$A$3:$C$10,2))/12 -> 766 | R172: 11,277 | S172: 9,585 | T172: 69.7% | U172: 28,755 | V172: =IF($B$15="Yes",MIN(S172*2,References!$B$7),0) -> 19,170 | W172: =IF(AND(D172<>0,$B$16="Yes"),References!$B$6,0) -> 100,000 | X172: 1,691 | Y172: 9,032 | Z172: 1,204 | AA172: 10,236 | AB172: 13,849 | AC172: =(M172*12-(VLOOKUP(AB172*12,'Tax table'!$A$3:$C$10,3)*(AB172*12-VLOOKUP(AB172*12,'Tax table'!$A$3:$C$10,1))+VLOOKUP(AB172*12,'Tax table'!$A$3:$C$10,2)))/12 -> 13,745 | AD172: 10,236 | AE172: 74.5%
A173: Member 2128 | B173: 1988-04-13 | C173: F | D173: 144,667 | E173: 80% | F173: 85% | G173: 75% | H173: 10% | J173: 30 | K173: 12,056 | L173: 1,206 | M173: 15,069 | N173: 13,864 | O173: =(M173*12-(VLOOKUP(N173*12,'Tax table'!$A$3:$C$10,3)*(N173*12-VLOOKUP(N173*12,'Tax table'!$A$3:$C$10,1))+VLOOKUP(N173*12,'Tax table'!$A$3:$C$10,2)))/12 -> 13,759 | P173: 10,850 | Q173: =(VLOOKUP(P173*12,'Tax table'!$A$3:$C$10,3)*(P173*12-VLOOKUP(P173*12,'Tax table'!$A$3:$C$10,1))+VLOOKUP(P173*12,'Tax table'!$A$3:$C$10,2))/12 -> 768 | R173: 11,288 | S173: 9,594 | T173: 69.7% | U173: 28,783 | V173: =IF($B$15="Yes",MIN(S173*2,References!$B$7),0) -> 19,189 | W173: =IF(AND(D173<>0,$B$16="Yes"),References!$B$6,0) -> 100,000 | X173: 1,693 | Y173: 9,042 | Z173: 1,206 | AA173: 10,247 | AB173: 13,864 | AC173: =(M173*12-(VLOOKUP(AB173*12,'Tax table'!$A$3:$C$10,3)*(AB173*12-VLOOKUP(AB173*12,'Tax table'!$A$3:$C$10,1))+VLOOKUP(AB173*12,'Tax table'!$A$3:$C$10,2)))/12 -> 13,759 | AD173: 10,247 | AE173: 74.5%
A174: Member 2129 | B174: 1985-12-13 | C174: F | D174: 144,667 | E174: 80% | F174: 85% | G174: 75% | H174: 10% | J174: 32 | K174: 12,056 | L174: 1,206 | M174: 15,069 | N174: 13,864 | O174: =(M174*12-(VLOOKUP(N174*12,'Tax table'!$A$3:$C$10,3)*(N174*12-VLOOKUP(N174*12,'Tax table'!$A$3:$C$10,1))+VLOOKUP(N174*12,'Tax table'!$A$3:$C$10,2)))/12 -> 13,759 | P174: 10,850 | Q174: =(VLOOKUP(P174*12,'Tax table'!$A$3:$C$10,3)*(P174*12-VLOOKUP(P174*12,'Tax table'!$A$3:$C$10,1))+VLOOKUP(P174*12,'Tax table'!$A$3:$C$10,2))/12 -> 768 | R174: 11,288 | S174: 9,594 | T174: 69.7% | U174: 28,783 | V174: =IF($B$15="Yes",MIN(S174*2,References!$B$7),0) -> 19,189 | W174: =IF(AND(D174<>0,$B$16="Yes"),References!$B$6,0) -> 100,000 | X174: 1,693 | Y174: 9,042 | Z174: 1,206 | AA174: 10,247 | AB174: 13,864 | AC174: =(M174*12-(VLOOKUP(AB174*12,'Tax table'!$A$3:$C$10,3)*(AB174*12-VLOOKUP(AB174*12,'Tax table'!$A$3:$C$10,1))+VLOOKUP(AB174*12,'Tax table'!$A$3:$C$10,2)))/12 -> 13,759 | AD174: 10,247 | AE174: 74.5%
A175: Member 2130 | B175: 1986-10-01 | C175: M | D175: 144,667 | E175: 80% | F175: 85% | G175: 75% | H175: 10% | J175: 32 | K175: 12,056 | L175: 1,206 | M175: 15,069 | N175: 13,864 | O175: =(M175*12-(VLOOKUP(N175*12,'Tax table'!$A$3:$C$10,3)*(N175*12-VLOOKUP(N175*12,'Tax table'!$A$3:$C$10,1))+VLOOKUP(N175*12,'Tax table'!$A$3:$C$10,2)))/12 -> 13,759 | P175: 10,850 | Q175: =(VLOOKUP(P175*12,'Tax table'!$A$3:$C$10,3)*(P175*12-VLOOKUP(P175*12,'Tax table'!$A$3:$C$10,1))+VLOOKUP(P175*12,'Tax table'!$A$3:$C$10,2))/12 -> 768 | R175: 11,288 | S175: 9,594 | T175: 69.7% | U175: 28,783 | V175: =IF($B$15="Yes",MIN(S175*2,References!$B$7),0) -> 19,189 | W175: =IF(AND(D175<>0,$B$16="Yes"),References!$B$6,0) -> 100,000 | X175: 1,693 | Y175: 9,042 | Z175: 1,206 | AA175: 10,247 | AB175: 13,864 | AC175: =(M175*12-(VLOOKUP(AB175*12,'Tax table'!$A$3:$C$10,3)*(AB175*12-VLOOKUP(AB175*12,'Tax table'!$A$3:$C$10,1))+VLOOKUP(AB175*12,'Tax table'!$A$3:$C$10,2)))/12 -> 13,759 | AD175: 10,247 | AE175: 74.5%
A176: Member 2131 | B176: 1986-06-21 | C176: M | D176: 144,667 | E176: 80% | F176: 85% | G176: 75% | H176: 10% | J176: 32 | K176: 12,056 | L176: 1,206 | M176: 15,069 | N176: 13,864 | O176: =(M176*12-(VLOOKUP(N176*12,'Tax table'!$A$3:$C$10,3)*(N176*12-VLOOKUP(N176*12,'Tax table'!$A$3:$C$10,1))+VLOOKUP(N176*12,'Tax table'!$A$3:$C$10,2)))/12 -> 13,759 | P176: 10,850 | Q176: =(VLOOKUP(P176*12,'Tax table'!$A$3:$C$10,3)*(P176*12-VLOOKUP(P176*12,'Tax table'!$A$3:$C$10,1))+VLOOKUP(P176*12,'Tax table'!$A$3:$C$10,2))/12 -> 768 | R176: 11,288 | S176: 9,594 | T176: 69.7% | U176: 28,783 | V176: =IF($B$15="Yes",MIN(S176*2,References!$B$7),0) -> 19,189 | W176: =IF(AND(D176<>0,$B$16="Yes"),References!$B$6,0) -> 100,000 | X176: 1,693 | Y176: 9,042 | Z176: 1,206 | AA176: 10,247 | AB176: 13,864 | AC176: =(M176*12-(VLOOKUP(AB176*12,'Tax table'!$A$3:$C$10,3)*(AB176*12-VLOOKUP(AB176*12,'Tax table'!$A$3:$C$10,1))+VLOOKUP(AB176*12,'Tax table'!$A$3:$C$10,2)))/12 -> 13,759 | AD176: 10,247 | AE176: 74.5%
A177: Member 2126 | B177: 1981-10-23 | C177: F | D177: 144,739 | E177: 80% | F177: 85% | G177: 75% | H177: 10% | J177: 37 | K177: 12,062 | L177: 1,206 | M177: 15,077 | N177: 13,871 | O177: =(M177*12-(VLOOKUP(N177*12,'Tax table'!$A$3:$C$10,3)*(N177*12-VLOOKUP(N177*12,'Tax table'!$A$3:$C$10,1))+VLOOKUP(N177*12,'Tax table'!$A$3:$C$10,2)))/12 -> 13,765 | P177: 10,855 | Q177: =(VLOOKUP(P177*12,'Tax table'!$A$3:$C$10,3)*(P177*12-VLOOKUP(P177*12,'Tax table'!$A$3:$C$10,1))+VLOOKUP(P177*12,'Tax table'!$A$3:$C$10,2))/12 -> 769 | R177: 11,293 | S177: 9,599 | T177: 69.7% | U177: 28,796 | V177: =IF($B$15="Yes",MIN(S177*2,References!$B$7),0) -> 19,197 | W177: =IF(AND(D177<>0,$B$16="Yes"),References!$B$6,0) -> 100,000 | X177: 1,694 | Y177: 9,046 | Z177: 1,206 | AA177: 10,252 | AB177: 13,871 | AC177: =(M177*12-(VLOOKUP(AB177*12,'Tax table'!$A$3:$C$10,3)*(AB177*12-VLOOKUP(AB177*12,'Tax table'!$A$3:$C$10,1))+VLOOKUP(AB177*12,'Tax table'!$A$3:$C$10,2)))/12 -> 13,765 | AD177: 10,252 | AE177: 74.5%
A178: Member 2127 | B178: 1990-06-08 | C178: F | D178: 144,739 | E178: 80% | F178: 85% | G178: 75% | H178: 10% | J178: 28 | K178: 12,062 | L178: 1,206 | M178: 15,077 | N178: 13,871 | O178: =(M178*12-(VLOOKUP(N178*12,'Tax table'!$A$3:$C$10,3)*(N178*12-VLOOKUP(N178*12,'Tax table'!$A$3:$C$10,1))+VLOOKUP(N178*12,'Tax table'!$A$3:$C$10,2)))/12 -> 13,765 | P178: 10,855 | Q178: =(VLOOKUP(P178*12,'Tax table'!$A$3:$C$10,3)*(P178*12-VLOOKUP(P178*12,'Tax table'!$A$3:$C$10,1))+VLOOKUP(P178*12,'Tax table'!$A$3:$C$10,2))/12 -> 769 | R178: 11,293 | S178: 9,599 | T178: 69.7% | U178: 28,796 | V178: =IF($B$15="Yes",MIN(S178*2,References!$B$7),0) -> 19,197 | W178: =IF(AND(D178<>0,$B$16="Yes"),References!$B$6,0) -> 100,000 | X178: 1,694 | Y178: 9,046 | Z178: 1,206 | AA178: 10,252 | AB178: 13,871 | AC178: =(M178*12-(VLOOKUP(AB178*12,'Tax table'!$A$3:$C$10,3)*(AB178*12-VLOOKUP(AB178*12,'Tax table'!$A$3:$C$10,1))+VLOOKUP(AB178*12,'Tax table'!$A$3:$C$10,2)))/12 -> 13,765 | AD178: 10,252 | AE178: 74.5%
A179: Member 6 | B179: 1973-10-03 | C179: F | D179: 147,976 | E179: 80% | F179: 85% | G179: 75% | H179: 10% | J179: 45 | K179: 12,331 | L179: 1,233 | M179: 15,414 | N179: 14,181 | O179: =(M179*12-(VLOOKUP(N179*12,'Tax table'!$A$3:$C$10,3)*(N179*12-VLOOKUP(N179*12,'Tax table'!$A$3:$C$10,1))+VLOOKUP(N179*12,'Tax table'!$A$3:$C$10,2)))/12 -> 14,047 | P179: 11,098 | Q179: =(VLOOKUP(P179*12,'Tax table'!$A$3:$C$10,3)*(P179*12-VLOOKUP(P179*12,'Tax table'!$A$3:$C$10,1))+VLOOKUP(P179*12,'Tax table'!$A$3:$C$10,2))/12 -> 813 | R179: 11,519 | S179: 9,791 | T179: 69.7% | U179: 29,373 | V179: =IF($B$15="Yes",MIN(S179*2,References!$B$7),0) -> 19,582 | W179: =IF(AND(D179<>0,$B$16="Yes"),References!$B$6,0) -> 100,000 | X179: 1,728 | Y179: 9,249 | Z179: 1,233 | AA179: 10,482 | AB179: 14,181 | AC179: =(M179*12-(VLOOKUP(AB179*12,'Tax table'!$A$3:$C$10,3)*(AB179*12-VLOOKUP(AB179*12,'Tax table'!$A$3:$C$10,1))+VLOOKUP(AB179*12,'Tax table'!$A$3:$C$10,2)))/12 -> 14,047 | AD179: 10,482 | AE179: 74.6%
A180: Member 2125 | B180: 1980-07-20 | C180: F | D180: 148,468 | E180: 80% | F180: 85% | G180: 75% | H180: 10% | J180: 38 | K180: 12,372 | L180: 1,237 | M180: 15,465 | N180: 14,228 | O180: =(M180*12-(VLOOKUP(N180*12,'Tax table'!$A$3:$C$10,3)*(N180*12-VLOOKUP(N180*12,'Tax table'!$A$3:$C$10,1))+VLOOKUP(N180*12,'Tax table'!$A$3:$C$10,2)))/12 -> 14,089 | P180: 11,135 | Q180: =(VLOOKUP(P180*12,'Tax table'!$A$3:$C$10,3)*(P180*12-VLOOKUP(P180*12,'Tax table'!$A$3:$C$10,1))+VLOOKUP(P180*12,'Tax table'!$A$3:$C$10,2))/12 -> 819 | R180: 11,553 | S180: 9,820 | T180: 69.7% | U180: 29,460 | V180: =IF($B$15="Yes",MIN(S180*2,References!$B$7),0) -> 19,640 | W180: =IF(AND(D180<>0,$B$16="Yes"),References!$B$6,0) -> 100,000 | X180: 1,733 | Y180: 9,279 | Z180: 1,237 | AA180: 10,516 | AB180: 14,228 | AC180: =(M180*12-(VLOOKUP(AB180*12,'Tax table'!$A$3:$C$10,3)*(AB180*12-VLOOKUP(AB180*12,'Tax table'!$A$3:$C$10,1))+VLOOKUP(AB180*12,'Tax table'!$A$3:$C$10,2)))/12 -> 14,089 | AD180: 10,516 | AE180: 74.6%
A181: Member 2119 | B181: 1976-01-08 | C181: M | D181: 148,830 | E181: 80% | F181: 85% | G181: 75% | H181: 10% | J181: 42 | K181: 12,403 | L181: 1,240 | M181: 15,503 | N181: 14,263 | O181: =(M181*12-(VLOOKUP(N181*12,'Tax table'!$A$3:$C$10,3)*(N181*12-VLOOKUP(N181*12,'Tax table'!$A$3:$C$10,1))+VLOOKUP(N181*12,'Tax table'!$A$3:$C$10,2)))/12 -> 14,121 | P181: 11,162 | Q181: =(VLOOKUP(P181*12,'Tax table'!$A$3:$C$10,3)*(P181*12-VLOOKUP(P181*12,'Tax table'!$A$3:$C$10,1))+VLOOKUP(P181*12,'Tax table'!$A$3:$C$10,2))/12 -> 824 | R181: 11,578 | S181: 9,842 | T181: 69.7% | U181: 29,525 | V181: =IF($B$15="Yes",MIN(S181*2,References!$B$7),0) -> 19,683 | W181: =IF(AND(D181<>0,$B$16="Yes"),References!$B$6,0) -> 100,000 | X181: 1,737 | Y181: 9,302 | Z181: 1,240 | AA181: 10,542 | AB181: 14,263 | AC181: =(M181*12-(VLOOKUP(AB181*12,'Tax table'!$A$3:$C$10,3)*(AB181*12-VLOOKUP(AB181*12,'Tax table'!$A$3:$C$10,1))+VLOOKUP(AB181*12,'Tax table'!$A$3:$C$10,2)))/12 -> 14,121 | AD181: 10,542 | AE181: 74.7%
A182: Member 2120 | B182: 1979-07-19 | C182: M | D182: 148,830 | E182: 80% | F182: 85% | G182: 75% | H182: 10% | J182: 39 | K182: 12,403 | L182: 1,240 | M182: 15,503 | N182: 14,263 | O182: =(M182*12-(VLOOKUP(N182*12,'Tax table'!$A$3:$C$10,3)*(N182*12-VLOOKUP(N182*12,'Tax table'!$A$3:$C$10,1))+VLOOKUP(N182*12,'Tax table'!$A$3:$C$10,2)))/12 -> 14,121 | P182: 11,162 | Q182: =(VLOOKUP(P182*12,'Tax table'!$A$3:$C$10,3)*(P182*12-VLOOKUP(P182*12,'Tax table'!$A$3:$C$10,1))+VLOOKUP(P182*12,'Tax table'!$A$3:$C$10,2))/12 -> 824 | R182: 11,578 | S182: 9,842 | T182: 69.7% | U182: 29,525 | V182: =IF($B$15="Yes",MIN(S182*2,References!$B$7),0) -> 19,683 | W182: =IF(AND(D182<>0,$B$16="Yes"),References!$B$6,0) -> 100,000 | X182: 1,737 | Y182: 9,302 | Z182: 1,240 | AA182: 10,542 | AB182: 14,263 | AC182: =(M182*12-(VLOOKUP(AB182*12,'Tax table'!$A$3:$C$10,3)*(AB182*12-VLOOKUP(AB182*12,'Tax table'!$A$3:$C$10,1))+VLOOKUP(AB182*12,'Tax table'!$A$3:$C$10,2)))/12 -> 14,121 | AD182: 10,542 | AE182: 74.7%
A183: Member 2121 | B183: 1985-06-13 | C183: M | D183: 148,830 | E183: 80% | F183: 85% | G183: 75% | H183: 10% | J183: 33 | K183: 12,403 | L183: 1,240 | M183: 15,503 | N183: 14,263 | O183: =(M183*12-(VLOOKUP(N183*12,'Tax table'!$A$3:$C$10,3)*(N183*12-VLOOKUP(N183*12,'Tax table'!$A$3:$C$10,1))+VLOOKUP(N183*12,'Tax table'!$A$3:$C$10,2)))/12 -> 14,121 | P183: 11,162 | Q183: =(VLOOKUP(P183*12,'Tax table'!$A$3:$C$10,3)*(P183*12-VLOOKUP(P183*12,'Tax table'!$A$3:$C$10,1))+VLOOKUP(P183*12,'Tax table'!$A$3:$C$10,2))/12 -> 824 | R183: 11,578 | S183: 9,842 | T183: 69.7% | U183: 29,525 | V183: =IF($B$15="Yes",MIN(S183*2,References!$B$7),0) -> 19,683 | W183: =IF(AND(D183<>0,$B$16="Yes"),References!$B$6,0) -> 100,000 | X183: 1,737 | Y183: 9,302 | Z183: 1,240 | AA183: 10,542 | AB183: 14,263 | AC183: =(M183*12-(VLOOKUP(AB183*12,'Tax table'!$A$3:$C$10,3)*(AB183*12-VLOOKUP(AB183*12,'Tax table'!$A$3:$C$10,1))+VLOOKUP(AB183*12,'Tax table'!$A$3:$C$10,2)))/12 -> 14,121 | AD183: 10,542 | AE183: 74.7%
A184: Member 2122 | B184: 1959-07-31 | C184: M | D184: 148,830 | E184: 80% | F184: 85% | G184: 75% | H184: 10% | J184: 59 | K184: 12,403 | L184: 1,240 | M184: 15,503 | N184: 14,263 | O184: =(M184*12-(VLOOKUP(N184*12,'Tax table'!$A$3:$C$10,3)*(N184*12-VLOOKUP(N184*12,'Tax table'!$A$3:$C$10,1))+VLOOKUP(N184*12,'Tax table'!$A$3:$C$10,2)))/12 -> 14,121 | P184: 11,162 | Q184: =(VLOOKUP(P184*12,'Tax table'!$A$3:$C$10,3)*(P184*12-VLOOKUP(P184*12,'Tax table'!$A$3:$C$10,1))+VLOOKUP(P184*12,'Tax table'!$A$3:$C$10,2))/12 -> 824 | R184: 11,578 | S184: 9,842 | T184: 69.7% | U184: 29,525 | V184: =IF($B$15="Yes",MIN(S184*2,References!$B$7),0) -> 19,683 | W184: =IF(AND(D184<>0,$B$16="Yes"),References!$B$6,0) -> 100,000 | X184: 1,737 | Y184: 9,302 | Z184: 1,240 | AA184: 10,542 | AB184: 14,263 | AC184: =(M184*12-(VLOOKUP(AB184*12,'Tax table'!$A$3:$C$10,3)*(AB184*12-VLOOKUP(AB184*12,'Tax table'!$A$3:$C$10,1))+VLOOKUP(AB184*12,'Tax table'!$A$3:$C$10,2)))/12 -> 14,121 | AD184: 10,542 | AE184: 74.7%
A185: Member 2123 | B185: 1972-11-12 | C185: M | D185: 148,830 | E185: 80% | F185: 85% | G185: 75% | H185: 10% | J185: 45 | K185: 12,403 | L185: 1,240 | M185: 15,503 | N185: 14,263 | O185: =(M185*12-(VLOOKUP(N185*12,'Tax table'!$A$3:$C$10,3)*(N185*12-VLOOKUP(N185*12,'Tax table'!$A$3:$C$10,1))+VLOOKUP(N185*12,'Tax table'!$A$3:$C$10,2)))/12 -> 14,121 | P185: 11,162 | Q185: =(VLOOKUP(P185*12,'Tax table'!$A$3:$C$10,3)*(P185*12-VLOOKUP(P185*12,'Tax table'!$A$3:$C$10,1))+VLOOKUP(P185*12,'Tax table'!$A$3:$C$10,2))/12 -> 824 | R185: 11,578 | S185: 9,842 | T185: 69.7% | U185: 29,525 | V185: =IF($B$15="Yes",MIN(S185*2,References!$B$7),0) -> 19,683 | W185: =IF(AND(D185<>0,$B$16="Yes"),References!$B$6,0) -> 100,000 | X185: 1,737 | Y185: 9,302 | Z185: 1,240 | AA185: 10,542 | AB185: 14,263 | AC185: =(M185*12-(VLOOKUP(AB185*12,'Tax table'!$A$3:$C$10,3)*(AB185*12-VLOOKUP(AB185*12,'Tax table'!$A$3:$C$10,1))+VLOOKUP(AB185*12,'Tax table'!$A$3:$C$10,2)))/12 -> 14,121 | AD185: 10,542 | AE185: 74.7%
A186: Member 2124 | B186: 1983-10-03 | C186: M | D186: 148,830 | E186: 80% | F186: 85% | G186: 75% | H186: 10% | J186: 35 | K186: 12,403 | L186: 1,240 | M186: 15,503 | N186: 14,263 | O186: =(M186*12-(VLOOKUP(N186*12,'Tax table'!$A$3:$C$10,3)*(N186*12-VLOOKUP(N186*12,'Tax table'!$A$3:$C$10,1))+VLOOKUP(N186*12,'Tax table'!$A$3:$C$10,2)))/12 -> 14,121 | P186: 11,162 | Q186: =(VLOOKUP(P186*12,'Tax table'!$A$3:$C$10,3)*(P186*12-VLOOKUP(P186*12,'Tax table'!$A$3:$C$10,1))+VLOOKUP(P186*12,'Tax table'!$A$3:$C$10,2))/12 -> 824 | R186: 11,578 | S186: 9,842 | T186: 69.7% | U186: 29,525 | V186: =IF($B$15="Yes",MIN(S186*2,References!$B$7),0) -> 19,683 | W186: =IF(AND(D186<>0,$B$16="Yes"),References!$B$6,0) -> 100,000 | X186: 1,737 | Y186: 9,302 | Z186: 1,240 | AA186: 10,542 | AB186: 14,263 | AC186: =(M186*12-(VLOOKUP(AB186*12,'Tax table'!$A$3:$C$10,3)*(AB186*12-VLOOKUP(AB186*12,'Tax table'!$A$3:$C$10,1))+VLOOKUP(AB186*12,'Tax table'!$A$3:$C$10,2)))/12 -> 14,121 | AD186: 10,542 | AE186: 74.7%
A187: Member 2118 | B187: 1960-05-19 | C187: F | D187: 150,093 | E187: 80% | F187: 85% | G187: 75% | H187: 10% | J187: 58 | K187: 12,508 | L187: 1,251 | M187: 15,635 | N187: 14,384 | O187: =(M187*12-(VLOOKUP(N187*12,'Tax table'!$A$3:$C$10,3)*(N187*12-VLOOKUP(N187*12,'Tax table'!$A$3:$C$10,1))+VLOOKUP(N187*12,'Tax table'!$A$3:$C$10,2)))/12 -> 14,231 | P187: 11,257 | Q187: =(VLOOKUP(P187*12,'Tax table'!$A$3:$C$10,3)*(P187*12-VLOOKUP(P187*12,'Tax table'!$A$3:$C$10,1))+VLOOKUP(P187*12,'Tax table'!$A$3:$C$10,2))/12 -> 841 | R187: 11,666 | S187: 9,916 | T187: 69.7% | U187: 29,749 | V187: =IF($B$15="Yes",MIN(S187*2,References!$B$7),0) -> 19,833 | W187: =IF(AND(D187<>0,$B$16="Yes"),References!$B$6,0) -> 100,000 | X187: 1,750 | Y187: 9,381 | Z187: 1,251 | AA187: 10,632 | AB187: 14,384 | AC187: =(M187*12-(VLOOKUP(AB187*12,'Tax table'!$A$3:$C$10,3)*(AB187*12-VLOOKUP(AB187*12,'Tax table'!$A$3:$C$10,1))+VLOOKUP(AB187*12,'Tax table'!$A$3:$C$10,2)))/12 -> 14,231 | AD187: 10,632 | AE187: 74.7%
A188: Member 2105 | B188: 1973-09-26 | C188: M | D188: 150,304 | E188: 80% | F188: 85% | G188: 75% | H188: 10% | J188: 45 | K188: 12,525 | L188: 1,253 | M188: 15,657 | N188: 14,404 | O188: =(M188*12-(VLOOKUP(N188*12,'Tax table'!$A$3:$C$10,3)*(N188*12-VLOOKUP(N188*12,'Tax table'!$A$3:$C$10,1))+VLOOKUP(N188*12,'Tax table'!$A$3:$C$10,2)))/12 -> 14,249 | P188: 11,273 | Q188: =(VLOOKUP(P188*12,'Tax table'!$A$3:$C$10,3)*(P188*12-VLOOKUP(P188*12,'Tax table'!$A$3:$C$10,1))+VLOOKUP(P188*12,'Tax table'!$A$3:$C$10,2))/12 -> 844 | R188: 11,681 | S188: 9,929 | T188: 69.7% | U188: 29,787 | V188: =IF($B$15="Yes",MIN(S188*2,References!$B$7),0) -> 19,858 | W188: =IF(AND(D188<>0,$B$16="Yes"),References!$B$6,0) -> 100,000 | X188: 1,752 | Y188: 9,394 | Z188: 1,253 | AA188: 10,647 | AB188: 14,404 | AC188: =(M188*12-(VLOOKUP(AB188*12,'Tax table'!$A$3:$C$10,3)*(AB188*12-VLOOKUP(AB188*12,'Tax table'!$A$3:$C$10,1))+VLOOKUP(AB188*12,'Tax table'!$A$3:$C$10,2)))/12 -> 14,249 | AD188: 10,647 | AE188: 74.7%
A189: Member 2106 | B189: 1980-06-14 | C189: M | D189: 150,304 | E189: 80% | F189: 85% | G189: 75% | H189: 10% | J189: 38 | K189: 12,525 | L189: 1,253 | M189: 15,657 | N189: 14,404 | O189: =(M189*12-(VLOOKUP(N189*12,'Tax table'!$A$3:$C$10,3)*(N189*12-VLOOKUP(N189*12,'Tax table'!$A$3:$C$10,1))+VLOOKUP(N189*12,'Tax table'!$A$3:$C$10,2)))/12 -> 14,249 | P189: 11,273 | Q189: =(VLOOKUP(P189*12,'Tax table'!$A$3:$C$10,3)*(P189*12-VLOOKUP(P189*12,'Tax table'!$A$3:$C$10,1))+VLOOKUP(P189*12,'Tax table'!$A$3:$C$10,2))/12 -> 844 | R189: 11,681 | S189: 9,929 | T189: 69.7% | U189: 29,787 | V189: =IF($B$15="Yes",MIN(S189*2,References!$B$7),0) -> 19,858 | W189: =IF(AND(D189<>0,$B$16="Yes"),References!$B$6,0) -> 100,000 | X189: 1,752 | Y189: 9,394 | Z189: 1,253 | AA189: 10,647 | AB189: 14,404 | AC189: =(M189*12-(VLOOKUP(AB189*12,'Tax table'!$A$3:$C$10,3)*(AB189*12-VLOOKUP(AB189*12,'Tax table'!$A$3:$C$10,1))+VLOOKUP(AB189*12,'Tax table'!$A$3:$C$10,2)))/12 -> 14,249 | AD189: 10,647 | AE189: 74.7%
A190: Member 2107 | B190: 1972-05-11 | C190: M | D190: 150,304 | E190: 80% | F190: 85% | G190: 75% | H190: 10% | J190: 46 | K190: 12,525 | L190: 1,253 | M190: 15,657 | N190: 14,404 | O190: =(M190*12-(VLOOKUP(N190*12,'Tax table'!$A$3:$C$10,3)*(N190*12-VLOOKUP(N190*12,'Tax table'!$A$3:$C$10,1))+VLOOKUP(N190*12,'Tax table'!$A$3:$C$10,2)))/12 -> 14,249 | P190: 11,273 | Q190: =(VLOOKUP(P190*12,'Tax table'!$A$3:$C$10,3)*(P190*12-VLOOKUP(P190*12,'Tax table'!$A$3:$C$10,1))+VLOOKUP(P190*12,'Tax table'!$A$3:$C$10,2))/12 -> 844 | R190: 11,681 | S190: 9,929 | T190: 69.7% | U190: 29,787 | V190: =IF($B$15="Yes",MIN(S190*2,References!$B$7),0) -> 19,858 | W190: =IF(AND(D190<>0,$B$16="Yes"),References!$B$6,0) -> 100,000 | X190: 1,752 | Y190: 9,394 | Z190: 1,253 | AA190: 10,647 | AB190: 14,404 | AC190: =(M190*12-(VLOOKUP(AB190*12,'Tax table'!$A$3:$C$10,3)*(AB190*12-VLOOKUP(AB190*12,'Tax table'!$A$3:$C$10,1))+VLOOKUP(AB190*12,'Tax table'!$A$3:$C$10,2)))/12 -> 14,249 | AD190: 10,647 | AE190: 74.7%
A191: Member 2108 | B191: 1970-07-12 | C191: M | D191: 150,304 | E191: 80% | F191: 85% | G191: 75% | H191: 10% | J191: 48 | K191: 12,525 | L191: 1,253 | M191: 15,657 | N191: 14,404 | O191: =(M191*12-(VLOOKUP(N191*12,'Tax table'!$A$3:$C$10,3)*(N191*12-VLOOKUP(N191*12,'Tax table'!$A$3:$C$10,1))+VLOOKUP(N191*12,'Tax table'!$A$3:$C$10,2)))/12 -> 14,249 | P191: 11,273 | Q191: =(VLOOKUP(P191*12,'Tax table'!$A$3:$C$10,3)*(P191*12-VLOOKUP(P191*12,'Tax table'!$A$3:$C$10,1))+VLOOKUP(P191*12,'Tax table'!$A$3:$C$10,2))/12 -> 844 | R191: 11,681 | S191: 9,929 | T191: 69.7% | U191: 29,787 | V191: =IF($B$15="Yes",MIN(S191*2,References!$B$7),0) -> 19,858 | W191: =IF(AND(D191<>0,$B$16="Yes"),References!$B$6,0) -> 100,000 | X191: 1,752 | Y191: 9,394 | Z191: 1,253 | AA191: 10,647 | AB191: 14,404 | AC191: =(M191*12-(VLOOKUP(AB191*12,'Tax table'!$A$3:$C$10,3)*(AB191*12-VLOOKUP(AB191*12,'Tax table'!$A$3:$C$10,1))+VLOOKUP(AB191*12,'Tax table'!$A$3:$C$10,2)))/12 -> 14,249 | AD191: 10,647 | AE191: 74.7%
A192: Member 2109 | B192: 1972-05-15 | C192: M | D192: 150,304 | E192: 80% | F192: 85% | G192: 75% | H192: 10% | J192: 46 | K192: 12,525 | L192: 1,253 | M192: 15,657 | N192: 14,404 | O192: =(M192*12-(VLOOKUP(N192*12,'Tax table'!$A$3:$C$10,3)*(N192*12-VLOOKUP(N192*12,'Tax table'!$A$3:$C$10,1))+VLOOKUP(N192*12,'Tax table'!$A$3:$C$10,2)))/12 -> 14,249 | P192: 11,273 | Q192: =(VLOOKUP(P192*12,'Tax table'!$A$3:$C$10,3)*(P192*12-VLOOKUP(P192*12,'Tax table'!$A$3:$C$10,1))+VLOOKUP(P192*12,'Tax table'!$A$3:$C$10,2))/12 -> 844 | R192: 11,681 | S192: 9,929 | T192: 69.7% | U192: 29,787 | V192: =IF($B$15="Yes",MIN(S192*2,References!$B$7),0) -> 19,858 | W192: =IF(AND(D192<>0,$B$16="Yes"),References!$B$6,0) -> 100,000 | X192: 1,752 | Y192: 9,394 | Z192: 1,253 | AA192: 10,647 | AB192: 14,404 | AC192: =(M192*12-(VLOOKUP(AB192*12,'Tax table'!$A$3:$C$10,3)*(AB192*12-VLOOKUP(AB192*12,'Tax table'!$A$3:$C$10,1))+VLOOKUP(AB192*12,'Tax table'!$A$3:$C$10,2)))/12 -> 14,249 | AD192: 10,647 | AE192: 74.7%
A193: Member 2110 | B193: 1973-06-18 | C193: M | D193: 150,304 | E193: 80% | F193: 85% | G193: 75% | H193: 10% | J193: 45 | K193: 12,525 | L193: 1,253 | M193: 15,657 | N193: 14,404 | O193: =(M193*12-(VLOOKUP(N193*12,'Tax table'!$A$3:$C$10,3)*(N193*12-VLOOKUP(N193*12,'Tax table'!$A$3:$C$10,1))+VLOOKUP(N193*12,'Tax table'!$A$3:$C$10,2)))/12 -> 14,249 | P193: 11,273 | Q193: =(VLOOKUP(P193*12,'Tax table'!$A$3:$C$10,3)*(P193*12-VLOOKUP(P193*12,'Tax table'!$A$3:$C$10,1))+VLOOKUP(P193*12,'Tax table'!$A$3:$C$10,2))/12 -> 844 | R193: 11,681 | S193: 9,929 | T193: 69.7% | U193: 29,787 | V193: =IF($B$15="Yes",MIN(S193*2,References!$B$7),0) -> 19,858 | W193: =IF(AND(D193<>0,$B$16="Yes"),References!$B$6,0) -> 100,000 | X193: 1,752 | Y193: 9,394 | Z193: 1,253 | AA193: 10,647 | AB193: 14,404 | AC193: =(M193*12-(VLOOKUP(AB193*12,'Tax table'!$A$3:$C$10,3)*(AB193*12-VLOOKUP(AB193*12,'Tax table'!$A$3:$C$10,1))+VLOOKUP(AB193*12,'Tax table'!$A$3:$C$10,2)))/12 -> 14,249 | AD193: 10,647 | AE193: 74.7%
A194: Member 2111 | B194: 1963-03-01 | C194: M | D194: 150,304 | E194: 80% | F194: 85% | G194: 75% | H194: 10% | J194: 55 | K194: 12,525 | L194: 1,253 | M194: 15,657 | N194: 14,404 | O194: =(M194*12-(VLOOKUP(N194*12,'Tax table'!$A$3:$C$10,3)*(N194*12-VLOOKUP(N194*12,'Tax table'!$A$3:$C$10,1))+VLOOKUP(N194*12,'Tax table'!$A$3:$C$10,2)))/12 -> 14,249 | P194: 11,273 | Q194: =(VLOOKUP(P194*12,'Tax table'!$A$3:$C$10,3)*(P194*12-VLOOKUP(P194*12,'Tax table'!$A$3:$C$10,1))+VLOOKUP(P194*12,'Tax table'!$A$3:$C$10,2))/12 -> 844 | R194: 11,681 | S194: 9,929 | T194: 69.7% | U194: 29,787 | V194: =IF($B$15="Yes",MIN(S194*2,References!$B$7),0) -> 19,858 | W194: =IF(AND(D194<>0,$B$16="Yes"),References!$B$6,0) -> 100,000 | X194: 1,752 | Y194: 9,394 | Z194: 1,253 | AA194: 10,647 | AB194: 14,404 | AC194: =(M194*12-(VLOOKUP(AB194*12,'Tax table'!$A$3:$C$10,3)*(AB194*12-VLOOKUP(AB194*12,'Tax table'!$A$3:$C$10,1))+VLOOKUP(AB194*12,'Tax table'!$A$3:$C$10,2)))/12 -> 14,249 | AD194: 10,647 | AE194: 74.7%
A195: Member 2112 | B195: 1977-01-10 | C195: M | D195: 150,304 | E195: 80% | F195: 85% | G195: 75% | H195: 10% | J195: 41 | K195: 12,525 | L195: 1,253 | M195: 15,657 | N195: 14,404 | O195: =(M195*12-(VLOOKUP(N195*12,'Tax table'!$A$3:$C$10,3)*(N195*12-VLOOKUP(N195*12,'Tax table'!$A$3:$C$10,1))+VLOOKUP(N195*12,'Tax table'!$A$3:$C$10,2)))/12 -> 14,249 | P195: 11,273 | Q195: =(VLOOKUP(P195*12,'Tax table'!$A$3:$C$10,3)*(P195*12-VLOOKUP(P195*12,'Tax table'!$A$3:$C$10,1))+VLOOKUP(P195*12,'Tax table'!$A$3:$C$10,2))/12 -> 844 | R195: 11,681 | S195: 9,929 | T195: 69.7% | U195: 29,787 | V195: =IF($B$15="Yes",MIN(S195*2,References!$B$7),0) -> 19,858 | W195: =IF(AND(D195<>0,$B$16="Yes"),References!$B$6,0) -> 100,000 | X195: 1,752 | Y195: 9,394 | Z195: 1,253 | AA195: 10,647 | AB195: 14,404 | AC195: =(M195*12-(VLOOKUP(AB195*12,'Tax table'!$A$3:$C$10,3)*(AB195*12-VLOOKUP(AB195*12,'Tax table'!$A$3:$C$10,1))+VLOOKUP(AB195*12,'Tax table'!$A$3:$C$10,2)))/12 -> 14,249 | AD195: 10,647 | AE195: 74.7%
A196: Member 2113 | B196: 1975-02-21 | C196: M | D196: 150,304 | E196: 80% | F196: 85% | G196: 75% | H196: 10% | J196: 43 | K196: 12,525 | L196: 1,253 | M196: 15,657 | N196: 14,404 | O196: =(M196*12-(VLOOKUP(N196*12,'Tax table'!$A$3:$C$10,3)*(N196*12-VLOOKUP(N196*12,'Tax table'!$A$3:$C$10,1))+VLOOKUP(N196*12,'Tax table'!$A$3:$C$10,2)))/12 -> 14,249 | P196: 11,273 | Q196: =(VLOOKUP(P196*12,'Tax table'!$A$3:$C$10,3)*(P196*12-VLOOKUP(P196*12,'Tax table'!$A$3:$C$10,1))+VLOOKUP(P196*12,'Tax table'!$A$3:$C$10,2))/12 -> 844 | R196: 11,681 | S196: 9,929 | T196: 69.7% | U196: 29,787 | V196: =IF($B$15="Yes",MIN(S196*2,References!$B$7),0) -> 19,858 | W196: =IF(AND(D196<>0,$B$16="Yes"),References!$B$6,0) -> 100,000 | X196: 1,752 | Y196: 9,394 | Z196: 1,253 | AA196: 10,647 | AB196: 14,404 | AC196: =(M196*12-(VLOOKUP(AB196*12,'Tax table'!$A$3:$C$10,3)*(AB196*12-VLOOKUP(AB196*12,'Tax table'!$A$3:$C$10,1))+VLOOKUP(AB196*12,'Tax table'!$A$3:$C$10,2)))/12 -> 14,249 | AD196: 10,647 | AE196: 74.7%
A197: Member 2114 | B197: 1973-10-28 | C197: M | D197: 150,304 | E197: 80% | F197: 85% | G197: 75% | H197: 10% | J197: 45 | K197: 12,525 | L197: 1,253 | M197: 15,657 | N197: 14,404 | O197: =(M197*12-(VLOOKUP(N197*12,'Tax table'!$A$3:$C$10,3)*(N197*12-VLOOKUP(N197*12,'Tax table'!$A$3:$C$10,1))+VLOOKUP(N197*12,'Tax table'!$A$3:$C$10,2)))/12 -> 14,249 | P197: 11,273 | Q197: =(VLOOKUP(P197*12,'Tax table'!$A$3:$C$10,3)*(P197*12-VLOOKUP(P197*12,'Tax table'!$A$3:$C$10,1))+VLOOKUP(P197*12,'Tax table'!$A$3:$C$10,2))/12 -> 844 | R197: 11,681 | S197: 9,929 | T197: 69.7% | U197: 29,787 | V197: =IF($B$15="Yes",MIN(S197*2,References!$B$7),0) -> 19,858 | W197: =IF(AND(D197<>0,$B$16="Yes"),References!$B$6,0) -> 100,000 | X197: 1,752 | Y197: 9,394 | Z197: 1,253 | AA197: 10,647 | AB197: 14,404 | AC197: =(M197*12-(VLOOKUP(AB197*12,'Tax table'!$A$3:$C$10,3)*(AB197*12-VLOOKUP(AB197*12,'Tax table'!$A$3:$C$10,1))+VLOOKUP(AB197*12,'Tax table'!$A$3:$C$10,2)))/12 -> 14,249 | AD197: 10,647 | AE197: 74.7%
A198: Member 2115 | B198: 1978-10-09 | C198: M | D198: 150,304 | E198: 80% | F198: 85% | G198: 75% | H198: 10% | J198: 40 | K198: 12,525 | L198: 1,253 | M198: 15,657 | N198: 14,404 | O198: =(M198*12-(VLOOKUP(N198*12,'Tax table'!$A$3:$C$10,3)*(N198*12-VLOOKUP(N198*12,'Tax table'!$A$3:$C$10,1))+VLOOKUP(N198*12,'Tax table'!$A$3:$C$10,2)))/12 -> 14,249 | P198: 11,273 | Q198: =(VLOOKUP(P198*12,'Tax table'!$A$3:$C$10,3)*(P198*12-VLOOKUP(P198*12,'Tax table'!$A$3:$C$10,1))+VLOOKUP(P198*12,'Tax table'!$A$3:$C$10,2))/12 -> 844 | R198: 11,681 | S198: 9,929 | T198: 69.7% | U198: 29,787 | V198: =IF($B$15="Yes",MIN(S198*2,References!$B$7),0) -> 19,858 | W198: =IF(AND(D198<>0,$B$16="Yes"),References!$B$6,0) -> 100,000 | X198: 1,752 | Y198: 9,394 | Z198: 1,253 | AA198: 10,647 | AB198: 14,404 | AC198: =(M198*12-(VLOOKUP(AB198*12,'Tax table'!$A$3:$C$10,3)*(AB198*12-VLOOKUP(AB198*12,'Tax table'!$A$3:$C$10,1))+VLOOKUP(AB198*12,'Tax table'!$A$3:$C$10,2)))/12 -> 14,249 | AD198: 10,647 | AE198: 74.7%
A199: Member 2116 | B199: 1974-11-01 | C199: M | D199: 150,304 | E199: 80% | F199: 85% | G199: 75% | H199: 10% | J199: 44 | K199: 12,525 | L199: 1,253 | M199: 15,657 | N199: 14,404 | O199: =(M199*12-(VLOOKUP(N199*12,'Tax table'!$A$3:$C$10,3)*(N199*12-VLOOKUP(N199*12,'Tax table'!$A$3:$C$10,1))+VLOOKUP(N199*12,'Tax table'!$A$3:$C$10,2)))/12 -> 14,249 | P199: 11,273 | Q199: =(VLOOKUP(P199*12,'Tax table'!$A$3:$C$10,3)*(P199*12-VLOOKUP(P199*12,'Tax table'!$A$3:$C$10,1))+VLOOKUP(P199*12,'Tax table'!$A$3:$C$10,2))/12 -> 844 | R199: 11,681 | S199: 9,929 | T199: 69.7% | U199: 29,787 | V199: =IF($B$15="Yes",MIN(S199*2,References!$B$7),0) -> 19,858 | W199: =IF(AND(D199<>0,$B$16="Yes"),References!$B$6,0) -> 100,000 | X199: 1,752 | Y199: 9,394 | Z199: 1,253 | AA199: 10,647 | AB199: 14,404 | AC199: =(M199*12-(VLOOKUP(AB199*12,'Tax table'!$A$3:$C$10,3)*(AB199*12-VLOOKUP(AB199*12,'Tax table'!$A$3:$C$10,1))+VLOOKUP(AB199*12,'Tax table'!$A$3:$C$10,2)))/12 -> 14,249 | AD199: 10,647 | AE199: 74.7%
A200: Member 2117 | B200: 1978-06-16 | C200: M | D200: 150,304 | E200: 80% | F200: 85% | G200: 75% | H200: 10% | J200: 40 | K200: 12,525 | L200: 1,253 | M200: 15,657 | N200: 14,404 | O200: =(M200*12-(VLOOKUP(N200*12,'Tax table'!$A$3:$C$10,3)*(N200*12-VLOOKUP(N200*12,'Tax table'!$A$3:$C$10,1))+VLOOKUP(N200*12,'Tax table'!$A$3:$C$10,2)))/12 -> 14,249 | P200: 11,273 | Q200: =(VLOOKUP(P200*12,'Tax table'!$A$3:$C$10,3)*(P200*12-VLOOKUP(P200*12,'Tax table'!$A$3:$C$10,1))+VLOOKUP(P200*12,'Tax table'!$A$3:$C$10,2))/12 -> 844 | R200: 11,681 | S200: 9,929 | T200: 69.7% | U200: 29,787 | V200: =IF($B$15="Yes",MIN(S200*2,References!$B$7),0) -> 19,858 | W200: =IF(AND(D200<>0,$B$16="Yes"),References!$B$6,0) -> 100,000 | X200: 1,752 | Y200: 9,394 | Z200: 1,253 | AA200: 10,647 | AB200: 14,404 | AC200: =(M200*12-(VLOOKUP(AB200*12,'Tax table'!$A$3:$C$10,3)*(AB200*12-VLOOKUP(AB200*12,'Tax table'!$A$3:$C$10,1))+VLOOKUP(AB200*12,'Tax table'!$A$3:$C$10,2)))/12 -> 14,249 | AD200: 10,647 | AE200: 74.7%
A201: Member 2104 | B201: 1976-02-05 | C201: M | D201: 150,477 | E201: 80% | F201: 85% | G201: 75% | H201: 10% | J201: 42 | K201: 12,540 | L201: 1,254 | M201: 15,675 | N201: 14,421 | O201: =(M201*12-(VLOOKUP(N201*12,'Tax table'!$A$3:$C$10,3)*(N201*12-VLOOKUP(N201*12,'Tax table'!$A$3:$C$10,1))+VLOOKUP(N201*12,'Tax table'!$A$3:$C$10,2)))/12 -> 14,264 | P201: 11,286 | Q201: =(VLOOKUP(P201*12,'Tax table'!$A$3:$C$10,3)*(P201*12-VLOOKUP(P201*12,'Tax table'!$A$3:$C$10,1))+VLOOKUP(P201*12,'Tax table'!$A$3:$C$10,2))/12 -> 846 | R201: 11,693 | S201: 9,939 | T201: 69.7% | U201: 29,818 | V201: =IF($B$15="Yes",MIN(S201*2,References!$B$7),0) -> 19,879 | W201: =IF(AND(D201<>0,$B$16="Yes"),References!$B$6,0) -> 100,000 | X201: 1,754 | Y201: 9,405 | Z201: 1,254 | AA201: 10,659 | AB201: 14,421 | AC201: =(M201*12-(VLOOKUP(AB201*12,'Tax table'!$A$3:$C$10,3)*(AB201*12-VLOOKUP(AB201*12,'Tax table'!$A$3:$C$10,1))+VLOOKUP(AB201*12,'Tax table'!$A$3:$C$10,2)))/12 -> 14,264 | AD201: 10,659 | AE201: 74.7%
A202: Member 2103 | B202: 1968-03-15 | C202: M | D202: 150,536 | E202: 80% | F202: 85% | G202: 75% | H202: 10% | J202: 50 | K202: 12,545 | L202: 1,254 | M202: 15,681 | N202: 14,426 | O202: =(M202*12-(VLOOKUP(N202*12,'Tax table'!$A$3:$C$10,3)*(N202*12-VLOOKUP(N202*12,'Tax table'!$A$3:$C$10,1))+VLOOKUP(N202*12,'Tax table'!$A$3:$C$10,2)))/12 -> 14,269 | P202: 11,290 | Q202: =(VLOOKUP(P202*12,'Tax table'!$A$3:$C$10,3)*(P202*12-VLOOKUP(P202*12,'Tax table'!$A$3:$C$10,1))+VLOOKUP(P202*12,'Tax table'!$A$3:$C$10,2))/12 -> 847 | R202: 11,697 | S202: 9,943 | T202: 69.7% | U202: 29,829 | V202: =IF($B$15="Yes",MIN(S202*2,References!$B$7),0) -> 19,886 | W202: =IF(AND(D202<>0,$B$16="Yes"),References!$B$6,0) -> 100,000 | X202: 1,755 | Y202: 9,409 | Z202: 1,254 | AA202: 10,663 | AB202: 14,426 | AC202: =(M202*12-(VLOOKUP(AB202*12,'Tax table'!$A$3:$C$10,3)*(AB202*12-VLOOKUP(AB202*12,'Tax table'!$A$3:$C$10,1))+VLOOKUP(AB202*12,'Tax table'!$A$3:$C$10,2)))/12 -> 14,269 | AD202: 10,663 | AE202: 74.7%
A203: Member 2102 | B203: 1966-12-22 | C203: M | D203: 150,563 | E203: 80% | F203: 85% | G203: 75% | H203: 10% | J203: 51 | K203: 12,547 | L203: 1,255 | M203: 15,684 | N203: 14,429 | O203: =(M203*12-(VLOOKUP(N203*12,'Tax table'!$A$3:$C$10,3)*(N203*12-VLOOKUP(N203*12,'Tax table'!$A$3:$C$10,1))+VLOOKUP(N203*12,'Tax table'!$A$3:$C$10,2)))/12 -> 14,271 | P203: 11,292 | Q203: =(VLOOKUP(P203*12,'Tax table'!$A$3:$C$10,3)*(P203*12-VLOOKUP(P203*12,'Tax table'!$A$3:$C$10,1))+VLOOKUP(P203*12,'Tax table'!$A$3:$C$10,2))/12 -> 848 | R203: 11,699 | S203: 9,944 | T203: 69.7% | U203: 29,833 | V203: =IF($B$15="Yes",MIN(S203*2,References!$B$7),0) -> 19,889 | W203: =IF(AND(D203<>0,$B$16="Yes"),References!$B$6,0) -> 100,000 | X203: 1,755 | Y203: 9,410 | Z203: 1,255 | AA203: 10,665 | AB203: 14,429 | AC203: =(M203*12-(VLOOKUP(AB203*12,'Tax table'!$A$3:$C$10,3)*(AB203*12-VLOOKUP(AB203*12,'Tax table'!$A$3:$C$10,1))+VLOOKUP(AB203*12,'Tax table'!$A$3:$C$10,2)))/12 -> 14,271 | AD203: 10,665 | AE203: 74.7%
A204: Member 2101 | B204: 1986-04-14 | C204: M | D204: 150,685 | E204: 80% | F204: 85% | G204: 75% | H204: 10% | J204: 32 | K204: 12,557 | L204: 1,256 | M204: 15,696 | N204: 14,441 | O204: =(M204*12-(VLOOKUP(N204*12,'Tax table'!$A$3:$C$10,3)*(N204*12-VLOOKUP(N204*12,'Tax table'!$A$3:$C$10,1))+VLOOKUP(N204*12,'Tax table'!$A$3:$C$10,2)))/12 -> 14,282 | P204: 11,301 | Q204: =(VLOOKUP(P204*12,'Tax table'!$A$3:$C$10,3)*(P204*12-VLOOKUP(P204*12,'Tax table'!$A$3:$C$10,1))+VLOOKUP(P204*12,'Tax table'!$A$3:$C$10,2))/12 -> 849 | R204: 11,708 | S204: 9,952 | T204: 69.7% | U204: 29,855 | V204: =IF($B$15="Yes",MIN(S204*2,References!$B$7),0) -> 19,903 | W204: =IF(AND(D204<>0,$B$16="Yes"),References!$B$6,0) -> 100,000 | X204: 1,756 | Y204: 9,418 | Z204: 1,256 | AA204: 10,673 | AB204: 14,441 | AC204: =(M204*12-(VLOOKUP(AB204*12,'Tax table'!$A$3:$C$10,3)*(AB204*12-VLOOKUP(AB204*12,'Tax table'!$A$3:$C$10,1))+VLOOKUP(AB204*12,'Tax table'!$A$3:$C$10,2)))/12 -> 14,282 | AD204: 10,673 | AE204: 74.7%
... 2046 more rows

Sheet Dashboard
A1: =Calculator!B4 -> ABC company
A2: Disability 2.0 vs flat benefit
B4: Scheme Analytics
C6: Scheme overview
C7: Membership | D7: Gender split | E7: Average age | F7: Average annual gross risk salary
B8: Overall | C8: ='Scheme distribution'!C31 -> 2,265 | D8: ='Scheme distribution'!D31 -> 100% | E8: ='Scheme distribution'!E31 -> 40.51 | F8: ='Scheme distribution'!F31 -> 285,790
B9: Males | C9: ='Scheme distribution'!C32 -> 932 | D9: ='Scheme distribution'!D32 -> 41% | E9: ='Scheme distribution'!E32 -> 40.24 | F9: ='Scheme distribution'!F32 -> 273,298
B10: Females | C10: ='Scheme distribution'!C33 -> 1,333 | D10: ='Scheme distribution'!D33 -> 59% | E10: ='Scheme distribution'!E33 -> 40.70 | F10: ='Scheme distribution'!F33 -> 294,524
B23: What if…
B25: the member is terminally ill or severely disabled with no prospect of recovery?
B27: the member suffers one of the severe illnesses, or sustains serious injuries from an accident?
B29: the member needs adaptations to their home, car or workplace?
B31: Amount spent on adaptations:
B37: Duration of disability (years) | D37: 10
D40: Flat benefit | F40: Disability 2.0
C41: Monthly net CTC | D41: Monthly benefit amount | E41: Benefit as % of Net CTC | F41: Monthly benefit amount | G41: Benefit as % of Net CTC | H41: Cash assitance benefit | I41: Critical top-up benefit | J41: Daily life adaptor | K41: Permanent income booster | L41: Amortisation of additional benefits | M41: Total benefit as % of Net CTC
B42: Average benefit amount | C42: =References!C71 -> R 25,045 | D42: =References!C79 -> R 20,243 | E42: =D42/C42 -> 81% | F42: =References!C53 -> R 17,624 | G42: =F42/C42 -> 70% | H42: =IF(Calculator!B14="Yes",References!C55,) -> R 52,871 | I42: =IF(AND(Calculator!B15="Yes",References!A18=TRUE),References!C56,0) -> R 35,247 | J42: =IF(AND(References!A20=TRUE,Calculator!B16="Yes"),References!B29,0) -> R 75,000 | K42: =IF(AND(Calculator!B17="Yes",References!A16=TRUE),References!C58,0) -> R 3,110 | L42: =SUM(H42:J42)/($D$37*12)+K42 -> R 4,469 | M42: =(F42+L42)/C42 -> 88%
B43: Minimum salary | C43: =MIN(Calculations[Monthly net cost to company salary]) -> R 7,704 | D43: =VLOOKUP(C43,Calculations[[Monthly net cost to company salary]:["Flat" Basic + Waiver benefit (capped)]],16,FALSE) -> R 5,313 | E43: 69% | F43: =VLOOKUP(C43,Calculations[[Monthly net cost to company salary]:[Monthly Net insurance benefit]],5,FALSE) -> R 5,313 | G43: 69% | H43: =VLOOKUP(C43,Calculations[[Monthly net cost to company salary]:[Cash assistance benefit]],7,FALSE) -> R 15,938 | I43: =IF(References!$A$18=TRUE,VLOOKUP(C43,Calculations[[Monthly net cost to company salary]:[Critical top-up benefit]],8,FALSE),0) -> R 10,625 | J43: =$J$42 -> R 75,000 | K43: =IF(References!$A$16=TRUE,VLOOKUP(Dashboard!C43,Calculations[[Monthly net cost to company salary]:[Permanent income booster]],10,FALSE),0) -> R 938 | L43: =SUM(H43:J43)/($D$37*12)+K43 -> R 1,784 | M43: 92%
B44: 1st Quartile salary | C44: =VLOOKUP(References!D44,Calculations[[Annual Risk / Insurance salary]:[Monthly net cost to company salary]],12,FALSE) -> R 18,145 | D44: =VLOOKUP(C44,Calculations[[Monthly net cost to company salary]:["Flat" Basic + Waiver benefit (capped)]],16,FALSE) -> R 13,992 | E44: 77% | F44: =VLOOKUP(C44,Calculations[[Monthly net cost to company salary]:[Monthly Net insurance benefit]],5,FALSE) -> R 12,732 | G44: 70% | H44: =VLOOKUP(C44,Calculations[[Monthly net cost to company salary]:[Cash assistance benefit]],7,FALSE) -> R 38,197 | I44: =IF(References!$A$18=TRUE,VLOOKUP(C44,Calculations[[Monthly net cost to company salary]:[Critical top-up benefit]],8,FALSE),0) -> R 25,465 | J44: =$J$42 -> R 75,000 | K44: =IF(References!$A$16=TRUE,VLOOKUP(Dashboard!C44,Calculations[[Monthly net cost to company salary]:[Permanent income booster]],10,FALSE),0) -> R 2,247 | L44: =SUM(H44:J44)/($D$37*12)+K44 -> R 3,402 | M44: 89%
B45: Median salary | C45: =VLOOKUP(References!E44,Calculations[[Annual Risk / Insurance salary]:[Monthly net cost to company salary]],12,FALSE) -> R 22,939 | D45: =VLOOKUP(C45,Calculations[[Monthly net cost to company salary]:["Flat" Basic + Waiver benefit (capped)]],16,FALSE) -> R 18,277 | E45: 80% | F45: =VLOOKUP(C45,Calculations[[Monthly net cost to company salary]:[Monthly Net insurance benefit]],5,FALSE) -> R 16,117 | G45: 70% | H45: =VLOOKUP(C45,Calculations[[Monthly net cost to company salary]:[Cash assistance benefit]],7,FALSE) -> R 48,351 | I45: =IF(References!$A$18=TRUE,VLOOKUP(C45,Calculations[[Monthly net cost to company salary]:[Critical top-up benefit]],8,FALSE),0) -> R 32,234 | J45: =$J$42 -> R 75,000 | K45: =IF(References!$A$16=TRUE,VLOOKUP(Dashboard!C45,Calculations[[Monthly net cost to company salary]:[Permanent income booster]],10,FALSE),0) -> R 2,844 | L45: =SUM(H45:J45)/($D$37*12)+K45 -> R 4,141 | M45: 88%
B46: 3rd Quartile salary | C46: =VLOOKUP(References!F44,Calculations[[Annual Risk / Insurance salary]:[Monthly net cost to company salary]],12,FALSE) -> R 28,898 | D46: =VLOOKUP(C46,Calculations[[Monthly net cost to company salary]:["Flat" Basic + Waiver benefit (capped)]],16,FALSE) -> R 23,909 | E46: 83% | F46: =VLOOKUP(C46,Calculations[[Monthly net cost to company salary]:[Monthly Net insurance benefit]],5,FALSE) -> R 20,431 | G46: 71% | H46: =VLOOKUP(C46,Calculations[[Monthly net cost to company salary]:[Cash assistance benefit]],7,FALSE) -> R 61,294 | I46: =IF(References!$A$18=TRUE,VLOOKUP(C46,Calculations[[Monthly net cost to company salary]:[Critical top-up benefit]],8,FALSE),0) -> R 40,863 | J46: =$J$42 -> R 75,000 | K46: =IF(References!$A$16=TRUE,VLOOKUP(Dashboard!C46,Calculations[[Monthly net cost to company salary]:[Permanent income booster]],10,FALSE),0) -> R 3,606 | L46: =SUM(H46:J46)/($D$37*12)+K46 -> R 5,082 | M46: 88%
B47: Maximum salary | C47: =MAX(Calculations[Monthly net cost to company salary]) -> R 213,315 | D47: =VLOOKUP(C47,Calculations[[Monthly net cost to company salary]:["Flat" Basic + Waiver benefit (capped)]],16,FALSE) -> R 213,315 | E47: 100% | F47: =VLOOKUP(C47,Calculations[[Monthly net cost to company salary]:[Monthly Net insurance benefit]],5,FALSE) -> R 149,372 | G47: 70% | H47: =VLOOKUP(C47,Calculations[[Monthly net cost to company salary]:[Cash assistance benefit]],7,FALSE) -> R 448,116 | I47: =IF(References!$A$18=TRUE,VLOOKUP(C47,Calculations[[Monthly net cost to company salary]:[Critical top-up benefit]],8,FALSE),0) -> R 100,000 | J47: =$J$42 -> R 75,000 | K47: =IF(References!$A$16=TRUE,VLOOKUP(Dashboard!C47,Calculations[[Monthly net cost to company salary]:[Permanent income booster]],10,FALSE),0) -> R 26,360 | L47: =SUM(H47:J47)/($D$37*12)+K47 -> R 31,552 | M47: 85%

Sheet Examples
C2: Meet Tumi | P2: Meet Patrick
C4: His total monthly package is: | J4: R 50,000 | K4: per month | P4: His total monthly package is also: | W4: =J4 -> R 50,000 | X4: per month
C5: His employer has set his insurance and pensionable salary at: | J5: 90% | K5: of total package | P5: His employer has set his insurance and pensionable salary also at: | W5: =J5 -> 90% | X5: of total package
C6: The total contribution to Tumi's retirement fund is: | J6: 10% | K6: of insurance salary
C8: His monthly net insurance salary is: | J8: =References!B51 -> R 35,949
P9: Patrick's employer didn't changed to disability 2.0 and still provides a traditional style benefit of:
C10: Tumi's employer switched to disability 2.0 and chose the following benefits: | P10: Insurance benefit percentage: | W10: 75%
C11: Net insurance benefit percentage: | J11: 85% | P11: Waiver percentage: | W11: 10%
C13: Benefits | J13: Tumi's cover amounts | P13: Benefits | W13: Patrick's cover
C14: Monthly income disability benefit | J14: =References!B53 -> R 30,556 | P14: Monthly income disability benefit | W14: =References!B77 -> R 33,750
C15: =Calculator!A14 -> Cash assistance benefit | J15: =IF(Calculator!B14="Yes",References!B55,"") -> R 91,669 | P15: Monthly waiver benefit | W15: =References!B78 -> R 4,500
C16: =Calculator!A15 -> Critical top-up benefit | J16: =IF(Calculator!B15="Yes",References!B56,"") -> R 61,113
C17: =Calculator!A16 -> Daily life adaptor | J17: =IF(Calculator!B16="Yes",CONCATENATE("Up to ",TEXT(References!B6,"R# ##0")),"") -> Up to R100 000
C18: =Calculator!A17 -> Permanent income booster | J18: =IF(Calculator!B17="Yes",References!B58,"") -> R 5,392
C20: Tumi sustained serious injuries in a car accident and goes on disability for 24 months. | P20: Patrick was in the same accident and had the same injuries and prognosis.
C22: Tumi receives the following benefit payouts: | P22: Patrick received the following benefit payouts:
C23: Benefits | J23: Tumi's payouts | P23: Benefits | W23: Patrick's payouts
C24: Monthly income disability benefit | J24: =References!B53 -> R 30,556 | P24: Monthly income disability benefit | W24: =W14 -> R 33,750
C25: =Calculator!A14 -> Cash assistance benefit | J25: =IF(Calculator!B14="Yes",References!B55,"") -> R 91,669 | P25: Monthly waiver benefit | W25: =W15 -> R 4,500
C26: =Calculator!A15 -> Critical top-up benefit | J26: =IF(Calculator!B15="Yes",References!B56,"") -> R 61,113
C27: =Calculator!A16 -> Daily life adaptor | J27: =IF(Calculator!B16="Yes",References!B57,"") -> R 20,000 | K27: =IF(Calculator!B16="Yes","for a ramp at his house","") -> for a ramp at his house
C28: Tumi didn't receive the permanent income booster benefit* | J28: =IF(Calculator!B17="Yes",0,"") -> R 0
C30: Tumi will be able to use point-to-point transport to go to his physiotherapy appointments.
C32: If we divide the lump sum benefits by the 24 months, then Tumi's total equivalent monthly benefit is: | J32: =IFERROR(SUM(J25:J27)/24,0)+J24+IF(J28="",0,J28) -> R 37,756 | P32: Patrick's total monthly benefit is: | W32: =SUM(W24:W25) -> R 38,250
B34: *because Tumi wasn't terminally ill or unable to perform at least 2 ADLs at claim stage
C36: What if… | P36: What if…
C38: Tumi was permanently unable to look after himself after the accident? | P38: Patrick was permanently unable to look after himself after the accident?
C40: =IF(AND(Calculator!B16="No",Calculator!B17="No"),"Tumi will receive no additional benefits","Tumi would have received the following additional benefits:") -> Tumi would have received the following additional benefits: | P40: Patrick will receive no additional benefits
C41: Benefits | J41: Tumi's payouts
C42: =Calculator!A16 -> Daily life adaptor | J42: =IF(Calculator!B16="Yes",References!B6-References!B57,"") -> R 80,000 | K42: =IF(Calculator!B16="Yes","for alterations to Tumi's bathroom","") -> for alterations to Tumi's bathroom | X42: =IF(Calculator!O16="Yes","for alterations to Tumi's bathroom","") -> 
C43: =Calculator!A17 -> Permanent income booster | J43: =IF(Calculator!B17="Yes",References!B58,"") -> R 5,392
C45: Tumi's total monthly income benefit will be: | J45: =J24+IF(J43="",0,J43) -> R 35,949 | P45: Patrick's total monthly benefit is: | W45: =W32 -> R 38,250
C46: Tumi's total lump sum benefits will be: | J46: =SUM(J25:J27,J42) -> R 252,782

Sheet Tax table (hidden)
A1: TAX TABLE based on annual salary
A2: Layer | B2: Tax Payable | C2: Marginal Tax Rate
A3: 0 | B3: 0 | C3: 0%
A4: 79,000 | B4: 0 | C4: 18%
A5: 195,851 | B5: 21,033 | C5: 26%
A6: 305,851 | B6: 49,633 | C6: 31%
A7: 423,301 | B7: 86,043 | C7: 36%
A8: 555,601 | B8: 133,671 | C8: 39%
A9: 708,311 | B9: 193,228 | C9: 41%
A10: 1,500,001 | B10: 517,820.48 | C10: 45%

Sheet References (hidden)
A2: Yes
A3: No
A6: Daily life adaptor max | B6: 100,000
A7: Critical top-up benefit max | B7: 100,000
A9: Quartiles
A10: 1
A11: 2
A12: 3
A14: What if scenario
A15: The member is terminally ill or severely disabled with no prospect of recovery?
A16: TRUE
A17: The member suffers one of the severe illnesses, or sustains serious injuries from a transport accident?
A18: TRUE
A19: The member needs adaptations to their home, car or workplace?
A20: TRUE
A22: Amount spent on adaptations:
A23: R 10,000
A24: R 25,000
A25: R 50,000
A26: R 75,000
A27: R 100,000
A29: Amount selected | B29: 75000
A31: Duration of disability
A33: 1
A34: 2
A35: 3
A36: 5
A37: 10
A39: Duration selected | B39: 10
A41: Net insurance benefit calculator
B42: Tumi example | C42: Average from dashboard | D42: First quartile | E42: Median | F42: Third quartile
D43: =_xlfn.QUARTILE.EXC(Calculations[Annual Risk / Insurance salary],$A$10) -> R 197,537 | E43: =_xlfn.QUARTILE.EXC(Calculations[Annual Risk / Insurance salary],References!$A$11) -> R 258,022 | F43: =_xlfn.QUARTILE.EXC(Calculations[Annual Risk / Insurance salary],$A$12) -> R 337,541
A44: Annual insurance salary | B44: =Examples!J4*Examples!J5*12 -> R 540,000 | C44: =AVERAGE(Calculations[Annual Risk / Insurance salary]) -> R 285,790 | D44: =VLOOKUP(D43,Calculations[Annual Risk / Insurance salary],1,TRUE) -> R 197,530 | E44: =VLOOKUP(E43,Calculations[Annual Risk / Insurance salary],1,TRUE) -> R 258,022 | F44: =VLOOKUP(F43,Calculations[Annual Risk / Insurance salary],1,TRUE) -> R 337,541
A45: Annual retirement fund contributions | B45: =B44*Examples!J6 -> R 54,000 | C45: =IF(Calculator!B10="No",C44*AVERAGE(Calculations[Waiver %]),AVERAGE(Calculations[Annual retirement contributions])) -> R 28,579
A46: Taxable insurance salary | B46: =B44-B45 -> R 486,000 | C46: =C44-C45 -> R 257,211
A48: Tax | B48: =(VLOOKUP(B46,'Tax table'!$A$3:$C$10,3)*(B46-VLOOKUP(B46,'Tax table'!$A$3:$C$10,1))+VLOOKUP(B46,'Tax table'!$A$3:$C$10,2)) -> R 108,614 | C48: =(VLOOKUP(C46,'Tax table'!$A$3:$C$10,3)*(C46-VLOOKUP(C46,'Tax table'!$A$3:$C$10,1))+VLOOKUP(C46,'Tax table'!$A$3:$C$10,2)) -> R 36,987
A50: Annual net insurance salary | B50: =B44-B48 -> R 431,386 | C50: =C44-C48 -> R 248,803
A51: Monthly net insurance salary | B51: =B50/12 -> R 35,949 | C51: =C50/12 -> R 20,734
A53: Monthly net insurance benefit | B53: =MIN(B51*Examples!J11,SUM(Calculator!B8:B9)) -> R 30,556 | C53: =MIN(C51*AVERAGE(Calculations[Net insurance benefit %]),SUM(Calculator!B8:B9)) -> R 17,624
A55: Cash assitance benefit | B55: =B53*3 -> R 91,669 | C55: =C53*3 -> R 52,871
A56: Critical top-up benefit | B56: =MIN(B53*2,$B$7) -> R 61,113 | C56: =MIN(C53*2,$B$7) -> R 35,247
A57: Daily life adaptor | B57: R 20,000
A58: Permanent income booster | B58: =MIN(B51,SUM(Calculator!$B$8:$B$9))-B53 -> R 5,392 | C58: =MIN(C51,SUM(Calculator!$B$8:$B$9))-C53 -> R 3,110
A60: Flat monthly benefit calculator
B61: Patrick example | C61: Average from dashboard
A63: Annual cost to company | B63: =Examples!W4*12 -> R 600,000 | C63: =C44/AVERAGE(Calculations[Risk salary as a % of CTC]) -> R 357,238
A64: Annual insurance salary | B64: =B63*Examples!W5 -> R 540,000 | C64: =C44 -> R 285,790
A65: Annual waiver benefit | B65: =B64*Examples!W11 -> R 54,000 | C65: =C64*AVERAGE(Calculations[Waiver %]) -> R 28,579
A66: Taxable cost to company | B66: =B63-B65 -> R 546,000 | C66: =C63-C65 -> R 328,659
A68: Tax | B68: =(VLOOKUP(B66,'Tax table'!$A$3:$C$10,3)*(B66-VLOOKUP(B66,'Tax table'!$A$3:$C$10,1))+VLOOKUP(B66,'Tax table'!$A$3:$C$10,2)) -> R 130,214 | C68: =(VLOOKUP(C66,'Tax table'!$A$3:$C$10,3)*(C66-VLOOKUP(C66,'Tax table'!$A$3:$C$10,1))+VLOOKUP(C66,'Tax table'!$A$3:$C$10,2)) -> R 56,704
A70: Annual net cost to company (excluding deductions) | B70: =B66-B68 -> R 415,786 | C70: =C63-C68 -> R 300,534
A71: Monthly net cost to company (excluding deductions) | B71: =B70/12 -> R 34,649 | C71: =C70/12 -> R 25,045
A73: Monthly basic benefit (uncapped) | B73: =MIN(B64*Examples!W10/12,Calculator!$B$8) -> R 33,750 | C73: =MIN(C64*AVERAGE(Calculations["Flat" % basic benefit])/12,Calculator!$B$8) -> R 17,862
A74: Monthly waiver benefit (uncapped) | B74: =MIN(B65/12,Calculator!$B$9) -> R 4,500 | C74: =MIN(C65/12,Calculator!$B$9) -> R 2,382
A75: Monthly total benefit (uncapped) | B75: =SUM(B73:B74) -> R 38,250 | C75: =SUM(C73:C74) -> R 20,243
A77: Monthly basic benefit (capped) | B77: =B73*$B$81 -> R 33,750 | C77: =C73*$C$81 -> R17,861.88
A78: Monthly waiver benefit (capped) | B78: =B74 -> R 4,500 | C78: =C74 -> R 2,382
A79: Monthly total benefit (capped) | B79: =SUM(B77:B78) -> R 38,250 | C79: =SUM(C77:C78) -> R 20,243
A81: Adjustment factor | B81: =IF(B73>B71,B71/B73,1) -> 100% | C81: =IF(C73>C71,C71/C73,1) -> 100%

Sheet Scheme distribution (hidden)
D2: Number of members
A3: 0 | B3: 60,000 | C3: < R60k | D3: =COUNTIFS(Calculations[Annual Risk / Insurance salary],">="&A3,Calculations[Annual Risk / Insurance salary],"<"&B3) -> 0
A4: =B3 -> 60,000 | B4: 120,000 | C4: =CONCATENATE("R",(A4/1000),"k - ","R",(B4/1000),"k") -> R60k - R120k | D4: =COUNTIFS(Calculations[Annual Risk / Insurance salary],">="&A4,Calculations[Annual Risk / Insurance salary],"<"&B4) -> 34
A5: =B4 -> 120,000 | B5: 180,000 | C5: R120k - R180k | D5: =COUNTIFS(Calculations[Annual Risk / Insurance salary],">="&A5,Calculations[Annual Risk / Insurance salary],"<"&B5) -> 376
A6: 180,000 | B6: 250,000 | C6: R180k - R250k | D6: =COUNTIFS(Calculations[Annual Risk / Insurance salary],">="&A6,Calculations[Annual Risk / Insurance salary],"<"&B6) -> 682
A7: 250,000 | B7: 325,000 | C7: R250k - R325k | D7: =COUNTIFS(Calculations[Annual Risk / Insurance salary],">="&A7,Calculations[Annual Risk / Insurance salary],"<"&B7) -> 520
A8: 325,000 | B8: 420,000 | C8: R325k - R420k | D8: =COUNTIFS(Calculations[Annual Risk / Insurance salary],">="&A8,Calculations[Annual Risk / Insurance salary],"<"&B8) -> 439
A9: 420,000 | B9: 640,000 | C9: R420k - R640k | D9: =COUNTIFS(Calculations[Annual Risk / Insurance salary],">="&A9,Calculations[Annual Risk / Insurance salary],"<"&B9) -> 157
A10: 640,000 | B10: 840,000 | C10: R640k - R840k | D10: =COUNTIFS(Calculations[Annual Risk / Insurance salary],">="&A10,Calculations[Annual Risk / Insurance salary],"<"&B10) -> 33
A11: 840,000 | B11: 1,200,000 | C11: R840k - R1200k | D11: =COUNTIFS(Calculations[Annual Risk / Insurance salary],">="&A11,Calculations[Annual Risk / Insurance salary],"<"&B11) -> 20
A12: =B11 -> 1,200,000 | B12: 99,999,999,999 | C12: > R1 200k | D12: =COUNTIFS(Calculations[Annual Risk / Insurance salary],">="&A12,Calculations[Annual Risk / Insurance salary],"<"&B12) -> 4
C14: Total | D14: =SUM(D3:D12) -> 2265
C15: Check | D15: =COUNTA(Calculations[Member name or ID])-D14 -> 0
A17: 18 | B17: 25 | C17: =CONCATENATE(A17," - ",B17) -> 18 - 25 | D17: =COUNTIFS(Calculations[Age],">="&A17,Calculations[Age],"<"&B17) -> 13
A18: 25 | B18: 30 | C18: =CONCATENATE(A18," - ",B18) -> 25 - 30 | D18: =COUNTIFS(Calculations[Age],">="&A18,Calculations[Age],"<"&B18) -> 251
A19: 30 | B19: 35 | C19: 30 - 35 | D19: =COUNTIFS(Calculations[Age],">="&A19,Calculations[Age],"<"&B19) -> 462
A20: 35 | B20: 40 | C20: 35 - 40 | D20: =COUNTIFS(Calculations[Age],">="&A20,Calculations[Age],"<"&B20) -> 456
A21: 40 | B21: 45 | C21: 40 - 45 | D21: =COUNTIFS(Calculations[Age],">="&A21,Calculations[Age],"<"&B21) -> 361
A22: 45 | B22: 50 | C22: 45 - 50 | D22: =COUNTIFS(Calculations[Age],">="&A22,Calculations[Age],"<"&B22) -> 276
A23: 50 | B23: 55 | C23: 50 - 55 | D23: =COUNTIFS(Calculations[Age],">="&A23,Calculations[Age],"<"&B23) -> 175
A24: 55 | B24: 60 | C24: 55 - 60 | D24: =COUNTIFS(Calculations[Age],">="&A24,Calculations[Age],"<"&B24) -> 170
A25: 60 | B25: 95 | C25: > 60 | D25: =COUNTIFS(Calculations[Age],">="&A25,Calculations[Age],"<"&B25) -> 101
C27: Total | D27: =SUM(D17:D25) -> 2265
C28: Check | D28: =COUNTA(Calculations[Member name or ID])-D27 -> 0
C30: Membership | D30: Gender split | E30: Average age | F30: Average annual gross risk salary
B31: Full membership | C31: =COUNTA(Calculations[Member name or ID]) -> 2,265 | D31: =SUM(D32:D33) -> 100.00% | E31: =AVERAGE(Calculations[Age]) -> 40.51 | F31: =AVERAGE(Calculations[Annual Risk / Insurance salary]) -> 285,790
A32: M | B32: Males | C32: =COUNTIF(Calculations[Gender],A32) -> 932 | D32: =C32/$C$31 -> 41.15% | E32: =AVERAGEIF(Calculations[Gender],$A32,Calculations[Age]) -> 40.24 | F32: =AVERAGEIF(Calculations[Gender],$A32,Calculations[Annual Risk / Insurance salary]) -> 273,298
A33: F | B33: Females | C33: =COUNTIF(Calculations[Gender],A33) -> 1,333 | D33: =C33/$C$31 -> 58.85% | E33: =AVERAGEIF(Calculations[Gender],$A33,Calculations[Age]) -> 40.70 | F33: =AVERAGEIF(Calculations[Gender],$A33,Calculations[Annual Risk / Insurance salary]) -> 294,524
